Workbook

Sheet ТТ
A1: Теплотехнический расчёт ограждающих конструкций | T1: НОРМИРУЕМЫЕ ТЕПЛОТЕНХНИЧЕСКИЕ ПОКАЗАТЕЛИ СТРОИТЕЛЬНЫХ МАТЕРИАЛОВ И ИЗДЕЛИЙ | AE1: ПРИВЕДЕННОЕ СОПРОТИВЛЕНИЕ ТЕПЛОПЕРЕДАЧЕ ОКОН R, м²·ºС/Вт | AM1: ТЕРМИЧЕСКОЕ СОПРОТИВЛЕНИЕ ЗАМКНУТЫХ ВОЗДУШНЫХ ПРОСЛОЕК
A3: Объект: | AE3: 1. Двойное остекление в спаренных переплетах | AK3: 0.4 | AM3: Толщина воздуш-ной прос-лойки, м | AN3: Термическое сопротивление замкнутой воздушной прослойки Rв.п, м²·ºС/Вт
A4: Расчётная температура наружного воздуха. text, ºC | G4: -22 | AE4: 2. Двойное остекление в раздельных переплетах | AK4: 0.44
A5: Расчётная температура внутреннего воздуха. tint, ºC | G5: 18 | T5: № п.п. | U5: Материал | V5: Плот-ность ρ0, кг/м³ | W5: Расчетное массовое отношение влаги в материале w, % | Y5: Расчетные коэффициенты при условиях эксплуатации | AE5: 3. Тройное остекление в раздельно-спаренных переплетах | AK5: 0.55 | AN5: гориз-й при потоке тепла снизу вверх и вертик-й | AP5: горизонтальной при потоке тепла сверху вниз
A6: Средняя температура за отопительный период. tht, ºC | G6: -0.6 | Y6: теплопроводности λ, Вт/(м·ºС) | AA6: теплоусвоения (при периоде 24 ч) s, Вт/(м²·ºС) | AC6: паропроницаемости μ, мг/(м·ч·Па) | AE6: 4. Однокамерный стеклопакет из стекла:
A7: Продолжительность отопительного периода Zht, сут | G7: 224 | AE7: - обычного | AK7: 0.38 | AN7: при температуре воздуха в прослойке
A8: Градусо-сутки отопительного периода Dd, ºС·сут | G8: =(G5-G6)*G7 -> 4166.4 | AE8: - с твердым селективным покрытием | AK8: 0.51 | AN8: положи-тельной | AO8: отрица-тельной | AP8: положи-тельной | AQ8: отрица-тельной
A9: Здание: | F9: жилое | AE9: - с мягким селективным покрытием | AK9: 0.56
AE10: 5. Двухкамерный стеклопакет из стекла: | AM10: 0,01 | AN10: 0.13 | AO10: 0.15 | AP10: 0.14 | AQ10: 0.15
A11: Ограждающая поверхность | D11: № слоя | E11: aext | F11: 1 | G11: 2 | H11: 3 | I11: 4 | J11: 5 | K11: aint | L11: D | M11: R0 | N11: K | O11: Rreq | P11: Dt0 | W11: А | X11: Б | Y11: А | Z11: Б | AA11: A | AB11: Б | AC11: А, Б | AE11: - обычного (с межстекольным расстоянием 6 мм) | AK11: 0,51 | AM11: 0,02 | AN11: 0.14 | AO11: 0.15 | AP11: 0.15 | AQ11: 0.19
E12: Вт/м²·ºC | K12: Вт/м2.oC | M12: м2.oC/Вт | N12: Вт/м2.oC | O12: м2.oC/Вт | P12: oC | T12: I Теплоизоляционные материалы (ГОСТ 16381) | AE12: - обычного (с межстекольным расстоянием 12 мм) | AK12: 0,54 | AM12: 0,03 | AN12: 0.14 | AO12: 0.16 | AP12: 0.16 | AQ12: 0.21
D13: Слой | F13: Штукатурка | G13: Fibo 5 | H13: теплоизол | I13: воздушн прос | J13: вагонка | T13: А. Полимерные | AE13: - с твердым селективным покрытием | AK13: 0,58 | AM13: 0,05 | AN13: 0.14 | AO13: 0.17 | AP13: 0.17 | AQ13: 0.22
A14: Наружная стена | C14: λ | D14: Вт/м·ºC | E14: =IF(A15="с вент. прослойкой",12,IF(A15="...",23,"ошибка")) -> 12 | F14: =Z212 -> 0.93 | G14: 0.24 | H14: 0.04 | I14: =AO11 -> 0.15 | J14: 0 | K14: 8.7 | L14: =IF(F14=0,0,F16*F15/F14)+IF(G14=0,0,G16*G15/G14)+IF(H14=0,0,H16*H15/H14)+IF(J14=0,0,J16*J15/J14) -> 0 | M14: =1/E14+IF(F14=0,0,F16/F14)+IF(G14=0,0,G16/G14)+IF(H14=0,0,H16/H14)+IF(I14=0,0,I16/I14)+IF(J14=0,0,J16/J14)+1/K14 -> 8.694404894 | N14: =ROUND(1/M14,3) -> 0.115 | O14: =IF(F9="общественное",0.0003*G8+1.2,IF(F9="жилое",0.00035*G8+1.4,IF(F9="производственное",0.0002*G8+1,"ошибка"))) -> 2.85824 | P14: =(G5-G4)/(M14*8.7) -> 0.5288114834 | Q14: =IF(O14>M14,"Ro<Rreq","Ro…OK") -> Ro…OK | T14: 1 | U14: Экструдированный пенополистирол фирмы БАСФ ТУ 2244-001-47547616-00 Стиродур 2500С | V14: 25 | W14: 2 | X14: 10 | Y14: 0.031 | Z14: 0.031 | AA14: 0.28 | AB14: 0.31 | AC14: 0.013 | AE14: - с мягким селективным покрытием | AK14: 0,68 | AM14: 0,1 | AN14: 0.15 | AO14: 0.18 | AP14: 0.18 | AQ14: 0.23
A15: с вент. прослойкой | C15: s | D15: Вт/м²·ºC | Q15: =IF($F$9="жилое",IF(P14<4,"Dto..OK","Dto<DTh"),IF($F$9="общественное",IF(P14<4.5,"Dto..OK","Dto<DTh"),IF($F$9="производственное",IF(P14<7,"Dto..OK","Dto<DTh")))) -> Dto..OK | T15: 2 | U15: То же, 2800С | V15: 28 | W15: 2 | X15: 10 | Y15: 0.031 | Z15: 0.031 | AA15: 0.3 | AB15: 0.33 | AC15: 0.013 | AE15: - с твердым селективным покрытием и заполнением аргоном | AK15: 0,65 | AM15: 0,15 | AN15: 0.15 | AO15: 0.18 | AP15: 0.19 | AQ15: 0.24
C16: δ | D16: м | F16: 0.015 | G16: 0.2 | H16: 0.3 | I16: 0.022 | J16: 0.021 | K16: ="Sd = "&SUM(F16:I16) -> Sd = 0,537 | T16: 3 | U16: » 3035С | V16: 33 | W16: 2 | X16: 10 | Y16: 0.031 | Z16: 0.031 | AA16: 0.32 | AB16: 0.36 | AC16: 0.013 | AE16: 6. Обычное стекло и однокамерный стеклопакет в раздельных | AM16: 0,2 - 0,3 | AN16: 0.15 | AO16: 0.19 | AP16: 0.19 | AQ16: 0.24
D17: Слой | F17: Ж/б плита | G17: Утеплитель | H17: Цем.-песч. ст | T17: 4 | U17: » 4000С | V17: 35 | W17: 2 | X17: 10 | Y17: 0.031 | Z17: 0.031 | AA17: 0.34 | AB17: 0.37 | AC17: 0.005 | AE17: переплетах из стекла: | AM17: П р и м е ч а н и е. При оклейке одной или обеих поверхностей воздушной прослойки алюминиевой фольгой термическое сопротивление следует увеличивать в 2 раза.
A18: Бесчердачное | C18: λ | D18: Вт/м·ºC | E18: =IF(A20="с вент. прослойкой",10.8,IF(A20="...",23,"ошибка")) -> 23 | F18: 1.22 | G18: 0.03 | H18: =Z212 -> 0.93 | K18: 8.7 | L18: =IF(F18=0,0,F20*F19/F18)+IF(G18=0,0,G20*G19/G18)+IF(H18=0,0,H20*H19/H18)+IF(I18=0,0,J20*J19/I18) -> 0 | M18: =1/E18+IF(F18=0,0,F20/F18)+IF(G18=0,0,G20/G18)+IF(H18=0,0,H20/H18)+IF(I18=0,0,I20/I18)+IF(J18=0,0,J20/J18)+1/K18 -> 1.224770164 | N18: =ROUND(1/M18,3) -> 0.816 | O18: =IF(F9="общественное",0.0004*G8+1.6,IF(F9="жилое",0.0005*G8+2.2,IF(F9="производственное",0.00025*G8+1.5,"ошибка"))) -> 4.2832 | P18: =($G$5-$G$4)/(M18*8.7) -> 3.753929746 | Q18: =IF(O18>M18,"Ro<Rreq","Ro…OK") -> Ro<Rreq | T18: 5 | U18: » 5000С | V18: 45 | W18: 2 | X18: 10 | Y18: 0.031 | Z18: 0.031 | AA18: 0.38 | AB18: 0.42 | AC18: 0.005 | AE18: - обычного | AK18: 0,56
A19: покрытие | C19: s | D19: Вт/м²·ºC | Q19: =IF($F$9="жилое",IF(P18<3,"Dto..OK","Dto<DTh"),IF($F$9="общественное",IF(P18<4,"Dto..OK","Dto<DTh"),IF($F$9="производственное",IF(P18<6,"Dto..OK","Dto<DTh")))) -> Dto<DTh | T19: 6 | U19: Пенополистирол фирмы БАСФ Стиропор PS15 | V19: 15 | W19: 2 | X19: 10 | Y19: 0.04 | Z19: 0.044 | AA19: 0.25 | AB19: 0.29 | AC19: 0.035 | AE19: - с твердым селективным покрытием | AK19: 0,65
A20: ... | C20: δ | D20: м | F20: 0.22 | G20: 0.025 | H20: 0.049 | K20: ="Sd = "&SUM(F20:J20) -> Sd = 0,294 | T20: 7 | U20: То же PS20 | V20: 20 | W20: 2 | X20: 10 | Y20: 0.038 | Z20: 0.042 | AA20: 0.28 | AB20: 0.33 | AC20: 0.03 | AE20: - с мягким селективным покрытием | AK20: 0,72
D21: Слой | F21: Fibo 3 | T21: 8 | U21: » PS30 | V21: 30 | W21: 2 | X21: 10 | Y21: 0.036 | Z21: 0.04 | AA21: 0.33 | AB21: 0.39 | AC21: 0.03 | AE21: - с твердым селективным покрытием и заполнением аргоном | AK21: 0,69
A22: Внутрен стена | C22: λ | D22: Вт/м·ºC | E22: 23 | F22: 0.24 | K22: 8.7 | L22: =IF(F22=0,0,F24*F23/F22)+IF(G22=0,0,G24*G23/G22)+IF(H22=0,0,H24*H23/H22)+IF(J22=0,0,J24*J23/J22) -> 0 | M22: =1/E22+IF(F22=0,0,F24/F22)+IF(G22=0,0,G24/G22)+IF(H22=0,0,H24/H22)+IF(I22=0,0,I24/I22)+IF(J22=0,0,J24/J22)+1/K22 -> 0.7834207896 | N22: =ROUND(1/M22,3) -> 1.276 | O22: =IF(F9="общественное",0.0004*G8+1.6,IF(F9="жилое",0.0005*G8+2.2,IF(F9="производственное",0.00025*G8+1.5,"ошибка"))) -> 4.2832 | P22: =($G$5-$G$4)/(M22*8.7) -> 5.868750498 | Q22: =IF(O22>M22,"Ro<Rreq","Ro…OK") -> Ro<Rreq | T22: 9 | U22: Пенополистирол | V22: 150 | W22: 1 | X22: 5 | Y22: 0.052 | Z22: 0.06 | AA22: 0.89 | AB22: 0.99 | AC22: 0.05 | AE22: 7. Обычное стекло и двухкамерный стеклопакет в раздельных
C23: s | D23: Вт/м²·ºC | Q23: =IF($F$9="жилое",IF(P22<2,"Dto..OK","Dto<DTh"),IF($F$9="общественное",IF(P22<2.5,"Dto..OK","Dto<DTh"),IF($F$9="производственное",IF(P22<2.5,"Dto..OK","Dto<DTh")))) -> Dto<DTh | T23: 10 | U23: Пенополистирол | V23: 100 | W23: 2 | X23: 10 | Y23: 0.041 | Z23: 0.052 | AA23: 0.65 | AB23: 0.82 | AC23: 0.05 | AE23: переплетах из стекла:
C24: δ | D24: м | F24: 0.15 | K24: ="Sd = "&SUM(F24:J24) -> Sd = 0,15 | T24: 11 | U24: Пенополистирол (ГОСТ 15588) | V24: 40 | W24: 2 | X24: 10 | Y24: 0.041 | Z24: 0.05 | AA24: 0.41 | AB24: 0.49 | AC24: 0.05 | AE24: - обычного | AK24: 0,68
D25: Слой | F25: Минплита | T25: 12 | U25: Пенопласт ПХВ-1 и ПВ1 | V25: 125 | W25: 2 | X25: 10 | Y25: 0.06 | Z25: 0.064 | AA25: 0.86 | AB25: 0.99 | AC25: 0.23 | AE25: - с твердым селективным покрытием | AK25: 0,74
A26: Чердачное | C26: λ | D26: Вт/м·ºC | E26: 23 | F26: 0.033 | K26: 8.7 | L26: =IF(F26=0,0,F28*F27/F26)+IF(G26=0,0,G28*G27/G26)+IF(H26=0,0,H28*H27/H26)+IF(J26=0,0,J28*J27/J26) -> 0 | M26: =1/E26+IF(F26=0,0,F28/F26)+IF(G26=0,0,G28/G26)+IF(H26=0,0,H28/H26)+IF(I26=0,0,I28/I26)+IF(J26=0,0,J28/J26)+1/K26 -> 9.249329881 | N26: =ROUND(1/M26,3) -> 0.108 | O26: =IF(F9="общественное",0.00035*G8+1.3,IF(F9="жилое",0.00045*G8+1.9,IF(F9="производственное",0.0002*G8+1,"ошибка"))) -> 3.77488 | P26: =($G$5-$G$4)/(M26*8.7) -> 0.4970847844 | Q26: =IF(O26>M26,"Ro<Rreq","Ro…OK") -> Ro…OK | T26: 13 | U26: Пенопласт ПХВ-1 и ПВ1 | V26: 100 и менее | W26: 2 | X26: 10 | Y26: 0.05 | Z26: 0.052 | AA26: 0.068 | AB26: 0.8 | AC26: 0.23 | AE26: - с мягким селективным покрытием | AK26: 0,81
A27: перекрытие | C27: s | D27: Вт/м²·ºC | Q27: =IF($F$9="жилое",IF(P26<2,"Dto..OK","Dto<DTh"),IF($F$9="общественное",IF(P26<2.5,"Dto..OK","Dto<DTh"),IF($F$9="производственное",IF(P26<2.5,"Dto..OK","Dto<DTh")))) -> Dto..OK | T27: 14 | U27: Пенополиуретан | V27: 80 | W27: 2 | X27: 5 | Y27: 0.05 | Z27: 0.05 | AA27: 0.67 | AB27: 0.7 | AC27: 0.05 | AE27: - с твердым селективным покрытием и заполнением аргоном | AK27: 0,82
C28: δ | D28: м | F28: 0.3 | K28: ="Sd = "&SUM(F28:J28) -> Sd = 0,3 | T28: 15 | U28: Пенополиуретан | V28: 60 | W28: 2 | X28: 5 | Y28: 0.041 | Z28: 0.041 | AA28: 0.53 | AB28: 0.55 | AC28: 0.05 | AE28: 8. Два однакамерных стеклопакета в спаренных переплетах | AK28: 0.7
C29: λ | D29: Вт/м·ºC | E29: 23 | K29: 8.7 | L29: =IF(F29=0,0,F31*F30/F29)+IF(G29=0,0,G31*G30/G29)+IF(H29=0,0,H31*H30/H29)+IF(J29=0,0,J31*J30/J29) -> 0 | M29: =1/E29+IF(F29=0,0,F31/F29)+IF(G29=0,0,G31/G29)+IF(H29=0,0,H31/H29)+IF(I29=0,0,I31/I29)+IF(J29=0,0,J31/J29)+1/K29 -> 0.1584207896 | N29: =ROUND(1/M29,3) -> 6.312 | O29: =ROUND(1/N29,3) -> 0.158 | P29: =($G$5-$G$4)/(M29*8.7) -> 29.02208202 | Q29: =IF(O29>M29,"Ro<Rreq","Ro…OK") -> Ro…OK | T29: 16 | U29: Пенополиуретан | V29: 40 | W29: 2 | X29: 5 | Y29: 0.04 | Z29: 0.04 | AA29: 0.4 | AB29: 0.42 | AC29: 0.05 | AE29: 9. Два однакамерных стеклопакета в раздельных переплетах | AK29: 0,74
C30: s | D30: Вт/м²·ºC | Q30: =IF($F$9="жилое",IF(P29<4,"Dto..OK","Dto<DTh"),IF($F$9="общественное",IF(P29<4.5,"Dto..OK","Dto<DTh"),IF($F$9="производственное",IF(P29<4.5,"Dto..OK","Dto<DTh")))) -> Dto<DTh | T30: 17 | U30: Плиты из резольно-формальдегидного пенопласта (ГОСТ 20916) | V30: 100 | W30: 5 | X30: 20 | Y30: 0.052 | Z30: 0.076 | AA30: 0.85 | AB30: 1.18 | AC30: 0.15 | AE30: 10. Четырехслойное остекление в двух спаренных переплетах | AK30: 0.8
C31: δ | D31: м | K31: ="Sd = "&SUM(F31:J31) -> Sd = 0 | T31: 18 | U31: Плиты из резольно-формальдегидного пенопласта (ГОСТ 20916) | V31: 75 | W31: 5 | X31: 20 | Y31: 0.05 | Z31: 0.07 | AA31: 0.72 | AB31: 0.98 | AC31: 0.23
C32: λ | D32: Вт/м·ºC | E32: 23 | K32: 8.7 | L32: =IF(F32=0,0,F34*F33/F32)+IF(G32=0,0,G34*G33/G32)+IF(H32=0,0,H34*H33/H32)+IF(J32=0,0,J34*J33/J32) -> 0 | M32: =1/E32+IF(F32=0,0,F34/F32)+IF(G32=0,0,G34/G32)+IF(H32=0,0,H34/H32)+IF(I32=0,0,I34/I32)+IF(J32=0,0,J34/J32)+1/K32 -> 0.1584207896 | N32: =ROUND(1/M32,3) -> 6.312 | O32: =ROUND(1/N32,3) -> 0.158 | P32: =($G$5-$G$4)/(M32*8.7) -> 29.02208202 | Q32: =IF(O32>M32,"Ro<Rreq","Ro…OK") -> Ro…OK | T32: 19 | U32: Плиты из резольно-формальдегидного пенопласта (ГОСТ 20916) | V32: 50 | W32: 5 | X32: 20 | Y32: 0.05 | Z32: 0.064 | AA32: 0.59 | AB32: 0.77 | AC32: 0.23 | AE32: Примечания:
C33: s | D33: Вт/м²·ºC | Q33: =IF($F$9="жилое",IF(P32<4,"Dto..OK","Dto<DTh"),IF($F$9="общественное",IF(P32<4.5,"Dto..OK","Dto<DTh"),IF($F$9="производственное",IF(P32<4.5,"Dto..OK","Dto<DTh")))) -> Dto<DTh | T33: 20 | U33: Плиты из резольно-формальдегидного пенопласта (ГОСТ 20916) | V33: 40 | W33: 5 | X33: 20 | Y33: 0.041 | Z33: 0.06 | AA33: 0.48 | AB33: 0.66 | AC33: 0.23 | AE33: 1. К мягким селективным покрытиям стекла относят покрытия с тепловой эмиссией менее 0,15, к твердым — более 0,15.
C34: δ | D34: м | K34: ="Sd = "&SUM(F34:J34) -> Sd = 0 | T34: 21 | U34: Перлитопластбетон | V34: 200 | W34: 2 | X34: 3 | Y34: 0.052 | Z34: 0.06 | AA34: 0.93 | AB34: 1.01 | AC34: 0.008
C35: λ | D35: Вт/м·ºC | E35: 23 | K35: 8.7 | L35: =IF(F35=0,0,F37*F36/F35)+IF(G35=0,0,G37*G36/G35)+IF(H35=0,0,H37*H36/H35)+IF(J35=0,0,J37*J36/J35) -> 0 | M35: =1/E35+IF(F35=0,0,F37/F35)+IF(G35=0,0,G37/G35)+IF(H35=0,0,H37/H35)+IF(I35=0,0,I37/I35)+IF(J35=0,0,J37/J35)+1/K35 -> 0.1584207896 | N35: =ROUND(1/M35,3) -> 6.312 | O35: =ROUND(1/N35,3) -> 0.158 | P35: =($G$5-$G$4)/(M35*8.7) -> 29.02208202 | Q35: =IF(O35>M35,"Ro<Rreq","Ro…OK") -> Ro…OK | T35: 22 | U35: Перлитопластбетон | V35: 100 | W35: 2 | X35: 3 | Y35: 0.041 | Z35: 0.05 | AA35: 0.58 | AB35: 0.66 | AC35: 0.008 | AE35: Значения приведенных сопротивлений теплопередаче заполнений световых проемов да-ны для случаев, когда отношение площади остекления к площади заполнения светового про-ема равно 0,75.
C36: s | D36: Вт/м²·ºC | Q36: =IF($F$9="жилое",IF(P35<4,"Dto..OK","Dto<DTh"),IF($F$9="общественное",IF(P35<4.5,"Dto..OK","Dto<DTh"),IF($F$9="производственное",IF(P35<4.5,"Dto..OK","Dto<DTh")))) -> Dto<DTh | T36: 23 | U36: Перлитофосфогелевые изделия | V36: 300 | W36: 3 | X36: 12 | Y36: 0.08 | Z36: 0.12 | AA36: 1.43 | AB36: 2.02 | AC36: 0.2
C37: δ | D37: м | K37: ="Sd = "&SUM(F37:J37) -> Sd = 0 | T37: 24 | U37: Перлитофосфогелевые изделия | V37: 200 | W37: 3 | X37: 12 | Y37: 0.07 | Z37: 0.09 | AA37: 1.1 | AB37: 1.43 | AC37: 0.23
A38: Окна с дв. остекл. | M38: =1/N38 -> 0.9090909091 | N38: 1.1 | O38: =IF(F9="общественное",0.00005*G8+0.2,IF(F9="жилое",IF(G8<6000,0.000075*G8+0.15,IF(G8<8000,0.00005*G8+0.3,IF(G8>8000,0.000025*G8+0.5,"ошибка"))),IF(F9="производственное",0.0002*G8+1,"ошибка"))) -> 0.46248 | P38: =$G$5-($G$5-$G$4)/(M38*8) -> 12.5 | Q38: =IF(O38>M38,"Ro<Rreq","Ro…OK") -> Ro…OK | R38: =IF($F$9="жилое",IF(P38>3,"Dto..OK","Dto<DTh"),IF($F$9="общественное",IF(P38>3,"Dto..OK","Dto<DTh"),IF($F$9="производственное",IF(P38>0,"Dto..OK","Dto<DTh")))) -> Dto..OK | T38: 25 | U38: Теплоизоляционные изделия из вспененного синтетического каучука «Аэрофлекс» | V38: 80 | W38: 5 | X38: 15 | Y38: 0.04 | Z38: 0.054 | AA38: 0.65 | AB38: 0.71 | AC38: 0.003 | AE38: 2. Значения приведенных сопротивлений теплопередаче, указанных в таблице, допуска-ется применять в качестве расчетных при отсутствии этих значений в стандартах или техни-ческих условиях на конструкции или не подтвержденных результатами испытаний.
A39: Двери наружные | M39: =1/N39 -> 1.111111111 | N39: 0.9 | O39: =IF(F9="жилое",0.6*(G5-G4)/(4*8.7),IF(F9="общественное",0.6*(G5-G4)/(4.5*8.7),IF(F9="производственное",0.6*(G5-G4)/(7*8.7),"ошибка"))) -> 0.6896551724 | Q39: =IF(O39>M39,"Ro<Rreq","Ro…OK") -> Ro…OK | T39: 26 | U39: Теплоизоляционные изделия из вспененного синтетического каучука
A40: Двери внутренние | M40: 0.55 | N40: =1/M40 -> 1.818181818 | U40: «Кайманфлекс»; ЕС | V40: 60-80 | W40: 0 | X40: 0 | Y40: 0.039 | Z40: 0.039 | AA40: 0.6 | AB40: 0.6 | AC40: 0.01
A41: Пол, 1 зона | C41: λ | D41: Вт/м·ºC | F41: 0.039 | G41: 1.92 | H41: 0.03 | I41: 0.93 | M41: =IF(F41=0,0,F42/F41)+IF(G41=0,0,G42/G41)+IF(H41=0,0,H42/H41)+IF(J41=0,0,J42/J41)+2.1 -> 10.70376603 | N41: =ROUND(1/M41,3) -> 0.093 | U41: ST | V41: 60-80 | W41: 0 | X41: 0 | Y41: 0.039 | Z41: 0.039 | AA41: 0.6 | AB41: 0.6 | AC41: 0.009 | AE41: 3. Температура внутренней поверхности конструктивных элементов окон зданий (кроме производственных) должна быть не ниже 3 оС при расчетной температуре наружного возду-ха.
C42: δ | D42: м | F42: 0.3 | G42: 0.15 | H42: 0.025 | I42: 0.049 | U42: ЕСО | V42: 60-95 | W42: 0 | X42: 0 | Y42: 0.041 | Z42: 0.041 | AA42: 0.65 | AB42: 0.65 | AC42: 0.01
A43: Пол, 2 зона | C43: λ | D43: Вт/м·ºC | F43: 0.039 | G43: 1.92 | H43: 0.03 | I43: 0.93 | M43: =IF(F43=0,0,F44/F43)+IF(G43=0,0,G44/G43)+IF(H43=0,0,H44/H43)+IF(J43=0,0,J44/J43)+4.3 -> 12.90376603 | N43: =ROUND(1/M43,3) -> 0.077 | T43: 27 | U43: Экструзионный пенополистирол «Пеноплэкс» (ТУ 5767-002-46261013), тип 35 | V43: 35 | W43: 2 | X43: 3 | Y43: 0.029 | Z43: 0.03 | AA43: 0.36 | AB43: 0.37 | AC43: 0.018
C44: δ | D44: м | F44: 0.3 | G44: 0.15 | H44: 0.025 | I44: 0.049 | T44: 28 | U44: То же, тип 45 | V44: 45 | W44: 2 | X44: 3 | Y44: 0.031 | Z44: 0.032 | AA44: 0.4 | AB44: 0.42 | AC44: 0.015
A45: Пол, 3 зона | C45: λ | D45: Вт/м·ºC | F45: 0.039 | G45: 1.92 | H45: 0.03 | I45: 0.93 | M45: =IF(F45=0,0,F46/F45)+IF(G45=0,0,G46/G45)+IF(H45=0,0,H46/H45)+IF(J45=0,0,J46/J45)+8.6 -> 17.20376603 | N45: =ROUND(1/M45,3) -> 0.058 | T45: Б. Минераловатные (ГОСТ 4640), стекловолокнистые, пеностекло, газостекло
C46: δ | D46: м | F46: 0.3 | G46: 0.15 | H46: 0.025 | I46: 0.049 | T46: 29 | U46: Маты минераловатные прошивные (ГОСТ 21880) и на синтетическом связующем (ГОСТ 9573) | V46: 125 | W46: 2 | X46: 5 | Y46: 0.064 | Z46: 0.07 | AA46: 0.73 | AB46: 0.82 | AC46: 0.3
A47: Пол, 4 зона | C47: λ | D47: Вт/м·ºC | F47: 0.039 | G47: 1.92 | H47: 0.03 | I47: 0.93 | M47: =IF(F47=0,0,F48/F47)+IF(G47=0,0,G48/G47)+IF(H47=0,0,H48/H47)+IF(J47=0,0,J48/J47)+14.2 -> 22.80376603 | N47: =ROUND(1/M47,3) -> 0.044 | T47: 30 | U47: Маты минераловатные прошивные (ГОСТ 21880) и на синтетическом связующем (ГОСТ 9573) | V47: 75 | W47: 2 | X47: 5 | Y47: 0.06 | Z47: 0.064 | AA47: 0.55 | AB47: 0.61 | AC47: 0.49
C48: δ | D48: м | F48: 0.3 | G48: 0.15 | H48: 0.025 | I48: 0.049 | T48: 31 | U48: Маты минераловатные прошивные (ГОСТ 21880) и на синтетическом связующем (ГОСТ 9573) | V48: 50 | W48: 2 | X48: 5 | Y48: 0.052 | Z48: 0.06 | AA48: 0.42 | AB48: 0.48 | AC48: 0.53
T49: 32 | U49: Плиты мягкие, полужесткие и жесткие минераловатные на синтетическом и битумном связующих (ГОСТ 9573, ГОСТ 10140, ГОСТ 22950) | V49: 350 | W49: 2 | X49: 5 | Y49: 0.09 | Z49: 0.11 | AA49: 1.46 | AB49: 1.72 | AC49: 0.38
T50: 33 | U50: Плиты мягкие, полужесткие и жесткие минераловатные на синтетическом и битумном связующих (ГОСТ 9573, ГОСТ 10140, ГОСТ 22950) | V50: 300 | W50: 2 | X50: 5 | Y50: 0.087 | Z50: 0.09 | AA50: 1.32 | AB50: 1.44 | AC50: 0.41
T51: 34 | U51: Плиты мягкие, полужесткие и жесткие минераловатные на синтетическом и битумном связующих (ГОСТ 9573, ГОСТ 10140, ГОСТ 22950) | V51: 200 | W51: 2 | X51: 5 | Y51: 0.076 | Z51: 0.08 | AA51: 1.01 | AB51: 1.11 | AC51: 0.49
T52: 35 | U52: Плиты мягкие, полужесткие и жесткие минераловатные на синтетическом и битумном связующих (ГОСТ 9573, ГОСТ 10140, ГОСТ 22950) | V52: 100 | W52: 2 | X52: 5 | Y52: 0.06 | Z52: 0.07 | AA52: 0.64 | AB52: 0.73 | AC52: 0.56
T53: 36 | U53: Плиты мягкие, полужесткие и жесткие минераловатные на синтетическом и битумном связующих (ГОСТ 9573, ГОСТ 10140, ГОСТ 22950) | V53: 50 | W53: 2 | X53: 5 | Y53: 0.052 | Z53: 0.06 | AA53: 0.42 | AB53: 0.48 | AC53: 0.6
T54: 37 | U54: Плиты минераловатные повышенной жесткости на органофосфатном связующем | V54: 200 | W54: 1 | X54: 2 | Y54: 0.07 | Z54: 0.076 | AA54: 0.94 | AB54: 1.01 | AC54: 0.45
T55: 38 | U55: Плиты полужесткие минераловатные на крахмальном связующем | V55: 200 | W55: 2 | X55: 5 | Y55: 0.076 | Z55: 0.08 | AA55: 1.01 | AB55: 1.11 | AC55: 0.38
T56: 39 | U56: Плиты полужесткие минераловатные на крахмальном связующем | V56: 125 | W56: 2 | X56: 5 | Y56: 0.06 | Z56: 0.064 | AA56: 0.7 | AB56: 0.78 | AC56: 0.38
T57: 40 | U57: Плиты из стеклянного штапельного волокна на синтетическом связующем (ГОСТ 10499) | V57: 50 | W57: 2 | X57: 5 | Y57: 0.06 | Z57: 0.064 | AA57: 0.44 | AB57: 0.5 | AC57: 0.6
T58: 41 | U58: Маты и полосы из стеклянного волокна прошивные | V58: 150 | W58: 2 | X58: 5 | Y58: 0.064 | Z58: 0.07 | AA58: 0.8 | AB58: 0.9 | AC58: 0.53
T59: 42 | U59: Пеностекло или газостекло | V59: 400 | W59: 1 | X59: 2 | Y59: 0.12 | Z59: 0.14 | AA59: 1.76 | AB59: 1.94 | AC59: 0.02
T60: 43 | U60: Пеностекло или газостекло | V60: 300 | W60: 1 | X60: 2 | Y60: 0.11 | Z60: 0.12 | AA60: 1.46 | AB60: 1.56 | AC60: 0.02
T61: 44 | U61: Пеностекло или газостекло | V61: 200 | W61: 1 | X61: 2 | Y61: 0.08 | Z61: 0.09 | AA61: 1.01 | AB61: 1.1 | AC61: 0.03
T62: В. Плиты из природных органических и неорганических материалов
T63: 45 | U63: Плиты древесно-волокнистые и древесно-стружечные (ГОСТ 4598, ГОСТ 8904, ГОСТ 10632) | V63: 1000 | W63: 10 | X63: 12 | Y63: 0.23 | Z63: 0.29 | AA63: 6.75 | AB63: 7.7 | AC63: 0.12
T64: 46 | U64: То же | V64: 800 | W64: 10 | X64: 12 | Y64: 0.19 | Z64: 0.23 | AA64: 5.49 | AB64: 6.13 | AC64: 0.12
T65: 47 | U65: » | V65: 600 | W65: 10 | X65: 12 | Y65: 0.13 | Z65: 0.16 | AA65: 3.93 | AB65: 4.43 | AC65: 0.13
T66: 48 | U66: » | V66: 400 | W66: 10 | X66: 12 | Y66: 0.11 | Z66: 0.13 | AA66: 2.95 | AB66: 3.26 | AC66: 0.19
T67: 49 | U67: » | V67: 200 | W67: 10 | X67: 12 | Y67: 0.07 | Z67: 0.08 | AA67: 1.67 | AB67: 1.81 | AC67: 0.24
T68: 50 | U68: Плиты фибролитовые и арболит (ГОСТ 19222) на портландцементе | V68: 800 | W68: 10 | X68: 15 | Y68: 0.24 | Z68: 0.3 | AA68: 6.17 | AB68: 7.16 | AC68: 0.11
T69: 51 | U69: Плиты фибролитовые и арболит (ГОСТ 19222) на портландцементе | V69: 600 | W69: 10 | X69: 15 | Y69: 0.18 | Z69: 0.23 | AA69: 4.63 | AB69: 5.43 | AC69: 0.11
T70: 52 | U70: Плиты фибролитовые и арболит (ГОСТ 19222) на портландцементе | V70: 400 | W70: 10 | X70: 15 | Y70: 0.13 | Z70: 0.16 | AA70: 3.21 | AB70: 3.7 | AC70: 0.26
T71: 53 | U71: Плиты фибролитовые и арболит (ГОСТ 19222) на портландцементе | V71: 300 | W71: 10 | X71: 15 | Y71: 0.11 | Z71: 0.14 | AA71: 2.56 | AB71: 2.99 | AC71: 0.3
T72: 54 | U72: Плиты камышитовые | V72: 300 | W72: 10 | X72: 15 | Y72: 0.09 | Z72: 0.14 | AA72: 2.31 | AB72: 2.99 | AC72: 0.45
T73: 55 | U73: Плиты камышитовые | V73: 200 | W73: 10 | X73: 15 | Y73: 0.07 | Z73: 0.09 | AA73: 1.67 | AB73: 1.96 | AC73: 0.49
T74: 56 | U74: Плиты торфяные теплоизоляционные | V74: 300 | W74: 15 | X74: 20 | Y74: 0.07 | Z74: 0.08 | AA74: 2.12 | AB74: 2.34 | AC74: 0.19
T75: 57 | U75: Плиты торфяные теплоизоляционные | V75: 200 | W75: 15 | X75: 20 | Y75: 0.06 | Z75: 0.064 | AA75: 1.6 | AB75: 1.71 | AC75: 0.49
T76: 58 | U76: Пакля | V76: 150 | W76: 7 | X76: 12 | Y76: 0.06 | Z76: 0.07 | AA76: 1.3 | AB76: 1.47 | AC76: 0.49
T77: 59 | U77: Плиты из гипса (ГОСТ 6428) | V77: 1200 | W77: 4 | X77: 6 | Y77: 0.41 | Z77: 0.47 | AA77: 6.01 | AB77: 6.7 | AC77: 0.098
T78: 60 | U78: Плиты из гипса (ГОСТ 6428) | V78: 1000 | W78: 4 | X78: 6 | Y78: 0.29 | Z78: 0.35 | AA78: 4.62 | AB78: 5.28 | AC78: 0.11
T79: 61 | U79: Листы гипсовые обшивочные (сухая штукатурка) (ГОСТ 6266) | V79: 800 | W79: 4 | X79: 6 | Y79: 0.19 | Z79: 0.21 | AA79: 3.34 | AB79: 3.66 | AC79: 0.075
T80: 62 | U80: Изделия из вспученного перлита на битумном связующем (ГОСТ 16136) | V80: 400 | W80: 1 | X80: 2 | Y80: 0.12 | Z80: 0.13 | AA80: 2.45 | AB80: 2.59 | AC80: 0.04
T81: 63 | U81: То же | V81: 300 | W81: 1 | X81: 2 | Y81: 0.09 | Z81: 0.099 | AA81: 1.84 | AB81: 1.95 | AC81: 0.04
T82: Г. Засыпки
T83: 64 | U83: Гравий керамзитовый (ГОСТ 9757) | V83: 800 | W83: 2 | X83: 3 | Y83: 0.21 | Z83: 0.23 | AA83: 3.36 | AB83: 3.6 | AC83: 0.21
T84: 65 | U84: Гравий керамзитовый (ГОСТ 9757) | V84: 600 | W84: 2 | X84: 3 | Y84: 0.17 | Z84: 0.2 | AA84: 2.62 | AB84: 2.91 | AC84: 0.23
T85: 66 | U85: Гравий керамзитовый (ГОСТ 9757) | V85: 400 | W85: 2 | X85: 3 | Y85: 0.13 | Z85: 0.14 | AA85: 1.87 | AB85: 1.99 | AC85: 0.24
T86: 67 | U86: Гравий керамзитовый (ГОСТ 9757) | V86: 300 | W86: 2 | X86: 3 | Y86: 0.12 | Z86: 0.13 | AA86: 1.56 | AB86: 1.66 | AC86: 0.25
T87: 68 | U87: Гравий керамзитовый (ГОСТ 9757) | V87: 200 | W87: 2 | X87: 3 | Y87: 0.11 | Z87: 0.12 | AA87: 1.22 | AB87: 1.3 | AC87: 0.26
T88: 69 | U88: Гравий шунгизитовый (ГОСТ 9757) | V88: 800 | W88: 2 | X88: 4 | Y88: 0.2 | Z88: 0.23 | AA88: 3.28 | AB88: 3.68 | AC88: 0.21
T89: 70 | U89: Гравий шунгизитовый (ГОСТ 9757) | V89: 600 | W89: 2 | X89: 4 | Y89: 0.16 | Z89: 0.2 | AA89: 2.54 | AB89: 2.97 | AC89: 0.22
T90: 71 | U90: Гравий шунгизитовый (ГОСТ 9757) | V90: 400 | W90: 2 | X90: 4 | Y90: 0.13 | Z90: 0.14 | AA90: 1.87 | AB90: 2.03 | AC90: 0.23
T91: 72 | U91: Щебень из доменного шлака (ГОСТ 5578), шлаковой пемзы и аглопорита (ГОСТ 9757) | V91: 800 | W91: 2 | X91: 3 | Y91: 0.21 | Z91: 0.26 | AA91: 3.36 | AB91: 3.83 | AC91: 0.21
T92: 73 | U92: То же | V92: 600 | W92: 2 | X92: 3 | Y92: 0.18 | Z92: 0.21 | AA92: 2.7 | AB92: 2.98 | AC92: 0.23
T93: 74 | U93: » | V93: 400 | W93: 2 | X93: 3 | Y93: 0.14 | Z93: 0.16 | AA93: 1.94 | AB93: 2.12 | AC93: 0.24
T94: 75 | U94: Щебень и песок из перлита вспученного (ГОСТ 10832) | V94: 600 | W94: 1 | X94: 2 | Y94: 0.111 | Z94: 0.12 | AA94: 2.07 | AB94: 2.2 | AC94: 0.26
T95: 76 | U95: То же | V95: 400 | W95: 1 | X95: 2 | Y95: 0.087 | Z95: 0.09 | AA95: 1.5 | AB95: 1.56 | AC95: 0.3
T96: 77 | U96: » | V96: 200 | W96: 1 | X96: 2 | Y96: 0.076 | Z96: 0.08 | AA96: 0.99 | AB96: 1.04 | AC96: 0.34
T97: 78 | U97: Вермикулит вспученный (ГОСТ 12865) | V97: 200 | W97: 1 | X97: 3 | Y97: 0.09 | Z97: 0.11 | AA97: 1.08 | AB97: 1.24 | AC97: 0.23
T98: 79 | U98: Вермикулит вспученный (ГОСТ 12865) | V98: 100 | W98: 1 | X98: 3 | Y98: 0.076 | Z98: 0.08 | AA98: 0.7 | AB98: 0.75 | AC98: 0.3
T99: 80 | U99: Песок для строительных работ (ГОСТ 8736) | V99: 1600 | W99: 1 | X99: 2 | Y99: 0.47 | Z99: 0.58 | AA99: 6.95 | AB99: 7.91 | AC99: 0.17
T100: Д. Тёплые растворы (ГОСТ 28013)
T101: 81 | U101: Цементно-шлаковый | V101: 1400 | W101: 2 | X101: 4 | Y101: 0.52 | Z101: 0.64 | AA101: 7 | AB101: 8.11 | AC101: 0.11
T102: 82 | U102: Цементно-шлаковый | V102: 1200 | W102: 2 | X102: 4 | Y102: 0.47 | Z102: 0.58 | AA102: 6.16 | AB102: 7.15 | AC102: 0.14
T103: 83 | U103: Цементно-перлитовый | V103: 1000 | W103: 7 | X103: 12 | Y103: 0.26 | Z103: 0.3 | AA103: 4.64 | AB103: 5.42 | AC103: 0.15
T104: 84 | U104: Цементно-перлитовый | V104: 800 | W104: 7 | X104: 12 | Y104: 0.21 | Z104: 0.26 | AA104: 3.73 | AB104: 4.51 | AC104: 0.16
T105: 85 | U105: Гипсоперлитовый | V105: 600 | W105: 10 | X105: 15 | Y105: 0.19 | Z105: 0.23 | AA105: 3.24 | AB105: 3.84 | AC105: 0.17
T106: 86 | U106: Поризованный гипсоперлитовый | V106: 500 | W106: 6 | X106: 10 | Y106: 0.15 | Z106: 0.19 | AA106: 2.44 | AB106: 2.95 | AC106: 0.43
T107: 87 | U107: Поризованный гипсоперлитовый | V107: 400 | W107: 6 | X107: 10 | Y107: 0.13 | Z107: 0.15 | AA107: 2.03 | AB107: 2.35 | AC107: 0.53
T108: IІ Конструкционно-теплоизоляционные материалы
T109: А. Бетоны на природных пористых заполнителях (ГОСТ 25820, ГОСТ 22263)
T110: 88 | U110: Туфобетон | V110: 1800 | W110: 7 | X110: 10 | Y110: 0.87 | Z110: 0.99 | AA110: 11.38 | AB110: 12.79 | AC110: 0.09
T111: 89 | U111: Туфобетон | V111: 1600 | W111: 7 | X111: 10 | Y111: 0.7 | Z111: 0.81 | AA111: 9.62 | AB111: 10.91 | AC111: 0.11
T112: 90 | U112: Туфобетон | V112: 1400 | W112: 7 | X112: 10 | Y112: 0.52 | Z112: 0.58 | AA112: 7.76 | AB112: 8.63 | AC112: 0.11
T113: 91 | U113: Туфобетон | V113: 1200 | W113: 7 | X113: 10 | Y113: 0.41 | Z113: 0.47 | AA113: 6.38 | AB113: 7.2 | AC113: 0.12
T114: 92 | U114: Пемзобетон | V114: 1600 | W114: 4 | X114: 6 | Y114: 0.62 | Z114: 0.68 | AA114: 8.54 | AB114: 9.3 | AC114: 0.075
T115: 93 | U115: Пемзобетон | V115: 1400 | W115: 4 | X115: 6 | Y115: 0.49 | Z115: 0.54 | AA115: 7.1 | AB115: 7.76 | AC115: 0.083
T116: 94 | U116: Пемзобетон | V116: 1200 | W116: 4 | X116: 6 | Y116: 0.4 | Z116: 0.43 | AA116: 5.94 | AB116: 6.41 | AC116: 0.098
T117: 95 | U117: Пемзобетон | V117: 1000 | W117: 4 | X117: 6 | Y117: 0.3 | Z117: 0.34 | AA117: 4.69 | AB117: 5.2 | AC117: 0.11
T118: 96 | U118: Пемзобетон | V118: 800 | W118: 4 | X118: 6 | Y118: 0.22 | Z118: 0.26 | AA118: 3.6 | AB118: 4.07 | AC118: 0.12
T119: 97 | U119: Бетон на вулканическом шлаке | V119: 1600 | W119: 7 | X119: 10 | Y119: 0.64 | Z119: 0.7 | AA119: 9.2 | AB119: 10.14 | AC119: 0.075
T120: 98 | U120: Бетон на вулканическом шлаке | V120: 1400 | W120: 7 | X120: 10 | Y120: 0.52 | Z120: 0.58 | AA120: 7.76 | AB120: 8.63 | AC120: 0.083
T121: 99 | U121: Бетон на вулканическом шлаке | V121: 1200 | W121: 7 | X121: 10 | Y121: 0.41 | Z121: 0.47 | AA121: 6.38 | AB121: 7.2 | AC121: 0.09
T122: 100 | U122: Бетон на вулканическом шлаке | V122: 1000 | W122: 7 | X122: 10 | Y122: 0.29 | Z122: 0.35 | AA122: 4.9 | AB122: 5.67 | AC122: 0.098
T123: 101 | U123: Бетон на вулканическом шлаке | V123: 800 | W123: 7 | X123: 10 | Y123: 0.23 | Z123: 0.29 | AA123: 3.9 | AB123: 4.61 | AC123: 0.11
T124: Б. Бетоны на искусственных пористых заполнителях (ГОСТ 25820, ГОСТ 9757)
T125: 102 | U125: Керамзитобетон на керамзитовом песке и керамзитопенобетон | V125: 1800 | W125: 5 | X125: 10 | Y125: 0.8 | Z125: 0.92 | AA125: 10.5 | AB125: 12.33 | AC125: 0.09
T126: 103 | U126: Керамзитобетон на керамзитовом песке и керамзитопенобетон | V126: 1600 | W126: 5 | X126: 10 | Y126: 0.67 | Z126: 0.79 | AA126: 9.06 | AB126: 10.77 | AC126: 0.09
T127: 104 | U127: Керамзитобетон на керамзитовом песке и керамзитопенобетон | V127: 1400 | W127: 5 | X127: 10 | Y127: 0.56 | Z127: 0.65 | AA127: 7.75 | AB127: 9.14 | AC127: 0.098
T128: 105 | U128: Керамзитобетон на керамзитовом песке и керамзитопенобетон | V128: 1200 | W128: 5 | X128: 10 | Y128: 0.44 | Z128: 0.52 | AA128: 6.36 | AB128: 7.57 | AC128: 0.11
T129: 106 | U129: Керамзитобетон на керамзитовом песке и керамзитопенобетон | V129: 1000 | W129: 5 | X129: 10 | Y129: 0.33 | Z129: 0.41 | AA129: 5.03 | AB129: 6.13 | AC129: 0.14
T130: 107 | U130: Керамзитобетон на керамзитовом песке и керамзитопенобетон | V130: 800 | W130: 5 | X130: 10 | Y130: 0.24 | Z130: 0.31 | AA130: 3.83 | AB130: 4.77 | AC130: 0.19
T131: 108 | U131: Керамзитобетон на керамзитовом песке и керамзитопенобетон | V131: 600 | W131: 5 | X131: 10 | Y131: 0.2 | Z131: 0.26 | AA131: 3.03 | AB131: 3.78 | AC131: 0.26
T132: 109 | U132: Керамзитобетон на керамзитовом песке и керамзитопенобетон | V132: 500 | W132: 5 | X132: 10 | Y132: 0.17 | Z132: 0.23 | AA132: 2.55 | AB132: 3.25 | AC132: 0.3
T133: 110 | U133: Керамзитобетон на кварцевом песке с поризацией | V133: 1200 | W133: 4 | X133: 8 | Y133: 0.52 | Z133: 0.58 | AA133: 6.77 | AB133: 7.72 | AC133: 0.075
T134: 111 | U134: Керамзитобетон на кварцевом песке с поризацией | V134: 1000 | W134: 4 | X134: 8 | Y134: 0.41 | Z134: 0.47 | AA134: 5.49 | AB134: 6.35 | AC134: 0.075
T135: 112 | U135: Керамзитобетон на кварцевом песке с поризацией | V135: 800 | W135: 4 | X135: 8 | Y135: 0.29 | Z135: 0.35 | AA135: 4.13 | AB135: 4.9 | AC135: 0.075
T136: 113 | U136: Керамзитобетон на перлитовом песке | V136: 1000 | W136: 9 | X136: 13 | Y136: 0.35 | Z136: 0.41 | AA136: 5.57 | AB136: 6.43 | AC136: 0.15
T137: 114 | U137: Керамзитобетон на перлитовом песке | V137: 800 | W137: 9 | X137: 13 | Y137: 0.29 | Z137: 0.35 | AA137: 4.54 | AB137: 5.32 | AC137: 0.17
T138: 115 | U138: Шунгизитобетон | V138: 1400 | W138: 4 | X138: 7 | Y138: 0.56 | Z138: 0.64 | AA138: 7.59 | AB138: 8.6 | AC138: 0.098
T139: 116 | U139: Шунгизитобетон | V139: 1200 | W139: 4 | X139: 7 | Y139: 0.44 | Z139: 0.5 | AA139: 6.23 | AB139: 7.04 | AC139: 0.11
T140: 117 | U140: Шунгизитобетон | V140: 1000 | W140: 4 | X140: 7 | Y140: 0.33 | Z140: 0.38 | AA140: 4.92 | AB140: 5.6 | AC140: 0.14
T141: 118 | U141: Перлитобетон | V141: 1200 | W141: 10 | X141: 15 | Y141: 0.44 | Z141: 0.5 | AA141: 6.96 | AB141: 8.01 | AC141: 0.15
T142: 119 | U142: Перлитобетон | V142: 1000 | W142: 10 | X142: 15 | Y142: 0.33 | Z142: 0.38 | AA142: 5.5 | AB142: 6.38 | AC142: 0.19
T143: 120 | U143: Перлитобетон | V143: 800 | W143: 10 | X143: 15 | Y143: 0.27 | Z143: 0.33 | AA143: 4.45 | AB143: 5.32 | AC143: 0.26
T144: 121 | U144: Перлитобетон | V144: 600 | W144: 10 | X144: 15 | Y144: 0.19 | Z144: 0.23 | AA144: 2024-03-01 | AB144: 3.84 | AC144: 0.3
T145: 122 | U145: Шлакопемзобетон (термозитобетон) | V145: 1800 | W145: 5 | X145: 8 | Y145: 0.63 | Z145: 0.76 | AA145: 9.32 | AB145: 10.83 | AC145: 0.075
T146: 123 | U146: Шлакопемзобетон (термозитобетон) | V146: 1600 | W146: 5 | X146: 8 | Y146: 0.52 | Z146: 0.63 | AA146: 7.98 | AB146: 9.29 | AC146: 0.09
T147: 124 | U147: Шлакопемзобетон (термозитобетон) | V147: 1400 | W147: 5 | X147: 8 | Y147: 0.44 | Z147: 0.52 | AA147: 6.87 | AB147: 7.9 | AC147: 0.098
T148: 125 | U148: Шлакопемзобетон (термозитобетон) | V148: 1200 | W148: 5 | X148: 8 | Y148: 0.37 | Z148: 0.44 | AA148: 5.83 | AB148: 6.73 | AC148: 0.11
T149: 126 | U149: Шлакопемзобетон (термозитобетон) | V149: 1000 | W149: 5 | X149: 8 | Y149: 0.31 | Z149: 0.37 | AA149: 4.87 | AB149: 5.63 | AC149: 0.11
T150: 127 | U150: Шлакопемзопено- и шлакопемзогазобетон | V150: 1600 | W150: 8 | X150: 11 | Y150: 0.63 | Z150: 0.7 | AA150: 9.29 | AB150: 10.31 | AC150: 0.09
T151: 128 | U151: Шлакопемзопено- и шлакопемзогазобетон | V151: 1400 | W151: 8 | X151: 11 | Y151: 0.52 | Z151: 0.58 | AA151: 7.9 | AB151: 8.78 | AC151: 0.098
T152: 129 | U152: Шлакопемзопено- и шлакопемзогазобетон | V152: 1200 | W152: 8 | X152: 11 | Y152: 0.41 | Z152: 0.47 | AA152: 6.49 | AB152: 7.31 | AC152: 0.11
T153: 130 | U153: Шлакопемзопено- и шлакопемзогазобетон | V153: 1000 | W153: 8 | X153: 11 | Y153: 0.35 | Z153: 0.41 | AA153: 5.48 | AB153: 6.24 | AC153: 0.11
T154: 131 | U154: Шлакопемзопено- и шлакопемзогазобетон | V154: 800 | W154: 8 | X154: 11 | Y154: 0.29 | Z154: 0.35 | AA154: 4.46 | AB154: 5.15 | AC154: 0.13
T155: 132 | U155: Бетон на доменных гранулированных шлаках | V155: 1800 | W155: 5 | X155: 8 | Y155: 0.7 | Z155: 0.81 | AA155: 9.82 | AB155: 11.18 | AC155: 0.083
T156: 133 | U156: Бетон на доменных гранулированных шлаках | V156: 1600 | W156: 5 | X156: 8 | Y156: 0.58 | Z156: 0.64 | AA156: 8.43 | AB156: 9.37 | AC156: 0.09
T157: 134 | U157: Бетон на доменных гранулированных шлаках | V157: 1400 | W157: 5 | X157: 8 | Y157: 0.52 | Z157: 0.58 | AA157: 7.46 | AB157: 8.34 | AC157: 0.098
T158: 135 | U158: Бетон на доменных гранулированных шлаках | V158: 1200 | W158: 5 | X158: 8 | Y158: 0.47 | Z158: 0.52 | AA158: 6.57 | AB158: 7.31 | AC158: 0.11
T159: 136 | U159: Аглопоритобетон и бетоны на топливных (котельных) шлаках | V159: 1800 | W159: 5 | X159: 8 | Y159: 0.85 | Z159: 0.93 | AA159: 10.82 | AB159: 11.98 | AC159: 0.075
T160: 137 | U160: Аглопоритобетон и бетоны на топливных (котельных) шлаках | V160: 1600 | W160: 5 | X160: 8 | Y160: 0.72 | Z160: 0.78 | AA160: 9.39 | AB160: 10.34 | AC160: 0.083
T161: 138 | U161: Аглопоритобетон и бетоны на топливных (котельных) шлаках | V161: 1400 | W161: 5 | X161: 8 | Y161: 0.59 | Z161: 0.65 | AA161: 7.92 | AB161: 8.83 | AC161: 0.09
T162: 139 | U162: Аглопоритобетон и бетоны на топливных (котельных) шлаках | V162: 1200 | W162: 5 | X162: 8 | Y162: 0.48 | Z162: 0.54 | AA162: 6.64 | AB162: 7.45 | AC162: 0.11
T163: 140 | U163: Аглопоритобетон и бетоны на топливных (котельных) шлаках | V163: 1000 | W163: 5 | X163: 8 | Y163: 0.38 | Z163: 0.44 | AA163: 5.39 | AB163: 6.14 | AC163: 0.14
T164: 141 | U164: Бетон на зольном гравии | V164: 1400 | W164: 5 | X164: 8 | Y164: 0.52 | Z164: 0.58 | AA164: 7.46 | AB164: 8.34 | AC164: 0.09
T165: 142 | U165: Бетон на зольном гравии | V165: 1200 | W165: 5 | X165: 8 | Y165: 0.41 | Z165: 0.47 | AA165: 6.14 | AB165: 6.95 | AC165: 0.11
T166: 143 | U166: Бетон на зольном гравии | V166: 1000 | W166: 5 | X166: 8 | Y166: 0.3 | Z166: 0.35 | AA166: 4.79 | AB166: 5.48 | AC166: 0.12
T167: 144 | U167: Вермикулитобетон | V167: 800 | W167: 8 | X167: 13 | Y167: 0.23 | Z167: 0.26 | AA167: 3.97 | AB167: 4.58 | AC167: -
T168: 145 | U168: Вермикулитобетон | V168: 600 | W168: 8 | X168: 13 | Y168: 0.16 | Z168: 0.17 | AA168: 2.87 | AB168: 3.21 | AC168: 0.15
T169: 146 | U169: Вермикулитобетон | V169: 400 | W169: 8 | X169: 13 | Y169: 0.11 | Z169: 0.13 | AA169: 1.94 | AB169: 2.29 | AC169: 0.19
T170: 147 | U170: Вермикулитобетон | V170: 300 | W170: 8 | X170: 13 | Y170: 0.09 | Z170: 0.11 | AA170: 1.52 | AB170: 1.83 | AC170: 0.23
T171: 148 | U171: Полистиролбетон (ТУ 5741-159-002 84807, ТУ 5760-160-0284807) | V171: 600 | W171: 4 | X171: 8 | Y171: 0.175 | Z171: 0.2 | AA171: 3.07 | AB171: 3.49 | AC171: 0.068
T172: 149 | U172: Полистиролбетон (ТУ 5741-159-002 84807, ТУ 5760-160-0284807) | V172: 500 | W172: 4 | X172: 8 | Y172: 0.14 | Z172: 0.16 | AA172: 2.5 | AB172: 2.85 | AC172: 0.075
T173: 150 | U173: Полистиролбетон (ТУ 5741-159-002 84807, ТУ 5760-160-0284807) | V173: 400 | W173: 4 | X173: 8 | Y173: 0.12 | Z173: 0.135 | AA173: 2.07 | AB173: 2.34 | AC173: 0.085
T174: 151 | U174: Полистиролбетон (ТУ 5741-159-002 84807, ТУ 5760-160-0284807) | V174: 300 | W174: 4 | X174: 8 | Y174: 0.09 | Z174: 0.11 | AA174: 1.55 | AB174: 1.83 | AC174: 0.1
T175: 152 | U175: Полистиролбетон (ТУ 5741-159-002 84807, ТУ 5760-160-0284807) | V175: 200 | W175: 4 | X175: 8 | Y175: 0.07 | Z175: 0.08 | AA175: 1.12 | AB175: 1.28 | AC175: 0.12
T176: 153 | U176: Полистиролбетон (ТУ 5741-159-002 84807, ТУ 5760-160-0284807) | V176: 150 | W176: 4 | X176: 8 | Y176: 0.057 | Z176: 0.06 | AA176: 0.87 | AB176: 0.96 | AC176: 0.135
T177: В. Бетоны ячеистые (ГОСТ 25485, ГОСТ 5742)
T178: 154 | U178: Газо- и пенобетон, газо- и пеносиликат | V178: 1000 | W178: 10 | X178: 15 | Y178: 0.41 | Z178: 0.47 | AA178: 6.13 | AB178: 7.09 | AC178: 0.11
T179: 155 | U179: Газо- и пенобетон, газо- и пеносиликат | V179: 800 | W179: 10 | X179: 15 | Y179: 0.33 | Z179: 0.37 | AA179: 4.92 | AB179: 5.63 | AC179: 0.14
T180: 156 | U180: Газо- и пенобетон, газо- и пеносиликат | V180: 600 | W180: 8 | X180: 12 | Y180: 0.22 | Z180: 0.26 | AA180: 3.36 | AB180: 3.91 | AC180: 0.17
T181: 157 | U181: Газо- и пенобетон, газо- и пеносиликат | V181: 400 | W181: 8 | X181: 12 | Y181: 0.14 | Z181: 0.15 | AA181: 2.19 | AB181: 2.42 | AC181: 0.23
T182: 158 | U182: Газо- и пенобетон, газо- и пеносиликат | V182: 300 | W182: 8 | X182: 12 | Y182: 0.11 | Z182: 0.13 | AA182: 1.68 | AB182: 1.95 | AC182: 0.26
T183: 159 | U183: Газо- и пенозолобетон | V183: 1200 | W183: 15 | X183: 22 | Y183: 0.52 | Z183: 0.58 | AA183: 8.17 | AB183: 9.46 | AC183: 0.075
T184: 160 | U184: Газо- и пенозолобетон | V184: 1000 | W184: 15 | X184: 22 | Y184: 0.44 | Z184: 0.5 | AA184: 6.86 | AB184: 8.01 | AC184: 0.098
T185: 161 | U185: Газо- и пенозолобетон | V185: 800 | W185: 15 | X185: 22 | Y185: 0.35 | Z185: 0.41 | AA185: 5.48 | AB185: 6.49 | AC185: 0.12
T186: Г. Кирпичная кладка из сплошного кирпича
T187: 162 | U187: Глиняного обыкновенного (ГОСТ 530) на цементно-песчаном растворе | V187: 1800 | W187: 1 | X187: 2 | Y187: 0.7 | Z187: 0.81 | AA187: 9.2 | AB187: 10.12 | AC187: 0.11
T188: 163 | U188: Глиняного обыкновенного на цементно-шлаковом растворе | V188: 1700 | W188: 1.5 | X188: 3 | Y188: 0.64 | Z188: 0.76 | AA188: 8.64 | AB188: 9.7 | AC188: 0.12
T189: 164 | U189: Глиняного обыкновенного на цементно-перлитовом растворе | V189: 1600 | W189: 2 | X189: 4 | Y189: 0.58 | Z189: 0.7 | AA189: 8.08 | AB189: 9.23 | AC189: 0.15
T190: 165 | U190: Силикатного (ГОСТ 379) на цементно-песчаном растворе | V190: 1800 | W190: 2 | X190: 4 | Y190: 0.76 | Z190: 0.87 | AA190: 9.77 | AB190: 10.9 | AC190: 0.11
T191: 166 | U191: Трепельного (ГОСТ 530) на цементно-песчаном растворе | V191: 1200 | W191: 2 | X191: 4 | Y191: 0.47 | Z191: 0.52 | AA191: 6.26 | AB191: 6.49 | AC191: 0.19
T192: 167 | U192: Трепельного (ГОСТ 530) на цементно-песчаном растворе | V192: 1000 | W192: 2 | X192: 4 | Y192: 0.41 | Z192: 0.47 | AA192: 5.35 | AB192: 5.96 | AC192: 0.23
T193: 168 | U193: Шлакового на цементно-песчаном растворе | V193: 1500 | W193: 1.5 | X193: 3 | Y193: 0.64 | Z193: 0.7 | AA193: 8.12 | AB193: 8.76 | AC193: 0.11
T194: Д. Кирпичная кладка из пустотного кирпича
T195: 169 | U195: Керамического пустотного плотностью 1400 кг/м3 (брутто) на цементно-песчаном растворе | V195: 1600 | W195: 1 | X195: 2 | Y195: 0.58 | Z195: 0.64 | AA195: 7.91 | AB195: 8.48 | AC195: 0.14
T196: 170 | U196: Керамического пустотного плотностью 1300 кг/м3 (брутто) на цементно-песчаном растворе | V196: 1400 | W196: 1 | X196: 2 | Y196: 0.52 | Z196: 0.58 | AA196: 7.01 | AB196: 7.56 | AC196: 0.16
T197: 171 | U197: Керамического пустотного плотностью 1000 кг/м3 (брутто) на цементно-песчаном растворе | V197: 1200 | W197: 1 | X197: 2 | Y197: 0.47 | Z197: 0.52 | AA197: 6.16 | AB197: 6.62 | AC197: 0.17
T198: 172 | U198: Силикатного одиннадцатипустотного (ГОСТ 379) на цементно-песчаном растворе | V198: 1500 | W198: 2 | X198: 4 | Y198: 0.7 | Z198: 0.81 | AA198: 8.59 | AB198: 9.63 | AC198: 0.13
T199: 173 | U199: Силикатного четырнадцатипустотного (ГОСТ 379) на цементно-песчаном растворе | V199: 1400 | W199: 2 | X199: 4 | Y199: 0.64 | Z199: 0.76 | AA199: 7.93 | AB199: 9.01 | AC199: 0.14
T200: Е. Дерево и изделия из него
T201: 174 | U201: Сосна и ель поперек волокон (ГОСТ 8486, ГОСТ 9463) | V201: 500 | W201: 15 | X201: 20 | Y201: 0.14 | Z201: 0.18 | AA201: 3.87 | AB201: 4.54 | AC201: 0.06
... 50 more rows

Sheet ТП
D1: Расчёт теплопотерь через ограждающие конструкции помещений
D4: Расчётная температура наружного воздуха. text, °C: | M4: =ТТ!G4 -> -22
D6: Таблица 1 - Сопротивления теплопередаче Rо и коэффициенты теплопередачи К
D7: Наименование конструкции | L7: Сокр. | M7: R0, м²·°C/Вт | O7: К, Вт/(м²·°C) | Q7: n
D8: - наружная стена | L8: нс | M8: =ТТ!M14 -> 8.694404894 | O8: =IF(M8="","",ROUND(1/M8,3)) -> 0.115 | Q8: 1
D9: - наружная стена лестничной клетки | L9: нс1 | M9: =ТТ!M14 -> 8.694404894 | O9: =IF(M9="","",ROUND(1/M9,3)) -> 0.115
D10: - перекрытие над неотапливаемым подвалом | L10: нп | O10: =IF(M10="","",ROUND(1/M10,3)) -> 
D11: - бесчердачное/чердачное перекрытие | L11: п | M11: =ТТ!M26 -> 9.249329881 | O11: =IF(M11="","",ROUND(1/M11,3)) -> 0.108 | Q11: 1
D12: - двери наружные | L12: дн | M12: =ТТ!M39 -> 1.111111111 | O12: =IF(M12="","",ROUND(1/M12,3)) -> 0.9 | Q12: 1
D13: - перекрытие над отапливаемым техэтажом | L13: пл | M13: =ТТ!M18 -> 1.224770164 | O13: =IF(M13="","",ROUND(1/M13,3)) -> 0.816 | Q13: 1
D14: - двери внутренние | L14: дв | M14: 0.55 | O14: 1.818 | Q14: 1
D15: - внутренняя стена в тамбуре ЛК | L15: вс | M15: =ТТ!M22 -> 0.7834207896 | O15: 1.276 | Q15: 1
D16: - остекление | L16: о | M16: =ТТ!M38 -> 0.9090909091 | O16: 1.1 | Q16: 1
D17: - пол I зона | L17: пл-1 | M17: =ТТ!M41 -> 10.70376603 | O17: 0.093 | Q17: 1
D18: - пол Iа зона | L18: пл-1а | Q18: 1
D19: - пол II(а) зона | L19: пл-2 | M19: =ТТ!M43 -> 12.90376603 | O19: 0.077 | Q19: 1
D20: - пол IIб зона | L20: пл-2б | Q20: 1
D21: - пол III зона | L21: пл-3 | M21: =ТТ!M45 -> 17.20376603 | O21: 0.058 | Q21: 1
D22: - пол IV зона | L22: пл-4 | M22: =ТТ!M47 -> 22.80376603 | O22: 0.044 | Q22: 1
D24: Коэффициент учета шага номенклатурного ряда прибора β1 | O24: 1.048
D25: Коэффициент учета теплопотерь через заприборный участок β2 | O25: 1.02
T26: =SUM(T41:T222) -> 4465 | U26: =SUM(U41:U222) -> 4805
A27: Таблица 2 - Расчёт теплопотерь через ограждающие конструкции помещений
A28: № помещения | B28: Наименование помещения и температура, °С | E28: Характеристика ограждения | J28: Коэф. т/передачи k, Вт/(м²·°C) | K28: Коэффициент n | L28: Разность темпе- ратур, (tint – text), °С | M28: Основные тепло-потери Qо, Вт | N28: Добавки к т/потерям | Q28: Общие потери тепла Qогр, Вт | R28: Расход инфильт. воздуха Lинф, м³/ч | S28: Потери тепла на нагрев инф. возд. Qинф, Вт | T28: Суммарные поте- ри тепла Qсум, Вт | U28: Мощность отопительных приборов, Вт
E29: наименование | F29: сторона света | G29: размеры, м | I29: площадь, м² | N29: на сторону света | O29: прочие | P29: коэффицинет (1+Σβ)
G30: H | H30: L
A35: ="1 этаж. Q₁ = "&SUM(T41:T100)&" Вт" -> 1 этаж. Q₁ = 2830 Вт
A36: 101 | B36: Tuulekoda | E36: нс | F36: в | G36: 3.25 | H36: 2.39 | I36: =IF(E36="","",G36*H36)-I38 -> 5.6175 | J36: =IF(E36="","",IF(E36="о",VLOOKUP(E36,$L$8:$P$22,4,FALSE)-VLOOKUP("нс",$L$8:$P$22,4,FALSE),VLOOKUP(E36,$L$8:$P$22,4,FALSE))) -> 0.115 | K36: =IF(E36="","",VLOOKUP(E36,$L$8:$Q$22,6,FALSE)) -> 1 | L36: =IF(E36="","",IF(OR(E36=$L$15,E36=$L$14,E36=$L$13),B37-B40,B37-$M$4)) -> 41 | M36: =IF(E36="","",J36*K36*I36*L36) -> 26.4865125 | N36: =IF(E36="","",IF(F36="в",0.1,IF(F36="св",0.1,IF(F36="с",0.1,IF(F36="сз",0.1,IF(F36="з",0.05,IF(F36="юв",0.05,0))))))) -> 0.1 | O36: 0.1 | P36: =IF(E36="","",1+N36+O36) -> 1.2 | Q36: =IF(G36=0,"",CEILING(M36*P36,5)) -> 35
B37: 19 | E37: пл-1 | G37: 2.623 | H37: =H36 -> 2.39 | I37: =IF(E37="","",G37*H37) -> 6.26897 | J37: =IF(E37="","",IF(E37="о",VLOOKUP(E37,$L$8:$P$22,4,FALSE)-VLOOKUP("нс",$L$8:$P$22,4,FALSE),VLOOKUP(E37,$L$8:$P$22,4,FALSE))) -> 0.093 | K37: =IF(E37="","",VLOOKUP(E37,$L$8:$Q$22,6,FALSE)) -> 1 | L37: =IF(E37="","",IF(OR(E37=$L$15,E37=$L$14,E37=$L$13),B37-B40,B37-$M$4)) -> 41 | M37: =IF(E37="","",J37*K37*I37*L37) -> 23.90358261 | N37: =IF(E37="","",IF(F37="в",0.1,IF(F37="св",0.1,IF(F37="с",0.1,IF(F37="сз",0.1,IF(F37="з",0.05,IF(F37="юв",0.05,0))))))) -> 0 | P37: =IF(E37="","",1+N37+O37) -> 1 | Q37: =IF(G37=0,"",CEILING(M37*P37,5)) -> 25
B38: Sп = | C38: 4.54 | D38: м² | E38: дн | F38: в | G38: 2.15 | H38: 1 | I38: =IF(E38="","",G38*H38) -> 2.15 | J38: =IF(E38="","",IF(E38="о",VLOOKUP(E38,$L$8:$P$22,4,FALSE)-VLOOKUP("нс",$L$8:$P$22,4,FALSE),VLOOKUP(E38,$L$8:$P$22,4,FALSE))) -> 0.9 | K38: =IF(E38="","",VLOOKUP(E38,$L$8:$Q$22,6,FALSE)) -> 1 | L38: =IF(E38="","",IF(OR(E38=$L$15,E38=$L$14,E38=$L$13),B37-B40,B37-$M$4)) -> 41 | M38: =IF(E38="","",J38*K38*I38*L38) -> 79.335 | N38: =IF(E38="","",IF(F38="в",0.1,IF(F38="св",0.1,IF(F38="с",0.1,IF(F38="сз",0.1,IF(F38="з",0.05,IF(F38="юв",0.05,0))))))) -> 0.1 | O38: 0.1 | P38: =IF(E38="","",1+N38+O38) -> 1.2 | Q38: =IF(G38=0,"",CEILING(M38*P38,5)) -> 100
B39: =IF(OR(E36=$L$15,E36=$L$14,E36=$L$13),"В смежн. пом.",IF(OR(E37=$L$15,E37=$L$14,E37=$L$13),"В смежн. пом.",IF(OR(E38=$L$15,E38=$L$14,E38=$L$13),"В смежн. пом.",IF(OR(E39=$L$15,E39=$L$14,E39=$L$13),"В смежн. пом.",IF(OR(E40=$L$15,E40=$L$14,E40=$L$13),"В смежн. пом.",""))))) -> В смежн. пом. | E39: вс | F39: с | G39: 3.25 | H39: 2.39 | I39: =IF(E39="","",G39*H39)-I40 -> 5.6675 | J39: =IF(E39="","",IF(E39="о",VLOOKUP(E39,$L$8:$P$22,4,FALSE)-VLOOKUP("нс",$L$8:$P$22,4,FALSE),VLOOKUP(E39,$L$8:$P$22,4,FALSE))) -> 1.276 | K39: =IF(E39="","",VLOOKUP(E39,$L$8:$Q$22,6,FALSE)) -> 1 | L39: =IF(E39="","",IF(OR(E39=$L$15,E39=$L$14,E39=$L$13),B37-B40,B37-$M$4)) -> 9 | M39: =IF(E39="","",J39*K39*I39*L39) -> 65.08557 | N39: =IF(E39="","",IF(F39="в",0.1,IF(F39="св",0.1,IF(F39="с",0.1,IF(F39="сз",0.1,IF(F39="з",0.05,IF(F39="юв",0.05,0))))))) -> 0.1 | O39: 0.1 | P39: =IF(E39="","",1+N39+O39) -> 1.2 | Q39: =IF(G39=0,"",CEILING(M39*P39,5)) -> 80
B40: 10 | E40: дв | G40: 2.1 | H40: 1 | I40: =IF(E40="","",G40*H40) -> 2.1 | J40: =IF(E40="","",IF(E40="о",VLOOKUP(E40,$L$8:$P$22,4,FALSE)-VLOOKUP("нс",$L$8:$P$22,4,FALSE),VLOOKUP(E40,$L$8:$P$22,4,FALSE))) -> 1.818 | K40: =IF(E40="","",VLOOKUP(E40,$L$8:$Q$22,6,FALSE)) -> 1 | L40: =IF(E40="","",IF(OR(E40=$L$15,E40=$L$14,E40=$L$13),B37-B40,B37-$M$4)) -> 9 | M40: =IF(E40="","",J40*K40*I40*L40) -> 34.3602 | N40: =IF(E40="","",IF(F40="в",0.1,IF(F40="св",0.1,IF(F40="с",0.1,IF(F40="сз",0.1,IF(F40="з",0.05,IF(F40="юв",0.05,0))))))) -> 0 | P40: =IF(E40="","",1+N40+O40) -> 1 | Q40: =IF(G40=0,"",CEILING(M40*P40,5)) -> 35
P41: Σ | Q41: =SUM(Q36:Q40) -> 275 | S41: =CEILING(R41*(353/(273+0.5*(B37+$M$4)))*1005*(B37-$M$4)/3600,5) -> 0 | T41: =S41+Q41 -> 275 | U41: =CEILING(T41*$O$24*$O$25,5) -> 295
A42: 102 | B42: Esik | E42: вс | F42: с | G42: 3.25 | H42: 1.795 | I42: =IF(E42="","",G42*H42) -> 5.83375 | J42: =IF(E42="","",IF(E42="о",VLOOKUP(E42,$L$8:$P$22,4,FALSE)-VLOOKUP("нс",$L$8:$P$22,4,FALSE),VLOOKUP(E42,$L$8:$P$22,4,FALSE))) -> 1.276 | K42: =IF(E42="","",VLOOKUP(E42,$L$8:$Q$22,6,FALSE)) -> 1 | L42: =IF(E42="","",IF(OR(E42=$L$15,E42=$L$14,E42=$L$13),B43-B46,B43-$M$4)) -> 11 | M42: =IF(E42="","",J42*K42*I42*L42) -> 81.882515 | N42: =IF(E42="","",IF(F42="в",0.1,IF(F42="св",0.1,IF(F42="с",0.1,IF(F42="сз",0.1,IF(F42="з",0.05,IF(F42="юв",0.05,0))))))) -> 0.1 | O42: 0.1 | P42: =IF(E42="","",1+N42+O42) -> 1.2 | Q42: =IF(G42=0,"",CEILING(M42*P42,5)) -> 100
B43: 21 | E43: пл-2 | F43: с | G43: 4.2 | H43: 1.36 | I43: =IF(E43="","",G43*H43) -> 5.712 | J43: =IF(E43="","",IF(E43="о",VLOOKUP(E43,$L$8:$P$22,4,FALSE)-VLOOKUP("нс",$L$8:$P$22,4,FALSE),VLOOKUP(E43,$L$8:$P$22,4,FALSE))) -> 0.077 | K43: =IF(E43="","",VLOOKUP(E43,$L$8:$Q$22,6,FALSE)) -> 1 | L43: =IF(E43="","",IF(OR(E43=$L$15,E43=$L$14,E43=$L$13),B43-B46,B43-$M$4)) -> 43 | M43: =IF(E43="","",J43*K43*I43*L43) -> 18.912432 | N43: =IF(E43="","",IF(F43="в",0.1,IF(F43="св",0.1,IF(F43="с",0.1,IF(F43="сз",0.1,IF(F43="з",0.05,IF(F43="юв",0.05,0))))))) -> 0.1 | O43: 0.1 | P43: =IF(E43="","",1+N43+O43) -> 1.2 | Q43: =IF(G43=0,"",CEILING(M43*P43,5)) -> 25
B44: Sп = | C44: 5.73 | D44: м² | I44: =IF(E44="","",G44*H44) ->  | J44: =IF(E44="","",IF(E44="о",VLOOKUP(E44,$L$8:$P$22,4,FALSE)-VLOOKUP("нс",$L$8:$P$22,4,FALSE),VLOOKUP(E44,$L$8:$P$22,4,FALSE))) ->  | K44: =IF(E44="","",VLOOKUP(E44,$L$8:$Q$22,6,FALSE)) ->  | L44: =IF(E44="","",IF(OR(E44=$L$15,E44=$L$14,E44=$L$13),B43-B46,B43-$M$4)) ->  | M44: =IF(E44="","",J44*K44*I44*L44) ->  | N44: =IF(E44="","",IF(F44="в",0.1,IF(F44="св",0.1,IF(F44="с",0.1,IF(F44="сз",0.1,IF(F44="з",0.05,IF(F44="юв",0.05,0))))))) ->  | P44: =IF(E44="","",1+N44+O44) ->  | Q44: =IF(G44=0,"",CEILING(M44*P44,5)) -> 
B45: =IF(OR(E42=$L$15,E42=$L$14,E42=$L$13),"В смежн. пом.",IF(OR(E43=$L$15,E43=$L$14,E43=$L$13),"В смежн. пом.",IF(OR(E44=$L$15,E44=$L$14,E44=$L$13),"В смежн. пом.",IF(OR(E45=$L$15,E45=$L$14,E45=$L$13),"В смежн. пом.",IF(OR(E46=$L$15,E46=$L$14,E46=$L$13),"В смежн. пом.",""))))) -> В смежн. пом. | I45: =IF(E45="","",G45*H45) ->  | J45: =IF(E45="","",IF(E45="о",VLOOKUP(E45,$L$8:$P$22,4,FALSE)-VLOOKUP("нс",$L$8:$P$22,4,FALSE),VLOOKUP(E45,$L$8:$P$22,4,FALSE))) ->  | K45: =IF(E45="","",VLOOKUP(E45,$L$8:$Q$22,6,FALSE)) ->  | L45: =IF(E45="","",IF(OR(E45=$L$15,E45=$L$14,E45=$L$13),B43-B46,B43-$M$4)) ->  | M45: =IF(E45="","",J45*K45*I45*L45) ->  | N45: =IF(E45="","",IF(F45="в",0.1,IF(F45="св",0.1,IF(F45="с",0.1,IF(F45="сз",0.1,IF(F45="з",0.05,IF(F45="юв",0.05,0))))))) ->  | P45: =IF(E45="","",1+N45+O45) ->  | Q45: =IF(G45=0,"",CEILING(M45*P45,5)) -> 
B46: 10 | I46: =IF(E46="","",G46*H46) ->  | J46: =IF(E46="","",IF(E46="о",VLOOKUP(E46,$L$8:$P$22,4,FALSE)-VLOOKUP("нс",$L$8:$P$22,4,FALSE),VLOOKUP(E46,$L$8:$P$22,4,FALSE))) ->  | K46: =IF(E46="","",VLOOKUP(E46,$L$8:$Q$22,6,FALSE)) ->  | L46: =IF(E46="","",IF(OR(E46=$L$15,E46=$L$14,E46=$L$13),B43-B46,B43-$M$4)) ->  | M46: =IF(E46="","",J46*K46*I46*L46) ->  | N46: =IF(E46="","",IF(F46="в",0.1,IF(F46="св",0.1,IF(F46="с",0.1,IF(F46="сз",0.1,IF(F46="з",0.05,IF(F46="юв",0.05,0))))))) ->  | P46: =IF(E46="","",1+N46+O46) ->  | Q46: =IF(G46=0,"",CEILING(M46*P46,5)) -> 
P47: Σ | Q47: =SUM(Q42:Q46) -> 125 | R47: =IF(B42="Кухня",30,IF(B42="ЖК",CEILING(C44*3,1),IF(B42="Кабинет",CEILING(C44*3,1),0))) -> 0 | S47: =CEILING(R47*(353/(273+0.5*(B43+$M$4)))*1005*(B43-$M$4)/3600,5) -> 0 | T47: =S47+Q47 -> 125 | U47: =CEILING(T47*$O$24*$O$25,10) -> 140
A48: 103 | B48: Puhkeruum | E48: нс | F48: с | G48: 3.25 | H48: 4.215 | I48: =IF(E48="","",G48*H48) -> 13.69875 | J48: =IF(E48="","",IF(E48="о",VLOOKUP(E48,$L$8:$P$22,4,FALSE)-VLOOKUP("нс",$L$8:$P$22,4,FALSE),VLOOKUP(E48,$L$8:$P$22,4,FALSE))) -> 0.115 | K48: =IF(E48="","",VLOOKUP(E48,$L$8:$Q$22,6,FALSE)) -> 1 | L48: =IF(E48="","",IF(OR(E48=$L$15,E48=$L$14,E48=$L$13),B49-B52,B49-$M$4)) -> 44 | M48: =IF(E48="","",J48*K48*I48*L48) -> 69.315675 | N48: =IF(E48="","",IF(F48="в",0.1,IF(F48="св",0.1,IF(F48="с",0.1,IF(F48="сз",0.1,IF(F48="з",0.05,IF(F48="юв",0.05,0))))))) -> 0.1 | O48: 0.1 | P48: =IF(E48="","",1+N48+O48) -> 1.2 | Q48: =IF(G48=0,"",CEILING(M48*P48,5)) -> 85
B49: 22 | E49: пл-1 | G49: 2 | H49: =H48 -> 4.215 | I49: =IF(E49="","",G49*H49) -> 8.43 | J49: =IF(E49="","",IF(E49="о",VLOOKUP(E49,$L$8:$P$22,4,FALSE)-VLOOKUP("нс",$L$8:$P$22,4,FALSE),VLOOKUP(E49,$L$8:$P$22,4,FALSE))) -> 0.093 | K49: =IF(E49="","",VLOOKUP(E49,$L$8:$Q$22,6,FALSE)) -> 1 | L49: =IF(E49="","",IF(OR(E49=$L$15,E49=$L$14,E49=$L$13),B49-B52,B49-$M$4)) -> 44 | M49: =IF(E49="","",J49*K49*I49*L49) -> 34.49556 | N49: =IF(E49="","",IF(F49="в",0.1,IF(F49="св",0.1,IF(F49="с",0.1,IF(F49="сз",0.1,IF(F49="з",0.05,IF(F49="юв",0.05,0))))))) -> 0 | O49: 0.1 | P49: =IF(E49="","",1+N49+O49) -> 1.1 | Q49: =IF(G49=0,"",CEILING(M49*P49,5)) -> 40
B50: Sп = | C50: 6.3 | D50: м² | E50: пл-2 | G50: 0.6 | H50: =H48 -> 4.215 | I50: =IF(E50="","",G50*H50) -> 2.529 | J50: =IF(E50="","",IF(E50="о",VLOOKUP(E50,$L$8:$P$22,4,FALSE)-VLOOKUP("нс",$L$8:$P$22,4,FALSE),VLOOKUP(E50,$L$8:$P$22,4,FALSE))) -> 0.077 | K50: =IF(E50="","",VLOOKUP(E50,$L$8:$Q$22,6,FALSE)) -> 1 | L50: =IF(E50="","",IF(OR(E50=$L$15,E50=$L$14,E50=$L$13),B49-B52,B49-$M$4)) -> 44 | M50: =IF(E50="","",J50*K50*I50*L50) -> 8.568252 | N50: =IF(E50="","",IF(F50="в",0.1,IF(F50="св",0.1,IF(F50="с",0.1,IF(F50="сз",0.1,IF(F50="з",0.05,IF(F50="юв",0.05,0))))))) -> 0 | O50: 0.1 | P50: =IF(E50="","",1+N50+O50) -> 1.1 | Q50: =IF(G50=0,"",CEILING(M50*P50,5)) -> 10
B51: =IF(OR(E48=$L$15,E48=$L$14,E48=$L$13),"В смежн. пом.",IF(OR(E49=$L$15,E49=$L$14,E49=$L$13),"В смежн. пом.",IF(OR(E50=$L$15,E50=$L$14,E50=$L$13),"В смежн. пом.",IF(OR(E51=$L$15,E51=$L$14,E51=$L$13),"В смежн. пом.",IF(OR(E52=$L$15,E52=$L$14,E52=$L$13),"В смежн. пом.",""))))) ->  | I51: =IF(E51="","",G51*H51) ->  | J51: =IF(E51="","",IF(E51="о",VLOOKUP(E51,$L$8:$P$22,4,FALSE)-VLOOKUP("нс",$L$8:$P$22,4,FALSE),VLOOKUP(E51,$L$8:$P$22,4,FALSE))) ->  | K51: =IF(E51="","",VLOOKUP(E51,$L$8:$Q$22,6,FALSE)) ->  | L51: =IF(E51="","",IF(OR(E51=$L$15,E51=$L$14,E51=$L$13),B49-B52,B49-$M$4)) ->  | M51: =IF(E51="","",J51*K51*I51*L51) ->  | N51: =IF(E51="","",IF(F51="в",0.1,IF(F51="св",0.1,IF(F51="с",0.1,IF(F51="сз",0.1,IF(F51="з",0.05,IF(F51="юв",0.05,0))))))) ->  | P51: =IF(E51="","",1+N51+O51) ->  | Q51: =IF(G51=0,"",CEILING(M51*P51,5)) -> 
I52: =IF(E52="","",G52*H52) ->  | J52: =IF(E52="","",IF(E52="о",VLOOKUP(E52,$L$8:$P$22,4,FALSE)-VLOOKUP("нс",$L$8:$P$22,4,FALSE),VLOOKUP(E52,$L$8:$P$22,4,FALSE))) ->  | K52: =IF(E52="","",VLOOKUP(E52,$L$8:$Q$22,6,FALSE)) ->  | L52: =IF(E52="","",IF(OR(E52=$L$15,E52=$L$14,E52=$L$13),B49-B52,B49-$M$4)) ->  | M52: =IF(E52="","",J52*K52*I52*L52) ->  | N52: =IF(E52="","",IF(F52="в",0.1,IF(F52="св",0.1,IF(F52="с",0.1,IF(F52="сз",0.1,IF(F52="з",0.05,IF(F52="юв",0.05,0))))))) ->  | P52: =IF(E52="","",1+N52+O52) ->  | Q52: =IF(G52=0,"",CEILING(M52*P52,5)) -> 
P53: Σ | Q53: =SUM(Q48:Q52) -> 135 | R53: =IF(B48="Кухня",30,IF(B48="ЖК",CEILING(C50*3,1),IF(B48="Кабинет",CEILING(C50*3,1),0))) -> 0 | S53: =CEILING(R53*(353/(273+0.5*(B49+$M$4)))*1005*(B49-$M$4)/3600,5) -> 0 | T53: =S53+Q53 -> 135 | U53: =CEILING(T53*$O$24*$O$25,5) -> 145
A54: 104 | B54: Leiliruum | E54: нс | F54: с | G54: 3.25 | H54: 2.1 | I54: =IF(E54="","",G54*H54) -> 6.825 | J54: =IF(E54="","",IF(E54="о",VLOOKUP(E54,$L$8:$P$22,4,FALSE)-VLOOKUP("нс",$L$8:$P$22,4,FALSE),VLOOKUP(E54,$L$8:$P$22,4,FALSE))) -> 0.115 | K54: =IF(E54="","",VLOOKUP(E54,$L$8:$Q$22,6,FALSE)) -> 1 | L54: =IF(E54="","",IF(OR(E54=$L$15,E54=$L$14,E54=$L$13),B55-B58,B55-$M$4)) -> 43 | M54: =IF(E54="","",J54*K54*I54*L54) -> 33.749625 | N54: =IF(E54="","",IF(F54="в",0.1,IF(F54="св",0.1,IF(F54="с",0.1,IF(F54="сз",0.1,IF(F54="з",0.05,IF(F54="юв",0.05,0))))))) -> 0.1 | P54: =IF(E54="","",1+N54+O54) -> 1.1 | Q54: =IF(G54=0,"",CEILING(M54*P54,5)) -> 40
B55: 21 | I55: =IF(E55="","",G55*H55) ->  | J55: =IF(E55="","",IF(E55="о",VLOOKUP(E55,$L$8:$P$22,4,FALSE)-VLOOKUP("нс",$L$8:$P$22,4,FALSE),VLOOKUP(E55,$L$8:$P$22,4,FALSE))) ->  | K55: =IF(E55="","",VLOOKUP(E55,$L$8:$Q$22,6,FALSE)) ->  | L55: =IF(E55="","",IF(OR(E55=$L$15,E55=$L$14,E55=$L$13),B55-B58,B55-$M$4)) ->  | M55: =IF(E55="","",J55*K55*I55*L55) ->  | N55: =IF(E55="","",IF(F55="в",0.1,IF(F55="св",0.1,IF(F55="с",0.1,IF(F55="сз",0.1,IF(F55="з",0.05,IF(F55="юв",0.05,0))))))) ->  | P55: =IF(E55="","",1+N55+O55) ->  | Q55: =IF(G55=0,"",CEILING(M55*P55,5)) -> 
B56: Sп = | C56: 3.8 | D56: м² | E56: пл-1 | G56: 2 | H56: =H54 -> 2.1 | I56: =IF(E56="","",G56*H56) -> 4.2 | J56: =IF(E56="","",IF(E56="о",VLOOKUP(E56,$L$8:$P$22,4,FALSE)-VLOOKUP("нс",$L$8:$P$22,4,FALSE),VLOOKUP(E56,$L$8:$P$22,4,FALSE))) -> 0.093 | K56: =IF(E56="","",VLOOKUP(E56,$L$8:$Q$22,6,FALSE)) -> 1 | L56: =IF(E56="","",IF(OR(E56=$L$15,E56=$L$14,E56=$L$13),B55-B58,B55-$M$4)) -> 43 | M56: =IF(E56="","",J56*K56*I56*L56) -> 16.7958 | N56: =IF(E56="","",IF(F56="в",0.1,IF(F56="св",0.1,IF(F56="с",0.1,IF(F56="сз",0.1,IF(F56="з",0.05,IF(F56="юв",0.05,0))))))) -> 0 | P56: =IF(E56="","",1+N56+O56) -> 1 | Q56: =IF(G56=0,"",CEILING(M56*P56,5)) -> 20
B57: =IF(OR(E54=$L$15,E54=$L$14,E54=$L$13),"В смежн. пом.",IF(OR(E55=$L$15,E55=$L$14,E55=$L$13),"В смежн. пом.",IF(OR(E56=$L$15,E56=$L$14,E56=$L$13),"В смежн. пом.",IF(OR(E57=$L$15,E57=$L$14,E57=$L$13),"В смежн. пом.",IF(OR(E58=$L$15,E58=$L$14,E58=$L$13),"В смежн. пом.",""))))) ->  | E57: пл-2 | G57: 0.65 | H57: =H54 -> 2.1 | I57: =IF(E57="","",G57*H57) -> 1.365 | J57: =IF(E57="","",IF(E57="о",VLOOKUP(E57,$L$8:$P$22,4,FALSE)-VLOOKUP("нс",$L$8:$P$22,4,FALSE),VLOOKUP(E57,$L$8:$P$22,4,FALSE))) -> 0.077 | K57: =IF(E57="","",VLOOKUP(E57,$L$8:$Q$22,6,FALSE)) -> 1 | L57: =IF(E57="","",IF(OR(E57=$L$15,E57=$L$14,E57=$L$13),B55-B58,B55-$M$4)) -> 43 | M57: =IF(E57="","",J57*K57*I57*L57) -> 4.519515 | N57: =IF(E57="","",IF(F57="в",0.1,IF(F57="св",0.1,IF(F57="с",0.1,IF(F57="сз",0.1,IF(F57="з",0.05,IF(F57="юв",0.05,0))))))) -> 0 | P57: =IF(E57="","",1+N57+O57) -> 1 | Q57: =IF(G57=0,"",CEILING(M57*P57,5)) -> 5
I58: =IF(E58="","",G58*H58) ->  | J58: =IF(E58="","",IF(E58="о",VLOOKUP(E58,$L$8:$P$22,4,FALSE)-VLOOKUP("нс",$L$8:$P$22,4,FALSE),VLOOKUP(E58,$L$8:$P$22,4,FALSE))) ->  | K58: =IF(E58="","",VLOOKUP(E58,$L$8:$Q$22,6,FALSE)) ->  | L58: =IF(E58="","",IF(OR(E58=$L$15,E58=$L$14,E58=$L$13),B55-B58,B55-$M$4)) ->  | M58: =IF(E58="","",J58*K58*I58*L58) ->  | N58: =IF(E58="","",IF(F58="в",0.1,IF(F58="св",0.1,IF(F58="с",0.1,IF(F58="сз",0.1,IF(F58="з",0.05,IF(F58="юв",0.05,0))))))) ->  | P58: =IF(E58="","",1+N58+O58) ->  | Q58: =IF(G58=0,"",CEILING(M58*P58,5)) -> 
P59: Σ | Q59: =SUM(Q54:Q58) -> 65 | R59: =IF(B54="Кухня",30,IF(B54="ЖК",CEILING(C56*3,1),IF(B54="Кабинет",CEILING(C56*3,1),0))) -> 0 | S59: =CEILING(R59*(353/(273+0.5*(B55+$M$4)))*1005*(B55-$M$4)/3600,5) -> 0 | T59: =S59+Q59 -> 65 | U59: =CEILING(T59*$O$24*$O$25,5) -> 70
A60: 105 | B60: Köök | E60: нс | F60: ю | G60: 3.25 | H60: 5.53 | I60: =IF(E60="","",G60*H60)-I61-I62 -> 14.6575 | J60: =IF(E60="","",IF(E60="о",VLOOKUP(E60,$L$8:$P$22,4,FALSE)-VLOOKUP("нс",$L$8:$P$22,4,FALSE),VLOOKUP(E60,$L$8:$P$22,4,FALSE))) -> 0.115 | K60: =IF(E60="","",VLOOKUP(E60,$L$8:$Q$22,6,FALSE)) -> 1 | L60: =IF(E60="","",IF(OR(E60=$L$15,E60=$L$14,E60=$L$13),B61-B64,B61-$M$4)) -> 43 | M60: =IF(E60="","",J60*K60*I60*L60) -> 72.4813375 | N60: =IF(E60="","",IF(F60="в",0.1,IF(F60="св",0.1,IF(F60="с",0.1,IF(F60="сз",0.1,IF(F60="з",0.05,IF(F60="юв",0.05,0))))))) -> 0 | O60: 0.1 | P60: =IF(E60="","",1+N60+O60) -> 1.1 | Q60: =IF(G60=0,"",CEILING(M60*P60,5)) -> 80
B61: 21 | E61: о | F61: ю | G61: 1.15 | H61: 1.2 | I61: =IF(E61="","",G61*H61) -> 1.38 | J61: =IF(E61="","",IF(E61="о",VLOOKUP(E61,$L$8:$P$22,4,FALSE)-VLOOKUP("нс",$L$8:$P$22,4,FALSE),VLOOKUP(E61,$L$8:$P$22,4,FALSE))) -> 0.985 | K61: 1 | L61: =IF(E61="","",IF(OR(E61=$L$15,E61=$L$14,E61=$L$13),B61-B64,B61-$M$4)) -> 43 | M61: 58.4499 | N61: 0 | P61: 1 | Q61: 60
B62: Sп = | C62: 22.2 | D62: м² | E62: дн | F62: ю | G62: 2.15 | H62: 0.9 | I62: =IF(E62="","",G62*H62) -> 1.935 | J62: 0.9 | K62: 1 | L62: =IF(E62="","",IF(OR(E62=$L$15,E62=$L$14,E62=$L$13),B61-B64,B61-$M$4)) -> 43 | M62: 74.8845 | N62: 0 | P62: 1 | Q62: 75
B63: =IF(OR(E60=$L$15,E60=$L$14,E60=$L$13),"В смежн. пом.",IF(OR(E61=$L$15,E61=$L$14,E61=$L$13),"В смежн. пом.",IF(OR(E62=$L$15,E62=$L$14,E62=$L$13),"В смежн. пом.",IF(OR(E63=$L$15,E63=$L$14,E63=$L$13),"В смежн. пом.",IF(OR(E64=$L$15,E64=$L$14,E64=$L$13),"В смежн. пом.",""))))) ->  | E63: пл-1 | G63: 2 | H63: =H60 -> 5.53 | I63: =IF(E63="","",G63*H63) -> 11.06 | J63: 0.093 | K63: 1 | L63: =IF(E63="","",IF(OR(E63=$L$15,E63=$L$14,E63=$L$13),B61-B64,B61-$M$4)) -> 43 | M63: 44.22894 | N63: 0 | P63: 1 | Q63: 45
B64: 16 | E64: пл-2 | G64: 2 | H64: =H60 -> 5.53 | I64: =IF(E64="","",G64*H64) -> 11.06 | J64: 0.077 | K64: 1 | L64: =IF(E64="","",IF(OR(E64=$L$15,E64=$L$14,E64=$L$13),B61-B64,B61-$M$4)) -> 43 | M64: 36.61966 | N64: 0 | P64: 1 | Q64: 40
E65: пл-3 | G65: 0.63 | H65: =H60 -> 5.53 | I65: =IF(E65="","",G65*H65) -> 3.4839 | J65: 0.058 | K65: 1 | L65: =IF(E65="","",IF(OR(E65=$L$15,E65=$L$14,E65=$L$13),B61-B64,B61-$M$4)) -> 43 | M65: 8.6888466 | N65: 0 | P65: 1 | Q65: 10
P66: Σ | Q66: =SUM(Q60:Q65) -> 310 | R66: =IF(B60="Кухня",30,IF(B60="ЖК",CEILING(C62*3,1),IF(B60="Кабинет",CEILING(C62*3,1),0))) -> 0 | S66: =CEILING(R66*(353/(273+0.5*(B61+$M$4)))*1005*(B61-$M$4)/3600,5) -> 0 | T66: =S66+Q66 -> 310 | U66: =CEILING(T66*$O$24*$O$25,5) -> 335
A67: 106 | B67: Elutuba | E67: нс | F67: с | G67: 3.25 | H67: 6.737 | I67: =IF(E67="","",G67*H67) -> 21.89525 | J67: =IF(E67="","",IF(E67="о",VLOOKUP(E67,$L$8:$P$22,4,FALSE)-VLOOKUP("нс",$L$8:$P$22,4,FALSE),VLOOKUP(E67,$L$8:$P$22,4,FALSE))) -> 0.115 | K67: =IF(E67="","",VLOOKUP(E67,$L$8:$Q$22,6,FALSE)) -> 1 | L67: =IF(E67="","",IF(OR(E67=$L$15,E67=$L$14,E67=$L$13),B68-B71,B68-$M$4)) -> 41 | M67: =IF(E67="","",J67*K67*I67*L67) -> 103.2361038 | N67: =IF(E67="","",IF(F67="в",0.1,IF(F67="св",0.1,IF(F67="с",0.1,IF(F67="сз",0.1,IF(F67="з",0.05,IF(F67="юв",0.05,0))))))) -> 0.1 | O67: 0.1 | P67: =IF(E67="","",1+N67+O67) -> 1.2 | Q67: =IF(G67=0,"",CEILING(M67*P67,5)) -> 125
B68: 19 | E68: нс | F68: ю | G68: 3.25 | H68: 6.74 | I68: =IF(E68="","",G68*H68)-I73 -> 16.325 | J68: 0.115 | K68: 1 | L68: =IF(E68="","",IF(OR(E68=$L$15,E68=$L$14,E68=$L$13),B68-B71,B68-$M$4)) -> 41 | M68: 76.972375 | N68: 0 | P68: 1 | Q68: 80
B69: Sп = | C69: 41.7 | D69: м² | E69: нс | F69: з | G69: 3.25 | H69: 7.157 | I69: =IF(E69="","",G69*H69)-I70-I71 -> 18.33025 | J69: 0.115 | K69: 1 | L69: =IF(E69="","",IF(OR(E69=$L$15,E69=$L$14,E69=$L$13),B68-B71,B68-$M$4)) -> 41 | M69: 86.42712875 | N69: 0.05 | P69: 1.05 | Q69: 95
B70: =IF(OR(E67=$L$15,E67=$L$14,E67=$L$13),"В смежн. пом.",IF(OR(E68=$L$15,E68=$L$14,E68=$L$13),"В смежн. пом.",IF(OR(E69=$L$15,E69=$L$14,E69=$L$13),"В смежн. пом.",IF(OR(E70=$L$15,E70=$L$14,E70=$L$13),"В смежн. пом.",IF(OR(E71=$L$15,E71=$L$14,E71=$L$13),"В смежн. пом.",""))))) ->  | E70: о | F70: з | G70: 1.1 | H70: 1.55 | I70: =IF(E70="","",G70*H70) -> 1.705 | J70: 0.985 | K70: 1 | L70: =IF(E70="","",IF(OR(E70=$L$15,E70=$L$14,E70=$L$13),B68-B71,B68-$M$4)) -> 41 | M70: 68.856425 | N70: 0.05 | P70: 1.05 | Q70: 75
E71: дн | F71: з | G71: 2.15 | H71: 1.5 | I71: =IF(E71="","",G71*H71) -> 3.225 | J71: 0.9 | K71: 1 | L71: =IF(E71="","",IF(OR(E71=$L$15,E71=$L$14,E71=$L$13),B68-B71,B68-$M$4)) -> 41 | M71: 119.0025 | N71: 0.05 | P71: 1.05 | Q71: 125
E72: п | G72: 3.25 | H72: 6.737 | I72: 66 | J72: 0.108 | K72: 1 | L72: =IF(E72="","",IF(OR(E72=$L$15,E72=$L$14,E71=$L$13),B68-B71,B68-$M$4)) -> 41 | M72: 292.248 | N72: 0 | P72: 1 | Q72: 295
E73: о | F73: ю | G73: 1.8 | H73: 1.55 | I73: =IF(E73="","",G73*H73)*2 -> 5.58 | J73: 0.985 | K73: 1 | L73: =IF(E73="","",IF(OR(E73=$L$15,E73=$L$14,E73=$L$13),B70-B73,B68-$M$4)) -> 41 | M73: 225.3483 | N73: 0 | P73: 1 | Q73: 230
E74: пл-1 | G74: 20.64 | H74: 2 | I74: =IF(E74="","",G74*H74) -> 41.28 | J74: =IF(E74="","",IF(E74="о",VLOOKUP(E74,$L$8:$P$22,4,FALSE)-VLOOKUP("нс",$L$8:$P$22,4,FALSE),VLOOKUP(E74,$L$8:$P$22,4,FALSE))) -> 0.093 | K74: =IF(E74="","",VLOOKUP(E74,$L$8:$Q$22,6,FALSE)) -> 1 | L74: =IF(E74="","",IF(OR(E74=$L$15,E74=$L$14,E74=$L$13),B68-B71,B68-$M$4)) -> 41 | M74: =IF(E74="","",J74*K74*I74*L74) -> 157.40064 | N74: =IF(E74="","",IF(F74="в",0.1,IF(F74="св",0.1,IF(F74="с",0.1,IF(F74="сз",0.1,IF(F74="з",0.05,IF(F74="юв",0.05,0))))))) -> 0 | P74: =IF(E74="","",1+N74+O74) -> 1 | Q74: =IF(G74=0,"",CEILING(M74*P74,5)) -> 160
E75: пл-2 | G75: 3.16 | H75: 4.74 | I75: =IF(E75="","",G75*H75) -> 14.9784 | J75: =IF(E75="","",IF(E75="о",VLOOKUP(E75,$L$8:$P$22,4,FALSE)-VLOOKUP("нс",$L$8:$P$22,4,FALSE),VLOOKUP(E75,$L$8:$P$22,4,FALSE))) -> 0.077 | K75: =IF(E75="","",VLOOKUP(E75,$L$8:$Q$22,6,FALSE)) -> 1 | L75: =IF(E75="","",IF(OR(E75=$L$15,E75=$L$14,E75=$L$13),B68-B71,B68-$M$4)) -> 41 | M75: =IF(E75="","",J75*K75*I75*L75) -> 47.2868088 | N75: =IF(E75="","",IF(F75="в",0.1,IF(F75="св",0.1,IF(F75="с",0.1,IF(F75="сз",0.1,IF(F75="з",0.05,IF(F75="юв",0.05,0))))))) -> 0 | P75: =IF(E75="","",1+N75+O75) -> 1 | Q75: =IF(G75=0,"",CEILING(M75*P75,5)) -> 50
P76: Σ | Q76: =SUM(Q67:Q75) -> 1235 | R76: =IF(B67="Кухня",30,IF(B67="ЖК",CEILING(C69*3,1),IF(B67="Кабинет",CEILING(C69*3,1),0))) -> 0 | S76: =CEILING(R76*(353/(273+0.5*(B68+$M$4)))*1005*(B68-$M$4)/3600,5) -> 0 | T76: =S76+Q76 -> 1235 | U76: =CEILING(T76*$O$24*$O$25,5) -> 1325
A77: 107 | B77: Sahver | E77: нс | F77: ю | G77: 3.25 | H77: 6.56 | I77: =IF(E77="","",G77*H77)-I80 -> 16.72 | J77: =IF(E77="","",IF(E77="о",VLOOKUP(E77,$L$8:$P$22,4,FALSE)-VLOOKUP("нс",$L$8:$P$22,4,FALSE),VLOOKUP(E77,$L$8:$P$22,4,FALSE))) -> 0.115 | K77: =IF(E77="","",VLOOKUP(E77,$L$8:$Q$22,6,FALSE)) -> 1 | L77: =IF(E77="","",IF(OR(E77=$L$15,E77=$L$14,E77=$L$13),B78-B81,B78-$M$4)) -> 41 | M77: =IF(E77="","",J77*K77*I77*L77) -> 78.8348 | N77: =IF(E77="","",IF(F77="в",0.1,IF(F77="св",0.1,IF(F77="с",0.1,IF(F77="сз",0.1,IF(F77="з",0.05,IF(F77="юв",0.05,0))))))) -> 0 | O77: 0.1 | P77: =IF(E77="","",1+N77+O77) -> 1.1 | Q77: =IF(G77=0,"",CEILING(M77*P77,5)) -> 90
B78: 19 | E78: пл-1 | G78: 2 | H78: 9.35 | I78: =IF(E78="","",G78*H78) -> 18.7 | J78: =IF(E78="","",IF(E78="о",VLOOKUP(E78,$L$8:$P$22,4,FALSE)-VLOOKUP("нс",$L$8:$P$22,4,FALSE),VLOOKUP(E78,$L$8:$P$22,4,FALSE))) -> 0.093 | K78: =IF(E78="","",VLOOKUP(E78,$L$8:$Q$22,6,FALSE)) -> 1 | L78: =IF(E78="","",IF(OR(E78=$L$15,E78=$L$14,E78=$L$13),B78-B81,B78-$M$4)) -> 41 | M78: =IF(E78="","",J78*K78*I78*L78) -> 71.3031 | N78: =IF(E78="","",IF(F78="в",0.1,IF(F78="св",0.1,IF(F78="с",0.1,IF(F78="сз",0.1,IF(F78="з",0.05,IF(F78="юв",0.05,0))))))) -> 0 | P78: =IF(E78="","",1+N78+O78) -> 1 | Q78: =IF(G78=0,"",CEILING(M78*P78,5)) -> 75
B79: Sп = | C79: 17.4 | D79: м² | E79: пл-2 | G79: 4.56 | H79: 0.8 | I79: =IF(E79="","",G79*H79) -> 3.648 | J79: =IF(E79="","",IF(E79="о",VLOOKUP(E79,$L$8:$P$22,4,FALSE)-VLOOKUP("нс",$L$8:$P$22,4,FALSE),VLOOKUP(E79,$L$8:$P$22,4,FALSE))) -> 0.077 | K79: =IF(E79="","",VLOOKUP(E79,$L$8:$Q$22,6,FALSE)) -> 1 | L79: =IF(E79="","",IF(OR(E79=$L$15,E79=$L$14,E79=$L$13),B78-B81,B78-$M$4)) -> 41 | M79: =IF(E79="","",J79*K79*I79*L79) -> 11.516736 | N79: =IF(E79="","",IF(F79="в",0.1,IF(F79="св",0.1,IF(F79="с",0.1,IF(F79="сз",0.1,IF(F79="з",0.05,IF(F79="юв",0.05,0))))))) -> 0 | P79: =IF(E79="","",1+N79+O79) -> 1 | Q79: =IF(G79=0,"",CEILING(M79*P79,5)) -> 15
B80: =IF(OR(E77=$L$15,E77=$L$14,E77=$L$13),"В смежн. пом.",IF(OR(E78=$L$15,E78=$L$14,E78=$L$13),"В смежн. пом.",IF(OR(E79=$L$15,E79=$L$14,E79=$L$13),"В смежн. пом.",IF(OR(E80=$L$15,E80=$L$14,E80=$L$13),"В смежн. пом.",IF(OR(E81=$L$15,E81=$L$14,E81=$L$13),"В смежн. пом.",""))))) ->  | E80: о | F80: ю | G80: 2 | H80: 2.3 | I80: =IF(E80="","",G80*H80) -> 4.6 | J80: =IF(E80="","",IF(E80="о",VLOOKUP(E80,$L$8:$P$22,4,FALSE)-VLOOKUP("нс",$L$8:$P$22,4,FALSE),VLOOKUP(E80,$L$8:$P$22,4,FALSE))) -> 0.985 | K80: =IF(E80="","",VLOOKUP(E80,$L$8:$Q$22,6,FALSE)) -> 1 | L80: =IF(E80="","",IF(OR(E80=$L$15,E80=$L$14,E80=$L$13),B78-B81,B78-$M$4)) -> 41 | M80: =IF(E80="","",J80*K80*I80*L80) -> 185.771 | N80: =IF(E80="","",IF(F80="в",0.1,IF(F80="св",0.1,IF(F80="с",0.1,IF(F80="сз",0.1,IF(F80="з",0.05,IF(F80="юв",0.05,0))))))) -> 0 | P80: =IF(E80="","",1+N80+O80) -> 1 | Q80: =IF(G80=0,"",CEILING(M80*P80,5)) -> 190
E81: нс | F81: в | G81: 3.25 | H81: 2.79 | I81: =IF(E81="","",G81*H81) -> 9.0675 | J81: =IF(E81="","",IF(E81="о",VLOOKUP(E81,$L$8:$P$22,4,FALSE)-VLOOKUP("нс",$L$8:$P$22,4,FALSE),VLOOKUP(E81,$L$8:$P$22,4,FALSE))) -> 0.115 | K81: =IF(E81="","",VLOOKUP(E81,$L$8:$Q$22,6,FALSE)) -> 1 | L81: =IF(E81="","",IF(OR(E81=$L$15,E81=$L$14,E81=$L$13),B78-B81,B78-$M$4)) -> 41 | M81: =IF(E81="","",J81*K81*I81*L81) -> 42.7532625 | N81: =IF(E81="","",IF(F81="в",0.1,IF(F81="св",0.1,IF(F81="с",0.1,IF(F81="сз",0.1,IF(F81="з",0.05,IF(F81="юв",0.05,0))))))) -> 0.1 | P81: =IF(E81="","",1+N81+O81) -> 1.1 | Q81: =IF(G81=0,"",CEILING(M81*P81,5)) -> 50
P82: Σ | Q82: =SUM(Q77:Q81) -> 420 | R82: =IF(B77="Кухня",30,IF(B77="ЖК",CEILING(C79*3,1),IF(B77="Кабинет",CEILING(C79*3,1),0))) -> 0 | S82: =CEILING(R82*(353/(273+0.5*(B78+$M$4)))*1005*(B78-$M$4)/3600,5) -> 0 | T82: =S82+Q82 -> 420 | U82: =CEILING(T82*$O$24*$O$25,5) -> 450
A83: 108 | B83: Trepp | E83: нс | F83: с | G83: 0 | H83: 1.58 | I83: =IF(E83="","",G83*H83) -> 0 | J83: =IF(E83="","",IF(E83="о",VLOOKUP(E83,$L$8:$P$22,4,FALSE)-VLOOKUP("нс",$L$8:$P$22,4,FALSE),VLOOKUP(E83,$L$8:$P$22,4,FALSE))) -> 0.115 | K83: =IF(E83="","",VLOOKUP(E83,$L$8:$Q$22,6,FALSE)) -> 1 | L83: =IF(E83="","",IF(OR(E83=$L$15,E83=$L$14,E83=$L$13),B84-B87,B84-$M$4)) -> 43 | M83: =IF(E83="","",J83*K83*I83*L83) -> 0 | N83: =IF(E83="","",IF(F83="в",0.1,IF(F83="св",0.1,IF(F83="с",0.1,IF(F83="сз",0.1,IF(F83="з",0.05,IF(F83="юв",0.05,0))))))) -> 0.1 | P83: =IF(E83="","",1+N83+O83) -> 1.1 | Q83: =IF(G83=0,"",CEILING(M83*P83,5)) -> 
B84: 21 | E84: о | F84: с | I84: =IF(E84="","",G84*H84) -> 0 | J84: =IF(E84="","",IF(E84="о",VLOOKUP(E84,$L$8:$P$22,4,FALSE)-VLOOKUP("нс",$L$8:$P$22,4,FALSE),VLOOKUP(E84,$L$8:$P$22,4,FALSE))) -> 0.985 | K84: =IF(E84="","",VLOOKUP(E84,$L$8:$Q$22,6,FALSE)) -> 1 | L84: =IF(E84="","",IF(OR(E84=$L$15,E84=$L$14,E84=$L$13),B84-B87,B84-$M$4)) -> 43 | M84: =IF(E84="","",J84*K84*I84*L84) -> 0 | N84: =IF(E84="","",IF(F84="в",0.1,IF(F84="св",0.1,IF(F84="с",0.1,IF(F84="сз",0.1,IF(F84="з",0.05,IF(F84="юв",0.05,0))))))) -> 0.1 | P84: =IF(E84="","",1+N84+O84) -> 1.1 | Q84: =IF(G84=0,"",CEILING(M84*P84,5)) -> 
B85: Sп = | C85: 2.4 | D85: м² | E85: пл | I85: =IF(E85="","",G85*H85) -> 0 | J85: =IF(E85="","",IF(E85="о",VLOOKUP(E85,$L$8:$P$22,4,FALSE)-VLOOKUP("нс",$L$8:$P$22,4,FALSE),VLOOKUP(E85,$L$8:$P$22,4,FALSE))) -> 0.816 | K85: =IF(E85="","",VLOOKUP(E85,$L$8:$Q$22,6,FALSE)) -> 1 | L85: =IF(E85="","",IF(OR(E85=$L$15,E85=$L$14,E85=$L$13),B84-B87,B84-$M$4)) -> 21 | M85: =IF(E85="","",J85*K85*I85*L85) -> 0 | N85: =IF(E85="","",IF(F85="в",0.1,IF(F85="св",0.1,IF(F85="с",0.1,IF(F85="сз",0.1,IF(F85="з",0.05,IF(F85="юв",0.05,0))))))) -> 0 | P85: =IF(E85="","",1+N85+O85) -> 1 | Q85: =IF(G85=0,"",CEILING(M85*P85,5)) -> 
B86: =IF(OR(E83=$L$15,E83=$L$14,E83=$L$13),"В смежн. пом.",IF(OR(E84=$L$15,E84=$L$14,E84=$L$13),"В смежн. пом.",IF(OR(E85=$L$15,E85=$L$14,E85=$L$13),"В смежн. пом.",IF(OR(E86=$L$15,E86=$L$14,E86=$L$13),"В смежн. пом.",IF(OR(E87=$L$15,E87=$L$14,E87=$L$13),"В смежн. пом.",""))))) -> В смежн. пом. | I86: =IF(E86="","",G86*H86) ->  | J86: =IF(E86="","",IF(E86="о",VLOOKUP(E86,$L$8:$P$22,4,FALSE)-VLOOKUP("нс",$L$8:$P$22,4,FALSE),VLOOKUP(E86,$L$8:$P$22,4,FALSE))) ->  | K86: =IF(E86="","",VLOOKUP(E86,$L$8:$Q$22,6,FALSE)) ->  | L86: =IF(E86="","",IF(OR(E86=$L$15,E86=$L$14,E86=$L$13),B84-B87,B84-$M$4)) ->  | M86: =IF(E86="","",J86*K86*I86*L86) ->  | N86: =IF(E86="","",IF(F86="в",0.1,IF(F86="св",0.1,IF(F86="с",0.1,IF(F86="сз",0.1,IF(F86="з",0.05,IF(F86="юв",0.05,0))))))) ->  | P86: =IF(E86="","",1+N86+O86) ->  | Q86: =IF(G86=0,"",CEILING(M86*P86,5)) -> 
I87: =IF(E87="","",G87*H87) ->  | J87: =IF(E87="","",IF(E87="о",VLOOKUP(E87,$L$8:$P$22,4,FALSE)-VLOOKUP("нс",$L$8:$P$22,4,FALSE),VLOOKUP(E87,$L$8:$P$22,4,FALSE))) ->  | K87: =IF(E87="","",VLOOKUP(E87,$L$8:$Q$22,6,FALSE)) ->  | L87: =IF(E87="","",IF(OR(E87=$L$15,E87=$L$14,E87=$L$13),B84-B87,B84-$M$4)) ->  | M87: =IF(E87="","",J87*K87*I87*L87) ->  | N87: =IF(E87="","",IF(F87="в",0.1,IF(F87="св",0.1,IF(F87="с",0.1,IF(F87="сз",0.1,IF(F87="з",0.05,IF(F87="юв",0.05,0))))))) ->  | P87: =IF(E87="","",1+N87+O87) ->  | Q87: =IF(G87=0,"",CEILING(M87*P87,5)) -> 
P88: Σ | Q88: =SUM(Q83:Q87) -> 0 | R88: =IF(B83="Кухня",30,IF(B83="ЖК",CEILING(C85*3,1),IF(B83="Кабинет",CEILING(C85*3,1),0))) -> 0 | S88: =CEILING(R88*(353/(273+0.5*(B84+$M$4)))*1005*(B84-$M$4)/3600,5) -> 0 | T88: =S88+Q88 -> 0 | U88: =CEILING(T88*$O$24*$O$25,5) -> 0
A89: 109 | B89: WC | E89: нс | F89: с | G89: 3.25 | H89: 1.58 | I89: =IF(E89="","",G89*H89) -> 5.135 | J89: =IF(E89="","",IF(E89="о",VLOOKUP(E89,$L$8:$P$22,4,FALSE)-VLOOKUP("нс",$L$8:$P$22,4,FALSE),VLOOKUP(E89,$L$8:$P$22,4,FALSE))) -> 0.115 | K89: =IF(E89="","",VLOOKUP(E89,$L$8:$Q$22,6,FALSE)) -> 1 | L89: =IF(E89="","",IF(OR(E89=$L$15,E89=$L$14,E89=$L$13),B90-B93,B90-$M$4)) -> 43 | M89: =IF(E89="","",J89*K89*I89*L89) -> 25.392575 | N89: =IF(E89="","",IF(F89="в",0.1,IF(F89="св",0.1,IF(F89="с",0.1,IF(F89="сз",0.1,IF(F89="з",0.05,IF(F89="юв",0.05,0))))))) -> 0.1 | P89: =IF(E89="","",1+N89+O89) -> 1.1 | Q89: =IF(G89=0,"",CEILING(M89*P89,5)) -> 30
B90: 21 | E90: вс | G90: 3.25 | H90: 1.98 | I90: =IF(E90="","",G90*H90) -> 6.435 | J90: =IF(E90="","",IF(E90="о",VLOOKUP(E90,$L$8:$P$22,4,FALSE)-VLOOKUP("нс",$L$8:$P$22,4,FALSE),VLOOKUP(E90,$L$8:$P$22,4,FALSE))) -> 1.276 | K90: =IF(E90="","",VLOOKUP(E90,$L$8:$Q$22,6,FALSE)) -> 1 | L90: =IF(E90="","",IF(OR(E90=$L$15,E90=$L$14,E90=$L$13),B90-B93,B90-$M$4)) -> 11 | M90: =IF(E90="","",J90*K90*I90*L90) -> 90.32166 | N90: =IF(E90="","",IF(F90="в",0.1,IF(F90="св",0.1,IF(F90="с",0.1,IF(F90="сз",0.1,IF(F90="з",0.05,IF(F90="юв",0.05,0))))))) -> 0 | P90: =IF(E90="","",1+N90+O90) -> 1 | Q90: =IF(G90=0,"",CEILING(M90*P90,5)) -> 95
B91: Sп = | C91: 2.9 | D91: м² | E91: пл-1 | G91: 2 | H91: 1.58 | I91: =IF(E91="","",G91*H91) -> 3.16 | J91: =IF(E91="","",IF(E91="о",VLOOKUP(E91,$L$8:$P$22,4,FALSE)-VLOOKUP("нс",$L$8:$P$22,4,FALSE),VLOOKUP(E91,$L$8:$P$22,4,FALSE))) -> 0.093 | K91: =IF(E91="","",VLOOKUP(E91,$L$8:$Q$22,6,FALSE)) -> 1 | L91: =IF(E91="","",IF(OR(E91=$L$15,E91=$L$14,E91=$L$13),B90-B93,B90-$M$4)) -> 43 | M91: =IF(E91="","",J91*K91*I91*L91) -> 12.63684 | N91: =IF(E91="","",IF(F91="в",0.1,IF(F91="св",0.1,IF(F91="с",0.1,IF(F91="сз",0.1,IF(F91="з",0.05,IF(F91="юв",0.05,0))))))) -> 0 | P91: =IF(E91="","",1+N91+O91) -> 1 | Q91: =IF(G91=0,"",CEILING(M91*P91,5)) -> 15
B92: =IF(OR(E89=$L$15,E89=$L$14,E89=$L$13),"В смежн. пом.",IF(OR(E90=$L$15,E90=$L$14,E90=$L$13),"В смежн. пом.",IF(OR(E91=$L$15,E91=$L$14,E91=$L$13),"В смежн. пом.",IF(OR(E92=$L$15,E92=$L$14,E92=$L$13),"В смежн. пом.",IF(OR(E93=$L$15,E93=$L$14,E93=$L$13),"В смежн. пом.",""))))) -> В смежн. пом. | E92: пл-2 | G92: 0.4 | H92: 1.58 | I92: =IF(E92="","",G92*H92) -> 0.632 | J92: =IF(E92="","",IF(E92="о",VLOOKUP(E92,$L$8:$P$22,4,FALSE)-VLOOKUP("нс",$L$8:$P$22,4,FALSE),VLOOKUP(E92,$L$8:$P$22,4,FALSE))) -> 0.077 | K92: =IF(E92="","",VLOOKUP(E92,$L$8:$Q$22,6,FALSE)) -> 1 | L92: =IF(E92="","",IF(OR(E92=$L$15,E92=$L$14,E92=$L$13),B90-B93,B90-$M$4)) -> 43 | M92: =IF(E92="","",J92*K92*I92*L92) -> 2.092552 | N92: =IF(E92="","",IF(F92="в",0.1,IF(F92="св",0.1,IF(F92="с",0.1,IF(F92="сз",0.1,IF(F92="з",0.05,IF(F92="юв",0.05,0))))))) -> 0 | P92: =IF(E92="","",1+N92+O92) -> 1 | Q92: =IF(G92=0,"",CEILING(M92*P92,5)) -> 5
B93: 10 | I93: =IF(E93="","",G93*H93) ->  | J93: =IF(E93="","",IF(E93="о",VLOOKUP(E93,$L$8:$P$22,4,FALSE)-VLOOKUP("нс",$L$8:$P$22,4,FALSE),VLOOKUP(E93,$L$8:$P$22,4,FALSE))) ->  | K93: =IF(E93="","",VLOOKUP(E93,$L$8:$Q$22,6,FALSE)) ->  | L93: =IF(E93="","",IF(OR(E93=$L$15,E93=$L$14,E93=$L$13),B90-B93,B90-$M$4)) ->  | M93: =IF(E93="","",J93*K93*I93*L93) ->  | N93: =IF(E93="","",IF(F93="в",0.1,IF(F93="св",0.1,IF(F93="с",0.1,IF(F93="сз",0.1,IF(F93="з",0.05,IF(F93="юв",0.05,0))))))) ->  | P93: =IF(E93="","",1+N93+O93) ->  | Q93: =IF(G93=0,"",CEILING(M93*P93,5)) -> 
P94: Σ | Q94: =SUM(Q89:Q93) -> 145 | R94: =IF(B89="Кухня",30,IF(B89="ЖК",CEILING(C91*3,1),IF(B89="Кабинет",CEILING(C91*3,1),0))) -> 0 | S94: =CEILING(R94*(353/(273+0.5*(B90+$M$4)))*1005*(B90-$M$4)/3600,5) -> 0 | T94: =S94+Q94 -> 145 | U94: =CEILING(T94*$O$24*$O$25,5) -> 155
A95: 110 | B95: Tehniline ruum | E95: нс | F95: с | G95: 3.25 | H95: 4.2 | I95: =IF(E95="","",G95*H95) -> 13.65 | J95: =IF(E95="","",IF(E95="о",VLOOKUP(E95,$L$8:$P$22,4,FALSE)-VLOOKUP("нс",$L$8:$P$22,4,FALSE),VLOOKUP(E95,$L$8:$P$22,4,FALSE))) -> 0.115 | K95: =IF(E95="","",VLOOKUP(E95,$L$8:$Q$22,6,FALSE)) -> 1 | L95: =IF(E95="","",IF(OR(E95=$L$15,E95=$L$14,E95=$L$13),B96-B99,B96-$M$4)) -> 32 | M95: =IF(E95="","",J95*K95*I95*L95) -> 50.232 | N95: =IF(E95="","",IF(F95="в",0.1,IF(F95="св",0.1,IF(F95="с",0.1,IF(F95="сз",0.1,IF(F95="з",0.05,IF(F95="юв",0.05,0))))))) -> 0.1 | O95: 0.1 | P95: =IF(E95="","",1+N95+O95) -> 1.2 | Q95: =IF(G95=0,"",CEILING(M95*P95,5)) -> 65
B96: 10 | E96: нс | F96: в | G96: 3.25 | H96: 1.982 | I96: =IF(E96="","",G96*H96) -> 6.4415 | J96: =IF(E96="","",IF(E96="о",VLOOKUP(E96,$L$8:$P$22,4,FALSE)-VLOOKUP("нс",$L$8:$P$22,4,FALSE),VLOOKUP(E96,$L$8:$P$22,4,FALSE))) -> 0.115 | K96: =IF(E96="","",VLOOKUP(E96,$L$8:$Q$22,6,FALSE)) -> 1 | L96: =IF(E96="","",IF(OR(E96=$L$15,E96=$L$14,E96=$L$13),B96-B99,B96-$M$4)) -> 32 | M96: =IF(E96="","",J96*K96*I96*L96) -> 23.70472 | N96: =IF(E96="","",IF(F96="в",0.1,IF(F96="св",0.1,IF(F96="с",0.1,IF(F96="сз",0.1,IF(F96="з",0.05,IF(F96="юв",0.05,0))))))) -> 0.1 | O96: 0.1 | P96: =IF(E96="","",1+N96+O96) -> 1.2 | Q96: =IF(G96=0,"",CEILING(M96*P96,5)) -> 30
B97: Sп = | C97: 6.2 | D97: м² | E97: пл-1 | G97: 4.2 | H97: 1.982 | I97: =IF(E97="","",G97*H97) -> 8.3244 | J97: =IF(E97="","",IF(E97="о",VLOOKUP(E97,$L$8:$P$22,4,FALSE)-VLOOKUP("нс",$L$8:$P$22,4,FALSE),VLOOKUP(E97,$L$8:$P$22,4,FALSE))) -> 0.093 | K97: =IF(E97="","",VLOOKUP(E97,$L$8:$Q$22,6,FALSE)) -> 1 | L97: =IF(E97="","",IF(OR(E97=$L$15,E97=$L$14,E97=$L$13),B96-B99,B96-$M$4)) -> 32 | M97: =IF(E97="","",J97*K97*I97*L97) -> 24.7734144 | N97: =IF(E97="","",IF(F97="в",0.1,IF(F97="св",0.1,IF(F97="с",0.1,IF(F97="сз",0.1,IF(F97="з",0.05,IF(F97="юв",0.05,0))))))) -> 0 | P97: =IF(E97="","",1+N97+O97) -> 1 | Q97: =IF(G97=0,"",CEILING(M97*P97,5)) -> 25
B98: =IF(OR(E95=$L$15,E95=$L$14,E95=$L$13),"В смежн. пом.",IF(OR(E96=$L$15,E96=$L$14,E96=$L$13),"В смежн. пом.",IF(OR(E97=$L$15,E97=$L$14,E97=$L$13),"В смежн. пом.",IF(OR(E98=$L$15,E98=$L$14,E98=$L$13),"В смежн. пом.",IF(OR(E99=$L$15,E99=$L$14,E99=$L$13),"В смежн. пом.",""))))) ->  | I98: =IF(E98="","",G98*H98) ->  | J98: =IF(E98="","",IF(E98="о",VLOOKUP(E98,$L$8:$P$22,4,FALSE)-VLOOKUP("нс",$L$8:$P$22,4,FALSE),VLOOKUP(E98,$L$8:$P$22,4,FALSE))) ->  | K98: =IF(E98="","",VLOOKUP(E98,$L$8:$Q$22,6,FALSE)) ->  | L98: =IF(E98="","",IF(OR(E98=$L$15,E98=$L$14,E98=$L$13),B96-B99,B96-$M$4)) ->  | M98: =IF(E98="","",J98*K98*I98*L98) ->  | N98: =IF(E98="","",IF(F98="в",0.1,IF(F98="св",0.1,IF(F98="с",0.1,IF(F98="сз",0.1,IF(F98="з",0.05,IF(F98="юв",0.05,0))))))) ->  | P98: =IF(E98="","",1+N98+O98) ->  | Q98: =IF(G98=0,"",CEILING(M98*P98,5)) -> 
I99: =IF(E99="","",G99*H99) ->  | J99: =IF(E99="","",IF(E99="о",VLOOKUP(E99,$L$8:$P$22,4,FALSE)-VLOOKUP("нс",$L$8:$P$22,4,FALSE),VLOOKUP(E99,$L$8:$P$22,4,FALSE))) ->  | K99: =IF(E99="","",VLOOKUP(E99,$L$8:$Q$22,6,FALSE)) ->  | L99: =IF(E99="","",IF(OR(E99=$L$15,E99=$L$14,E99=$L$13),B96-B99,B96-$M$4)) ->  | M99: =IF(E99="","",J99*K99*I99*L99) ->  | N99: =IF(E99="","",IF(F99="в",0.1,IF(F99="св",0.1,IF(F99="с",0.1,IF(F99="сз",0.1,IF(F99="з",0.05,IF(F99="юв",0.05,0))))))) ->  | Q99: =SUM(Q95:Q97) -> 120
B100: Sп общ | P100: Σ | Q100: =SUM(Q95:Q98) -> 120 | R100: =IF(B95="Кухня",30,IF(B95="ЖК",CEILING(C97*3,1),IF(B95="Кабинет",CEILING(C97*3,1),0))) -> 0 | S100: =CEILING(R100*(353/(273+0.5*(B96+$M$4)))*1005*(B96-$M$4)/3600,5) -> 0 | T100: =S100+Q100 -> 120 | U100: =CEILING(T100*$O$24*$O$25,5) -> 130
A101: ="2 этаж. Q₁ = "&SUM(T103:T137)&" Вт" -> 2 этаж. Q₁ = 1635 Вт
A102: 201 | B102: Trepihall | E102: нс | F102: с | G102: 2.65 | H102: 2.31 | I102: =IF(E102="","",G102*H102)-I103 -> 3.7815 | J102: =IF(E102="","",IF(E102="о",VLOOKUP(E102,$L$8:$P$22,4,FALSE)-VLOOKUP("нс",$L$8:$P$22,4,FALSE),VLOOKUP(E102,$L$8:$P$22,4,FALSE))) -> 0.115 | K102: =IF(E102="","",VLOOKUP(E102,$L$8:$Q$22,6,FALSE)) -> 1 | L102: =IF(E102="","",IF(OR(E102=$L$15,E102=$L$14,E102=$L$13),B103-B106,B103-$M$4)) -> 45 | M102: =IF(E102="","",J102*K102*I102*L102) -> 19.5692625 | N102: =IF(E102="","",IF(F102="в",0.1,IF(F102="св",0.1,IF(F102="с",0.1,IF(F102="сз",0.1,IF(F102="з",0.05,IF(F102="юв",0.05,0))))))) -> 0.1 | O102: 0.1 | P102: =IF(E102="","",1+N102+O102) -> 1.2 | Q102: =IF(G102=0,"",CEILING(M102*P102,5)) -> 25
B103: 23 | E103: о | F103: с | G103: 1.95 | H103: 1.2 | I103: =IF(E103="","",G103*H103) -> 2.34 | J103: =IF(E103="","",IF(E103="о",VLOOKUP(E103,$L$8:$P$22,4,FALSE)-VLOOKUP("нс",$L$8:$P$22,4,FALSE),VLOOKUP(E103,$L$8:$P$22,4,FALSE))) -> 0.985 | K103: =IF(E103="","",VLOOKUP(E103,$L$8:$Q$22,6,FALSE)) -> 1 | L103: =IF(E103="","",IF(OR(E103=$L$15,E103=$L$14,E103=$L$13),B103-B106,B103-$M$4)) -> 45 | M103: =IF(E103="","",J103*K103*I103*L103) -> 103.7205 | N103: =IF(E103="","",IF(F103="в",0.1,IF(F103="св",0.1,IF(F103="с",0.1,IF(F103="сз",0.1,IF(F103="з",0.05,IF(F103="юв",0.05,0))))))) -> 0.1 | O103: 0.1 | P103: =IF(E103="","",1+N103+O103) -> 1.2 | Q103: =IF(G103=0,"",CEILING(M103*P103,5)) -> 125
B104: Sп = | C104: 17.5 | D104: м² | E104: п | G104: 2.4 | H104: 3.8 | I104: =IF(E104="","",G104*H104)-H105 -> 9.12 | J104: =IF(E104="","",IF(E104="о",VLOOKUP(E104,$L$8:$P$22,4,FALSE)-VLOOKUP("нс",$L$8:$P$22,4,FALSE),VLOOKUP(E104,$L$8:$P$22,4,FALSE))) -> 0.108 | K104: =IF(E104="","",VLOOKUP(E104,$L$8:$Q$22,6,FALSE)) -> 1 | L104: =IF(E104="","",IF(OR(E104=$L$15,E104=$L$14,E104=$L$13),B103-B106,B103-$M$4)) -> 45 | M104: =IF(E104="","",J104*K104*I104*L104) -> 44.3232 | N104: =IF(E104="","",IF(F104="в",0.1,IF(F104="св",0.1,IF(F104="с",0.1,IF(F104="сз",0.1,IF(F104="з",0.05,IF(F104="юв",0.05,0))))))) -> 0 | P104: =IF(E104="","",1+N104+O104) -> 1 | Q104: =IF(G104=0,"",CEILING(M104*P104,5)) -> 45
B105: =IF(OR(E102=$L$15,E102=$L$14,E102=$L$13),"В смежн. пом.",IF(OR(E103=$L$15,E103=$L$14,E103=$L$13),"В смежн. пом.",IF(OR(E104=$L$15,E104=$L$14,E104=$L$13),"В смежн. пом.",IF(OR(E105=$L$15,E105=$L$14,E105=$L$13),"В смежн. пом.",IF(OR(E106=$L$15,E106=$L$14,E106=$L$13),"В смежн. пом.",""))))) ->  | I105: =IF(E105="","",G105*H105) ->  | J105: =IF(E105="","",IF(E105="о",VLOOKUP(E105,$L$8:$P$22,4,FALSE)-VLOOKUP("нс",$L$8:$P$22,4,FALSE),VLOOKUP(E105,$L$8:$P$22,4,FALSE))) ->  | K105: =IF(E105="","",VLOOKUP(E105,$L$8:$Q$22,6,FALSE)) ->  | L105: =IF(E105="","",IF(OR(E105=$L$15,E105=$L$14,E105=$L$13),B103-B106,B103-$M$4)) ->  | M105: =IF(E105="","",J105*K105*I105*L105) ->  | N105: =IF(E105="","",IF(F105="в",0.1,IF(F105="св",0.1,IF(F105="с",0.1,IF(F105="сз",0.1,IF(F105="з",0.05,IF(F105="юв",0.05,0))))))) ->  | P105: =IF(E105="","",1+N105+O105) ->  | Q105: =IF(G105=0,"",CEILING(M105*P105,5)) -> 
I106: =IF(E106="","",G106*H106) ->  | J106: =IF(E106="","",IF(E106="о",VLOOKUP(E106,$L$8:$P$22,4,FALSE)-VLOOKUP("нс",$L$8:$P$22,4,FALSE),VLOOKUP(E106,$L$8:$P$22,4,FALSE))) ->  | K106: =IF(E106="","",VLOOKUP(E106,$L$8:$Q$22,6,FALSE)) ->  | L106: =IF(E106="","",IF(OR(E106=$L$15,E106=$L$14,E106=$L$13),B103-B106,B103-$M$4)) ->  | M106: =IF(E106="","",J106*K106*I106*L106) ->  | N106: =IF(E106="","",IF(F106="в",0.1,IF(F106="св",0.1,IF(F106="с",0.1,IF(F106="сз",0.1,IF(F106="з",0.05,IF(F106="юв",0.05,0))))))) ->  | P106: =IF(E106="","",1+N106+O106) ->  | Q106: =IF(G106=0,"",CEILING(M106*P106,5)) -> 
P107: Σ | Q107: =SUM(Q102:Q106) -> 195 | R107: =IF(B102="Кухня",30,IF(B102="ЖК",CEILING(C104*3,1),IF(B102="Кабинет",CEILING(C104*3,1),0))) -> 0 | S107: =CEILING(R107*(353/(273+0.5*(B103+$M$4)))*1005*(B103-$M$4)/3600,5) -> 0 | T107: =S107+Q107 -> 195 | U107: =CEILING(T107*$O$24*$O$25,5) -> 210
A108: 202 | B108: Garderoob | E108: нс | F108: с | G108: 2.65 | H108: 5.68 | I108: =IF(E108="","",G108*H108) -> 15.052 | J108: =IF(E108="","",IF(E108="о",VLOOKUP(E108,$L$8:$P$22,4,FALSE)-VLOOKUP("нс",$L$8:$P$22,4,FALSE),VLOOKUP(E108,$L$8:$P$22,4,FALSE))) -> 0.115 | K108: =IF(E108="","",VLOOKUP(E108,$L$8:$Q$22,6,FALSE)) -> 1 | L108: =IF(E108="","",IF(OR(E108=$L$15,E108=$L$14,E108=$L$13),B109-B112,B109-$M$4)) -> 41 | M108: =IF(E108="","",J108*K108*I108*L108) -> 70.97018 | N108: =IF(E108="","",IF(F108="в",0.1,IF(F108="св",0.1,IF(F108="с",0.1,IF(F108="сз",0.1,IF(F108="з",0.05,IF(F108="юв",0.05,0))))))) -> 0.1 | P108: =IF(E108="","",1+N108+O108) -> 1.1 | Q108: =IF(G108=0,"",CEILING(M108*P108,5)) -> 80
B109: 19 | E109: нс | F109: в | G109: 2.65 | H109: 2.34 | I109: =IF(E109="","",G109*H109) -> 6.201 | J109: =IF(E109="","",IF(E109="о",VLOOKUP(E109,$L$8:$P$22,4,FALSE)-VLOOKUP("нс",$L$8:$P$22,4,FALSE),VLOOKUP(E109,$L$8:$P$22,4,FALSE))) -> 0.115 | K109: =IF(E109="","",VLOOKUP(E109,$L$8:$Q$22,6,FALSE)) -> 1 | L109: =IF(E109="","",IF(OR(E109=$L$15,E109=$L$14,E109=$L$13),B109-B112,B109-$M$4)) -> 41 | M109: =IF(E109="","",J109*K109*I109*L109) -> 29.237715 | N109: =IF(E109="","",IF(F109="в",0.1,IF(F109="св",0.1,IF(F109="с",0.1,IF(F109="сз",0.1,IF(F109="з",0.05,IF(F109="юв",0.05,0))))))) -> 0.1 | P109: =IF(E109="","",1+N109+O109) -> 1.1 | Q109: =IF(G109=0,"",CEILING(M109*P109,5)) -> 35
B110: Sп = | C110: 14.28 | D110: м² | E110: пл | G110: =H108 -> 5.68 | H110: =H109 -> 2.34 | I110: =IF(E110="","",G110*H110) -> 13.2912 | J110: =IF(E110="","",IF(E110="о",VLOOKUP(E110,$L$8:$P$22,4,FALSE)-VLOOKUP("нс",$L$8:$P$22,4,FALSE),VLOOKUP(E110,$L$8:$P$22,4,FALSE))) -> 0.816 | K110: =IF(E110="","",VLOOKUP(E110,$L$8:$Q$22,6,FALSE)) -> 1 | L110: =IF(E110="","",IF(OR(E110=$L$15,E110=$L$14,E110=$L$13),B109-B112,B109-$M$4)) -> 9 | M110: =IF(E110="","",J110*K110*I110*L110) -> 97.6105728 | N110: =IF(E110="","",IF(F110="в",0.1,IF(F110="св",0.1,IF(F110="с",0.1,IF(F110="сз",0.1,IF(F110="з",0.05,IF(F110="юв",0.05,0))))))) -> 0 | P110: =IF(E110="","",1+N110+O110) -> 1 | Q110: =IF(G110=0,"",CEILING(M110*P110,5)) -> 100
B111: =IF(OR(E108=$L$15,E108=$L$14,E108=$L$13),"В смежн. пом.",IF(OR(E109=$L$15,E109=$L$14,E109=$L$13),"В смежн. пом.",IF(OR(E110=$L$15,E110=$L$14,E110=$L$13),"В смежн. пом.",IF(OR(E111=$L$15,E111=$L$14,E111=$L$13),"В смежн. пом.",IF(OR(E112=$L$15,E112=$L$14,E112=$L$13),"В смежн. пом.",""))))) -> В смежн. пом. | E111: п | G111: =H110 -> 2.34 | H111: =G110 -> 5.68 | I111: =IF(E111="","",G111*H111) -> 13.2912 | J111: =IF(E111="","",IF(E111="о",VLOOKUP(E111,$L$8:$P$22,4,FALSE)-VLOOKUP("нс",$L$8:$P$22,4,FALSE),VLOOKUP(E111,$L$8:$P$22,4,FALSE))) -> 0.108 | K111: =IF(E111="","",VLOOKUP(E111,$L$8:$Q$22,6,FALSE)) -> 1 | L111: =IF(E111="","",IF(OR(E111=$L$15,E111=$L$14,E111=$L$13),B109-B112,B109-$M$4)) -> 41 | M111: =IF(E111="","",J111*K111*I111*L111) -> 58.8534336 | N111: =IF(E111="","",IF(F111="в",0.1,IF(F111="св",0.1,IF(F111="с",0.1,IF(F111="сз",0.1,IF(F111="з",0.05,IF(F111="юв",0.05,0))))))) -> 0 | P111: =IF(E111="","",1+N111+O111) -> 1 | Q111: =IF(G111=0,"",CEILING(M111*P111,5)) -> 60
B112: 10 | I112: =IF(E112="","",G112*H112) ->  | J112: =IF(E112="","",IF(E112="о",VLOOKUP(E112,$L$8:$P$22,4,FALSE)-VLOOKUP("нс",$L$8:$P$22,4,FALSE),VLOOKUP(E112,$L$8:$P$22,4,FALSE))) ->  | K112: =IF(E112="","",VLOOKUP(E112,$L$8:$Q$22,6,FALSE)) ->  | L112: =IF(E112="","",IF(OR(E112=$L$15,E112=$L$14,E112=$L$13),B109-B112,B109-$M$4)) ->  | M112: =IF(E112="","",J112*K112*I112*L112) ->  | N112: =IF(E112="","",IF(F112="в",0.1,IF(F112="св",0.1,IF(F112="с",0.1,IF(F112="сз",0.1,IF(F112="з",0.05,IF(F112="юв",0.05,0))))))) ->  | P112: =IF(E112="","",1+N112+O112) ->  | Q112: =IF(G112=0,"",CEILING(M112*P112,5)) -> 
P113: Σ | Q113: =SUM(Q108:Q112) -> 275 | R113: =IF(B108="Кухня",30,IF(B108="ЖК",CEILING(C110*3,1),IF(B108="Кабинет",CEILING(C110*3,1),0))) -> 0 | S113: =CEILING(R113*(353/(273+0.5*(B109+$M$4)))*1005*(B109-$M$4)/3600,5) -> 0 | T113: =S113+Q113 -> 275 | U113: =CEILING(T113*$O$24*$O$25,5) -> 295
A114: 203 | B114: Magamistuba | E114: нс | F114: в | G114: 2.65 | H114: 4.83 | I114: =IF(E114="","",G114*H114)-I117 -> 10.7295 | J114: =IF(E114="","",IF(E114="о",VLOOKUP(E114,$L$8:$P$22,4,FALSE)-VLOOKUP("нс",$L$8:$P$22,4,FALSE),VLOOKUP(E114,$L$8:$P$22,4,FALSE))) -> 0.115 | K114: =IF(E114="","",VLOOKUP(E114,$L$8:$Q$22,6,FALSE)) -> 1 | L114: =IF(E114="","",IF(OR(E114=$L$15,E114=$L$14,E114=$L$13),B115-B118,B115-$M$4)) -> 44 | M114: =IF(E114="","",J114*K114*I114*L114) -> 54.29127 | N114: =IF(E114="","",IF(F114="в",0.1,IF(F114="св",0.1,IF(F114="с",0.1,IF(F114="сз",0.1,IF(F114="з",0.05,IF(F114="юв",0.05,0))))))) -> 0.1 | P114: =IF(E114="","",1+N114+O114) -> 1.1 | Q114: =IF(G114=0,"",CEILING(M114*P114,5)) -> 60
B115: 22 | E115: нс | F115: ю | G115: 2.65 | H115: 4.05 | I115: =IF(E115="","",G115*H115)-I118 -> 7.515 | J115: =IF(E115="","",IF(E115="о",VLOOKUP(E115,$L$8:$P$22,4,FALSE)-VLOOKUP("нс",$L$8:$P$22,4,FALSE),VLOOKUP(E115,$L$8:$P$22,4,FALSE))) -> 0.115 | K115: =IF(E115="","",VLOOKUP(E115,$L$8:$Q$22,6,FALSE)) -> 1 | L115: =IF(E115="","",IF(OR(E115=$L$15,E115=$L$14,E115=$L$13),B115-B118,B115-$M$4)) -> 44 | M115: =IF(E115="","",J115*K115*I115*L115) -> 38.0259 | N115: =IF(E115="","",IF(F115="в",0.1,IF(F115="св",0.1,IF(F115="с",0.1,IF(F115="сз",0.1,IF(F115="з",0.05,IF(F115="юв",0.05,0))))))) -> 0 | P115: =IF(E115="","",1+N115+O115) -> 1 | Q115: =IF(G115=0,"",CEILING(M115*P115,5)) -> 40
B116: Sп = | C116: 14.28 | D116: м² | E116: п | G116: =H114 -> 4.83 | H116: =H115 -> 4.05 | I116: =IF(E116="","",G116*H116) -> 19.5615 | J116: =IF(E116="","",IF(E116="о",VLOOKUP(E116,$L$8:$P$22,4,FALSE)-VLOOKUP("нс",$L$8:$P$22,4,FALSE),VLOOKUP(E116,$L$8:$P$22,4,FALSE))) -> 0.108 | K116: =IF(E116="","",VLOOKUP(E116,$L$8:$Q$22,6,FALSE)) -> 1 | L116: =IF(E116="","",IF(OR(E116=$L$15,E116=$L$14,E116=$L$13),B115-B118,B115-$M$4)) -> 44 | M116: =IF(E116="","",J116*K116*I116*L116) -> 92.956248 | N116: =IF(E116="","",IF(F116="в",0.1,IF(F116="св",0.1,IF(F116="с",0.1,IF(F116="сз",0.1,IF(F116="з",0.05,IF(F116="юв",0.05,0))))))) -> 0 | P116: =IF(E116="","",1+N116+O116) -> 1 | Q116: =IF(G116=0,"",CEILING(M116*P116,5)) -> 95
B117: =IF(OR(E114=$L$15,E114=$L$14,E114=$L$13),"В смежн. пом.",IF(OR(E115=$L$15,E115=$L$14,E115=$L$13),"В смежн. пом.",IF(OR(E116=$L$15,E116=$L$14,E116=$L$13),"В смежн. пом.",IF(OR(E117=$L$15,E117=$L$14,E117=$L$13),"В смежн. пом.",IF(OR(E118=$L$15,E118=$L$14,E118=$L$13),"В смежн. пом.",""))))) ->  | E117: о | F117: в | G117: 1.8 | H117: 1.15 | I117: =IF(E117="","",G117*H117) -> 2.07 | J117: =IF(E117="","",IF(E117="о",VLOOKUP(E117,$L$8:$P$22,4,FALSE)-VLOOKUP("нс",$L$8:$P$22,4,FALSE),VLOOKUP(E117,$L$8:$P$22,4,FALSE))) -> 0.985 | K117: =IF(E117="","",VLOOKUP(E117,$L$8:$Q$22,6,FALSE)) -> 1 | L117: =IF(E117="","",IF(OR(E117=$L$15,E117=$L$14,E117=$L$13),B115-B118,B115-$M$4)) -> 44 | M117: =IF(E117="","",J117*K117*I117*L117) -> 89.7138 | N117: =IF(E117="","",IF(F117="в",0.1,IF(F117="св",0.1,IF(F117="с",0.1,IF(F117="сз",0.1,IF(F117="з",0.05,IF(F117="юв",0.05,0))))))) -> 0.1 | P117: =IF(E117="","",1+N117+O117) -> 1.1 | Q117: =IF(G117=0,"",CEILING(M117*P117,5)) -> 100
E118: о | F118: ю | G118: 1.65 | H118: 1.95 | I118: =IF(E118="","",G118*H118) -> 3.2175 | J118: =IF(E118="","",IF(E118="о",VLOOKUP(E118,$L$8:$P$22,4,FALSE)-VLOOKUP("нс",$L$8:$P$22,4,FALSE),VLOOKUP(E118,$L$8:$P$22,4,FALSE))) -> 0.985 | K118: =IF(E118="","",VLOOKUP(E118,$L$8:$Q$22,6,FALSE)) -> 1 | L118: =IF(E118="","",IF(OR(E118=$L$15,E118=$L$14,E118=$L$13),B115-B118,B115-$M$4)) -> 44 | M118: =IF(E118="","",J118*K118*I118*L118) -> 139.44645 | N118: =IF(E118="","",IF(F118="в",0.1,IF(F118="св",0.1,IF(F118="с",0.1,IF(F118="сз",0.1,IF(F118="з",0.05,IF(F118="юв",0.05,0))))))) -> 0 | P118: =IF(E118="","",1+N118+O118) -> 1 | Q118: =IF(G118=0,"",CEILING(M118*P118,5)) -> 140
P119: Σ | Q119: =SUM(Q114:Q118) -> 435 | R119: =IF(B114="Кухня",30,IF(B114="ЖК",CEILING(C116*3,1),IF(B114="Кабинет",CEILING(C116*3,1),0))) -> 0 | S119: =CEILING(R119*(353/(273+0.5*(B115+$M$4)))*1005*(B115-$M$4)/3600,5) -> 0 | T119: =S119+Q119 -> 435 | U119: =CEILING(T119*$O$24*$O$25,5) -> 465
A120: 204 | B120: Vannituba | E120: нс | F120: ю | G120: 2.65 | H120: 3.95 | I120: =IF(E120="","",G120*H120)-I121 -> 9.0875 | J120: =IF(E120="","",IF(E120="о",VLOOKUP(E120,$L$8:$P$22,4,FALSE)-VLOOKUP("нс",$L$8:$P$22,4,FALSE),VLOOKUP(E120,$L$8:$P$22,4,FALSE))) -> 0.115 | K120: =IF(E120="","",VLOOKUP(E120,$L$8:$Q$22,6,FALSE)) -> 1 | L120: =IF(E120="","",IF(OR(E120=$L$15,E120=$L$14,E120=$L$13),B121-B124,B121-$M$4)) -> 44 | M120: =IF(E120="","",J120*K120*I120*L120) -> 45.98275 | N120: =IF(E120="","",IF(F120="в",0.1,IF(F120="св",0.1,IF(F120="с",0.1,IF(F120="сз",0.1,IF(F120="з",0.05,IF(F120="юв",0.05,0))))))) -> 0 | P120: =IF(E120="","",1+N120+O120) -> 1 | Q120: =IF(G120=0,"",CEILING(M120*P120,5)) -> 50
B121: 22 | E121: о | F121: ю | G121: 1.15 | H121: 1.2 | I121: =IF(E121="","",G121*H121) -> 1.38 | J121: =IF(E121="","",IF(E121="о",VLOOKUP(E121,$L$8:$P$22,4,FALSE)-VLOOKUP("нс",$L$8:$P$22,4,FALSE),VLOOKUP(E121,$L$8:$P$22,4,FALSE))) -> 0.985 | K121: =IF(E121="","",VLOOKUP(E121,$L$8:$Q$22,6,FALSE)) -> 1 | L121: =IF(E121="","",IF(OR(E121=$L$15,E121=$L$14,E121=$L$13),B121-B124,B121-$M$4)) -> 44 | M121: =IF(E121="","",J121*K121*I121*L121) -> 59.8092 | N121: =IF(E121="","",IF(F121="в",0.1,IF(F121="св",0.1,IF(F121="с",0.1,IF(F121="сз",0.1,IF(F121="з",0.05,IF(F121="юв",0.05,0))))))) -> 0 | P121: =IF(E121="","",1+N121+O121) -> 1 | Q121: =IF(G121=0,"",CEILING(M121*P121,5)) -> 60
B122: Sп = | C122: 14.28 | D122: м² | E122: п | G122: =H120 -> 3.95 | H122: 3.41 | I122: =IF(E122="","",G122*H122) -> 13.4695 | J122: =IF(E122="","",IF(E122="о",VLOOKUP(E122,$L$8:$P$22,4,FALSE)-VLOOKUP("нс",$L$8:$P$22,4,FALSE),VLOOKUP(E122,$L$8:$P$22,4,FALSE))) -> 0.108 | K122: =IF(E122="","",VLOOKUP(E122,$L$8:$Q$22,6,FALSE)) -> 1 | L122: =IF(E122="","",IF(OR(E122=$L$15,E122=$L$14,E122=$L$13),B121-B124,B121-$M$4)) -> 44 | M122: =IF(E122="","",J122*K122*I122*L122) -> 64.007064 | N122: =IF(E122="","",IF(F122="в",0.1,IF(F122="св",0.1,IF(F122="с",0.1,IF(F122="сз",0.1,IF(F122="з",0.05,IF(F122="юв",0.05,0))))))) -> 0 | O122: 0.1 | P122: =IF(E122="","",1+N122+O122) -> 1.1 | Q122: =IF(G122=0,"",CEILING(M122*P122,5)) -> 75
B123: =IF(OR(E120=$L$15,E120=$L$14,E120=$L$13),"В смежн. пом.",IF(OR(E121=$L$15,E121=$L$14,E121=$L$13),"В смежн. пом.",IF(OR(E122=$L$15,E122=$L$14,E122=$L$13),"В смежн. пом.",IF(OR(E123=$L$15,E123=$L$14,E123=$L$13),"В смежн. пом.",IF(OR(E124=$L$15,E124=$L$14,E124=$L$13),"В смежн. пом.",""))))) ->  | I123: =IF(E123="","",G123*H123) ->  | J123: =IF(E123="","",IF(E123="о",VLOOKUP(E123,$L$8:$P$22,4,FALSE)-VLOOKUP("нс",$L$8:$P$22,4,FALSE),VLOOKUP(E123,$L$8:$P$22,4,FALSE))) ->  | K123: =IF(E123="","",VLOOKUP(E123,$L$8:$Q$22,6,FALSE)) ->  | L123: =IF(E123="","",IF(OR(E123=$L$15,E123=$L$14,E123=$L$13),B121-B124,B121-$M$4)) ->  | M123: =IF(E123="","",J123*K123*I123*L123) ->  | N123: =IF(E123="","",IF(F123="в",0.1,IF(F123="св",0.1,IF(F123="с",0.1,IF(F123="сз",0.1,IF(F123="з",0.05,IF(F123="юв",0.05,0))))))) ->  | P123: =IF(E123="","",1+N123+O123) ->  | Q123: =IF(G123=0,"",CEILING(M123*P123,5)) -> 
I124: =IF(E124="","",G124*H124) ->  | J124: =IF(E124="","",IF(E124="о",VLOOKUP(E124,$L$8:$P$22,4,FALSE)-VLOOKUP("нс",$L$8:$P$22,4,FALSE),VLOOKUP(E124,$L$8:$P$22,4,FALSE))) ->  | K124: =IF(E124="","",VLOOKUP(E124,$L$8:$Q$22,6,FALSE)) ->  | L124: =IF(E124="","",IF(OR(E124=$L$15,E124=$L$14,E124=$L$13),B121-B124,B121-$M$4)) ->  | M124: =IF(E124="","",J124*K124*I124*L124) ->  | N124: =IF(E124="","",IF(F124="в",0.1,IF(F124="св",0.1,IF(F124="с",0.1,IF(F124="сз",0.1,IF(F124="з",0.05,IF(F124="юв",0.05,0))))))) ->  | P124: =IF(E124="","",1+N124+O124) ->  | Q124: =IF(G124=0,"",CEILING(M124*P124,5)) -> 
P125: Σ | Q125: =SUM(Q120:Q124) -> 185 | R125: =IF(B120="Кухня",30,IF(B120="ЖК",CEILING(C122*3,1),IF(B120="Кабинет",CEILING(C122*3,1),0))) -> 0 | S125: =CEILING(R125*(353/(273+0.5*(B121+$M$4)))*1005*(B121-$M$4)/3600,5) -> 0 | T125: =S125+Q125 -> 185 | U125: =CEILING(T125*$O$24*$O$25,5) -> 200
A126: 205 | B126: Magamistuba | E126: нс | F126: з | G126: 2.65 | H126: 5.48 | I126: =IF(E126="","",G126*H126)-I130 -> 13.602 | J126: =IF(E126="","",IF(E126="о",VLOOKUP(E126,$L$8:$P$22,4,FALSE)-VLOOKUP("нс",$L$8:$P$22,4,FALSE),VLOOKUP(E126,$L$8:$P$22,4,FALSE))) -> 0.115 | K126: =IF(E126="","",VLOOKUP(E126,$L$8:$Q$22,6,FALSE)) -> 1 | L126: =IF(E126="","",IF(OR(E126=$L$15,E126=$L$14,E126=$L$13),B127-B130,B127-$M$4)) -> 44 | M126: =IF(E126="","",J126*K126*I126*L126) -> 68.82612 | N126: =IF(E126="","",IF(F126="в",0.1,IF(F126="св",0.1,IF(F126="с",0.1,IF(F126="сз",0.1,IF(F126="з",0.05,IF(F126="юв",0.05,0))))))) -> 0.05 | P126: =IF(E126="","",1+N126+O126) -> 1.05 | Q126: =IF(G126=0,"",CEILING(M126*P126,5)) -> 75
B127: 22 | E127: нс | F127: ю | G127: 2.65 | H127: 4.23 | I127: =IF(E127="","",G127*H127)-I129 -> 9.1395 | J127: =IF(E127="","",IF(E127="о",VLOOKUP(E127,$L$8:$P$22,4,FALSE)-VLOOKUP("нс",$L$8:$P$22,4,FALSE),VLOOKUP(E127,$L$8:$P$22,4,FALSE))) -> 0.115 | K127: =IF(E127="","",VLOOKUP(E127,$L$8:$Q$22,6,FALSE)) -> 1 | L127: =IF(E127="","",IF(OR(E127=$L$15,E127=$L$14,E127=$L$13),B127-B130,B127-$M$4)) -> 44 | M127: =IF(E127="","",J127*K127*I127*L127) -> 46.24587 | N127: =IF(E127="","",IF(F127="в",0.1,IF(F127="св",0.1,IF(F127="с",0.1,IF(F127="сз",0.1,IF(F127="з",0.05,IF(F127="юв",0.05,0))))))) -> 0 | P127: =IF(E127="","",1+N127+O127) -> 1 | Q127: =IF(G127=0,"",CEILING(M127*P127,5)) -> 50
B128: Sп = | C128: 14.28 | D128: м² | E128: п | G128: =H126 -> 5.48 | H128: =H127 -> 4.23 | I128: =IF(E128="","",G128*H128) -> 23.1804 | J128: =IF(E128="","",IF(E128="о",VLOOKUP(E128,$L$8:$P$22,4,FALSE)-VLOOKUP("нс",$L$8:$P$22,4,FALSE),VLOOKUP(E128,$L$8:$P$22,4,FALSE))) -> 0.108 | K128: =IF(E128="","",VLOOKUP(E128,$L$8:$Q$22,6,FALSE)) -> 1 | L128: =IF(E128="","",IF(OR(E128=$L$15,E128=$L$14,E128=$L$13),B127-B130,B127-$M$4)) -> 44 | M128: =IF(E128="","",J128*K128*I128*L128) -> 110.1532608 | N128: =IF(E128="","",IF(F128="в",0.1,IF(F128="св",0.1,IF(F128="с",0.1,IF(F128="сз",0.1,IF(F128="з",0.05,IF(F128="юв",0.05,0))))))) -> 0 | O128: 0.1 | P128: =IF(E128="","",1+N128+O128) -> 1.1 | Q128: =IF(G128=0,"",CEILING(M128*P128,5)) -> 125
B129: =IF(OR(E126=$L$15,E126=$L$14,E126=$L$13),"В смежн. пом.",IF(OR(E127=$L$15,E127=$L$14,E127=$L$13),"В смежн. пом.",IF(OR(E128=$L$15,E128=$L$14,E128=$L$13),"В смежн. пом.",IF(OR(E129=$L$15,E129=$L$14,E129=$L$13),"В смежн. пом.",IF(OR(E130=$L$15,E130=$L$14,E130=$L$13),"В смежн. пом.",""))))) ->  | E129: о | F129: ю | G129: 1.8 | H129: 1.15 | I129: =IF(E129="","",G129*H129) -> 2.07 | J129: =IF(E129="","",IF(E129="о",VLOOKUP(E129,$L$8:$P$22,4,FALSE)-VLOOKUP("нс",$L$8:$P$22,4,FALSE),VLOOKUP(E129,$L$8:$P$22,4,FALSE))) -> 0.985 | K129: =IF(E129="","",VLOOKUP(E129,$L$8:$Q$22,6,FALSE)) -> 1 | L129: =IF(E129="","",IF(OR(E129=$L$15,E129=$L$14,E129=$L$13),B127-B130,B127-$M$4)) -> 44 | M129: =IF(E129="","",J129*K129*I129*L129) -> 89.7138 | N129: =IF(E129="","",IF(F129="в",0.1,IF(F129="св",0.1,IF(F129="с",0.1,IF(F129="сз",0.1,IF(F129="з",0.05,IF(F129="юв",0.05,0))))))) -> 0 | P129: =IF(E129="","",1+N129+O129) -> 1 | Q129: =IF(G129=0,"",CEILING(M129*P129,5)) -> 90
E130: о | F130: з | G130: 0.8 | H130: 1.15 | I130: =IF(E130="","",G130*H130) -> 0.92 | J130: =IF(E130="","",IF(E130="о",VLOOKUP(E130,$L$8:$P$22,4,FALSE)-VLOOKUP("нс",$L$8:$P$22,4,FALSE),VLOOKUP(E130,$L$8:$P$22,4,FALSE))) -> 0.985 | K130: =IF(E130="","",VLOOKUP(E130,$L$8:$Q$22,6,FALSE)) -> 1 | L130: =IF(E130="","",IF(OR(E130=$L$15,E130=$L$14,E130=$L$13),B127-B130,B127-$M$4)) -> 44 | M130: =IF(E130="","",J130*K130*I130*L130) -> 39.8728 | N130: =IF(E130="","",IF(F130="в",0.1,IF(F130="св",0.1,IF(F130="с",0.1,IF(F130="сз",0.1,IF(F130="з",0.05,IF(F130="юв",0.05,0))))))) -> 0.05 | P130: =IF(E130="","",1+N130+O130) -> 1.05 | Q130: =IF(G130=0,"",CEILING(M130*P130,5)) -> 45
P131: Σ | Q131: =SUM(Q126:Q130) -> 385 | R131: =IF(B126="Кухня",30,IF(B126="ЖК",CEILING(C128*3,1),IF(B126="Кабинет",CEILING(C128*3,1),0))) -> 0 | S131: =CEILING(R131*(353/(273+0.5*(B127+$M$4)))*1005*(B127-$M$4)/3600,5) -> 0 | T131: =S131+Q131 -> 385 | U131: =CEILING(T131*$O$24*$O$25,5) -> 415
A132: 205а | B132: Garderoob | E132: нс | F132: с | G132: 2.65 | H132: 4.33 | I132: =IF(E132="","",G132*H132) -> 11.4745 | J132: =IF(E132="","",IF(E132="о",VLOOKUP(E132,$L$8:$P$22,4,FALSE)-VLOOKUP("нс",$L$8:$P$22,4,FALSE),VLOOKUP(E132,$L$8:$P$22,4,FALSE))) -> 0.115 | K132: =IF(E132="","",VLOOKUP(E132,$L$8:$Q$22,6,FALSE)) -> 1 | L132: =IF(E132="","",IF(OR(E132=$L$15,E132=$L$14,E132=$L$13),B133-B136,B133-$M$4)) -> 44 | M132: =IF(E132="","",J132*K132*I132*L132) -> 58.06097 | N132: =IF(E132="","",IF(F132="в",0.1,IF(F132="св",0.1,IF(F132="с",0.1,IF(F132="сз",0.1,IF(F132="з",0.05,IF(F132="юв",0.05,0))))))) -> 0.1 | P132: =IF(E132="","",1+N132+O132) -> 1.1 | Q132: =IF(G132=0,"",CEILING(M132*P132,5)) -> 65
B133: 22 | E133: нс | F133: з | G133: 2.65 | H133: 1.68 | I133: =IF(E133="","",G133*H133)-I135 -> 3.732 | J133: =IF(E133="","",IF(E133="о",VLOOKUP(E133,$L$8:$P$22,4,FALSE)-VLOOKUP("нс",$L$8:$P$22,4,FALSE),VLOOKUP(E133,$L$8:$P$22,4,FALSE))) -> 0.115 | K133: =IF(E133="","",VLOOKUP(E133,$L$8:$Q$22,6,FALSE)) -> 1 | L133: =IF(E133="","",IF(OR(E133=$L$15,E133=$L$14,E133=$L$13),B133-B136,B133-$M$4)) -> 44 | M133: =IF(E133="","",J133*K133*I133*L133) -> 18.88392 | N133: =IF(E133="","",IF(F133="в",0.1,IF(F133="св",0.1,IF(F133="с",0.1,IF(F133="сз",0.1,IF(F133="з",0.05,IF(F133="юв",0.05,0))))))) -> 0.05 | P133: =IF(E133="","",1+N133+O133) -> 1.05 | Q133: =IF(G133=0,"",CEILING(M133*P133,5)) -> 20
B134: Sп = | C134: 14.28 | D134: м² | E134: п | G134: =H132 -> 4.33 | H134: =H133 -> 1.68 | I134: =IF(E134="","",G134*H134) -> 7.2744 | J134: =IF(E134="","",IF(E134="о",VLOOKUP(E134,$L$8:$P$22,4,FALSE)-VLOOKUP("нс",$L$8:$P$22,4,FALSE),VLOOKUP(E134,$L$8:$P$22,4,FALSE))) -> 0.108 | K134: =IF(E134="","",VLOOKUP(E134,$L$8:$Q$22,6,FALSE)) -> 1 | L134: =IF(E134="","",IF(OR(E134=$L$15,E134=$L$14,E134=$L$13),B133-B136,B133-$M$4)) -> 44 | M134: =IF(E134="","",J134*K134*I134*L134) -> 34.5679488 | N134: =IF(E134="","",IF(F134="в",0.1,IF(F134="св",0.1,IF(F134="с",0.1,IF(F134="сз",0.1,IF(F134="з",0.05,IF(F134="юв",0.05,0))))))) -> 0 | O134: 0.1 | P134: =IF(E134="","",1+N134+O134) -> 1.1 | Q134: =IF(G134=0,"",CEILING(M134*P134,5)) -> 40
B135: =IF(OR(E132=$L$15,E132=$L$14,E132=$L$13),"В смежн. пом.",IF(OR(E133=$L$15,E133=$L$14,E133=$L$13),"В смежн. пом.",IF(OR(E134=$L$15,E134=$L$14,E134=$L$13),"В смежн. пом.",IF(OR(E135=$L$15,E135=$L$14,E135=$L$13),"В смежн. пом.",IF(OR(E136=$L$15,E136=$L$14,E136=$L$13),"В смежн. пом.",""))))) ->  | E135: о | F135: з | G135: 0.6 | H135: 1.2 | I135: =IF(E135="","",G135*H135) -> 0.72 | J135: =IF(E135="","",IF(E135="о",VLOOKUP(E135,$L$8:$P$22,4,FALSE)-VLOOKUP("нс",$L$8:$P$22,4,FALSE),VLOOKUP(E135,$L$8:$P$22,4,FALSE))) -> 0.985 | K135: =IF(E135="","",VLOOKUP(E135,$L$8:$Q$22,6,FALSE)) -> 1 | L135: =IF(E135="","",IF(OR(E135=$L$15,E135=$L$14,E135=$L$13),B133-B136,B133-$M$4)) -> 44 | M135: =IF(E135="","",J135*K135*I135*L135) -> 31.2048 | N135: =IF(E135="","",IF(F135="в",0.1,IF(F135="св",0.1,IF(F135="с",0.1,IF(F135="сз",0.1,IF(F135="з",0.05,IF(F135="юв",0.05,0))))))) -> 0.05 | P135: =IF(E135="","",1+N135+O135) -> 1.05 | Q135: =IF(G135=0,"",CEILING(M135*P135,5)) -> 35
I136: =IF(E136="","",G136*H136) ->  | J136: =IF(E136="","",IF(E136="о",VLOOKUP(E136,$L$8:$P$22,4,FALSE)-VLOOKUP("нс",$L$8:$P$22,4,FALSE),VLOOKUP(E136,$L$8:$P$22,4,FALSE))) ->  | K136: =IF(E136="","",VLOOKUP(E136,$L$8:$Q$22,6,FALSE)) ->  | L136: =IF(E136="","",IF(OR(E136=$L$15,E136=$L$14,E136=$L$13),B133-B136,B133-$M$4)) ->  | M136: =IF(E136="","",J136*K136*I136*L136) ->  | N136: =IF(E136="","",IF(F136="в",0.1,IF(F136="св",0.1,IF(F136="с",0.1,IF(F136="сз",0.1,IF(F136="з",0.05,IF(F136="юв",0.05,0))))))) ->  | P136: =IF(E136="","",1+N136+O136) ->  | Q136: =IF(G136=0,"",CEILING(M136*P136,5)) -> 
P137: Σ | Q137: =SUM(Q132:Q136) -> 160 | R137: =IF(B132="Кухня",30,IF(B132="ЖК",CEILING(C134*3,1),IF(B132="Кабинет",CEILING(C134*3,1),0))) -> 0 | S137: =CEILING(R137*(353/(273+0.5*(B133+$M$4)))*1005*(B133-$M$4)/3600,5) -> 0 | T137: =S137+Q137 -> 160 | U137: =CEILING(T137*$O$24*$O$25,5) -> 175
A138: ="Общ.на дом. Q₁ = "&SUM(T36:T136)&" Вт" -> Общ.на дом. Q₁ = 4305 Вт
U177: =U156+U173 -> 0

Sheet Шайбы
A1: Расчет дроссельных шайб
A2: № стояка/ участка | B2: № этажа | C2: Gp, кг/ч | D2: Dу, мм | E2: DPRLV, Па | F2: DPст, Па | G2: H, м | H2: Pe, Па | I2: Dу, мм | J2: DPсч, Па | K2: DPр, Па | L2: DP, Па | M2: Невязка, % | N2: dш.расч, мм | O2: Стандартная шайба | S2: Шайба с шагом 0,5 мм
O3: dш, мм | P3: DPш, Па | Q3: Нев, % | R3: Обозн. | S3: dш, мм | T3: DPш, Па | U3: Нев, %
A4: Ст.1 | C4: 563.5459764 | E4: =IF(D4="",0,(C4/980/IF(D4=15,2.5,IF(D4=20,3.4,0)))^2*10^5) -> 0 | F4: 12884.51749 | H4: =ROUND(G4*9.81*(985.6-971.8),0) -> 0 | J4: =(C4/980/IF(I4=15,3,IF(I4=20,5,IF(I4=25,7,IF(I4=32,12,IF(I4=40,20,IF(I4=50,120.3,IF(I4=65,189.74,IF(I4=80,205.55,318.2)))))))))^2*10^5 -> 0.3265924982 | K4: 12877 | L4: =K4-(E4+F4-H4*0.7+J4) -> -7.844081778 | M4: =L4/K4*100 -> -0.06091544442 | N4: =IF(M4>10,IF(3.54*(C4^2/L4)^0.25<3,3,3.54*(C4^2/L4)^0.25),IF(M4<-10,"% big",IF(M4<10,0))) -> 0 | O4: =IF(N4=0,0,IF(N4<=3.5,3.5,IF(N4<=4.6,4.6,IF(N4<=5.8,5.8,IF(N4<=6.5,6.5,IF(N4<=7.5,7.5,9)))))) -> 0 | P4: =IF(O4=0,0,C4^2*3.54^4/(O4^4)) -> 0 | Q4: =(L4-P4)/K4*100 -> -0.06091544442 | R4: =IF(O4=0,"нет",IF(O4=3.5,"ШД-006",IF(O4=4.6,"ШД-007",IF(O4=5.8,"ШД-008",IF(O4=6.5,"ШД-009",IF(O4=7.5,"ШД-010",IF(O4=9,"ШД-011","ошибка"))))))) -> нет | S4: =CEILING(IF(M4>10,IF(3.54*(C4^2/L4)^0.25<=5,5,3.54*(C4^2/L4)^0.25),IF(M4<-10,"% big",IF(M4<10,0))),0.5) -> 0 | T4: =IF(N4=0,0,C4^2*3.54^4/(S4^4)) -> 0 | U4: =(L4-T4)/K4*100 -> -0.06091544442
A5: Ст.2 | C5: 563.5459764 | E5: 0 | F5: 12884.51749 | H5: 0 | J5: 0.3265924982 | K5: =K4 -> 12877 | L5: -7.844081778 | M5: -0.06091544442 | N5: =IF(M5>10,IF(3.54*(C5^2/L5)^0.25<3,3,3.54*(C5^2/L5)^0.25),IF(M5<-10,"% big",IF(M5<10,0))) -> 0 | O5: 0 | P5: 0 | Q5: -0.06091544442 | R5: =IF(O5=0,"нет",IF(O5=3.5,"ШД-006",IF(O5=4.6,"ШД-007",IF(O5=5.8,"ШД-008",IF(O5=6.5,"ШД-009",IF(O5=7.5,"ШД-010",IF(O5=9,"ШД-011","ошибка"))))))) -> нет | S5: =CEILING(IF(M5>10,IF(3.54*(C5^2/L5)^0.25<=5,5,3.54*(C5^2/L5)^0.25),IF(M5<-10,"% big",IF(M5<10,0))),0.5) -> 0 | T5: 0 | U5: -0.06091544442
A6: Ст.3 | C6: 454.2832483 | E6: 0 | F6: 10968.5072 | H6: 0 | J6: 0.2122271505 | K6: 12877 | L6: 1908.28057 | M6: 14.81929463 | N6: 11.4157925 | O6: 9 | P6: 4939.653155 | Q6: -23.54098458 | R6: ШД-011 | S6: 11.5 | T6: 1852.998773 | U6: 0.4293064935
A7: Ст.4 | C7: 454.2832483 | E7: 0 | F7: 10907.80251 | H7: 0 | J7: 0.2122271505 | K7: 12877 | L7: 1968.985267 | M7: 15.2907142 | N7: 11.32676804 | O7: 9 | P7: 4939.653155 | Q7: -23.06956502 | R7: ШД-011 | S7: 11.5 | T7: 1852.998773 | U7: 0.9007260577
A8: Ст.5 | C8: 376.8311879 | E8: 0 | F8: 8295.079965 | H8: 0 | J8: 0.1460296945 | K8: 12877 | L8: 4581.774006 | M8: 35.58106706 | N8: 8.35253426 | O8: 9 | P8: 3398.886709 | Q8: 9.186047189 | R8: ШД-011 | S8: 8.5 | T8: 4271.997835 | U8: 2.405654816
A9: Ст.6 | C9: 376.8311879 | E9: 0 | F9: 7928.694488 | H9: 0 | J9: 0.1460296945 | K9: 12877 | L9: 4948.159482 | M9: 38.42633752 | N9: 8.193430223 | O9: 9 | P9: 3398.886709 | Q9: 12.03131764 | R9: ШД-011 | S9: 8.5 | T9: 4271.997835 | U9: 5.250925272
A10: Ст.7 | C10: 516.4093701 | E10: 0 | F10: 10154.91432 | H10: 0 | J10: 0.2742431102 | K10: 12877 | L10: 2721.811441 | M10: 21.13699962 | N10: 11.1374511 | O10: 9 | P10: 6383.09397 | Q10: -28.43272912 | R10: ШД-011 | S10: 11.5 | T10: 2394.472835 | U10: 2.542040894
A11: Ст.8 | C11: 533.6043256 | E11: 0 | F11: 12512.20351 | H11: 0 | J11: 0.2928101864 | K11: 12877 | L11: 364.5036751 | M11: 2.830656792 | N11: 0 | O11: 0 | P11: 0 | Q11: 2.830656792 | R11: нет | S11: 0 | T11: 0 | U11: 2.830656792
A12: Ст.9 | C12: 456.4139276 | E12: 0 | F12: 8670.586621 | H12: 0 | J12: 0.2142225946 | K12: 12877 | L12: 4206.199157 | M12: 32.66443393 | N12: 9.39096557 | O12: 9 | P12: 4986.097739 | Q12: -6.056523898 | R12: ШД-011 | S12: 9.5 | T12: 4016.394873 | U12: 1.47397906
A13: Ст.10 | C13: 575.8441076 | E13: 0 | F13: 12103.54073 | H13: 0 | J13: 0.3410023347 | K13: 12877 | L13: 773.1182631 | M13: 6.003869404 | N13: 0 | O13: 0 | P13: 0 | Q13: 6.003869404 | R13: нет | S13: 0 | T13: 0 | U13: 6.003869404
A14: Ст.11 | C14: 673.8927343 | E14: 0 | F14: 7342.679077 | H14: 0 | J14: 0.4670130817 | K14: 12877 | L14: 5533.85391 | M14: 42.9747139 | N14: 10.65471228 | O14: 9 | P14: 10869.87521 | Q14: -41.43838862 | R14: ШД-011 | S14: 11 | T14: 4871.064221 | U14: 5.147081526
A15: Ст.12 | C15: =C14 -> 673.8927343 | E15: 0 | F15: =F14 -> 7342.679077 | H15: 0 | J15: 0.4670130817 | K15: 12877 | L15: 5533.85391 | M15: 42.9747139 | N15: 10.65471228 | O15: 9 | P15: 10869.87521 | Q15: -41.43838862 | R15: ШД-011 | S15: 11 | T15: 4871.064221 | U15: 5.147081526
A16: Ст.13 | C16: 459.778158 | E16: 0 | F16: 9340.59807 | H16: 0 | J16: 0.2173923064 | K16: 12877 | L16: 3536.184538 | M16: 27.46124515 | N16: 9.843367503 | O16: 9 | P16: 5059.873769 | Q16: -11.83264139 | R16: ШД-011 | S16: 10 | T16: 3319.78318 | U16: 1.680526194
A17: Ст.14 | C17: 459.778158 | E17: 0 | F17: 9377.347143 | H17: 0 | J17: 0.2173923064 | K17: 12877 | L17: 3499.435465 | M17: 27.17585979 | N17: 9.86910871 | O17: 9 | P17: 5059.873769 | Q17: -12.11802674 | R17: ШД-011 | S17: 10 | T17: 3319.78318 | U17: 1.395140834
A18: Ст.15 | C18: 418.4728845 | E18: 0 | F18: 8442.671792 | H18: 0 | J18: 0.1800869086 | K18: 12877 | L18: 4434.148121 | M18: 34.43463634 | N18: 8.874305476 | O18: 9 | P18: 4191.578995 | Q18: 1.883739424 | R18: ШД-011 | S18: 9 | T18: 4191.578995 | U18: 1.883739424
A19: Ст.16 | C19: 418.4728845 | E19: 0 | F19: 8274.378656 | H19: 0 | J19: 0.1800869086 | K19: 12877 | L19: 4602.441257 | M19: 35.74156448 | N19: 8.792044139 | O19: 9 | P19: 4191.578995 | Q19: 3.190667563 | R19: ШД-011 | S19: 9 | T19: 4191.578995 | U19: 3.190667563
A20: Ст.17 | C20: 418.4728845 | E20: 0 | F20: 8153.476726 | H20: 0 | J20: 0.1800869086 | K20: 12877 | L20: 4723.343187 | M20: 36.68046274 | N20: 8.735234091 | O20: 9 | P20: 4191.578995 | Q20: 4.129565829 | R20: ШД-011 | S20: 9 | T20: 4191.578995 | U20: 4.129565829
A21: Ст.18 | C21: 418.4728845 | E21: 0 | F21: 8249.775149 | H21: 0 | J21: 0.1800869086 | K21: 12877 | L21: 4627.044764 | M21: 35.93262999 | N21: 8.78033322 | O21: 9 | P21: 4191.578995 | Q21: 3.381733081 | R21: ШД-011 | S21: 9 | T21: 4191.578995 | U21: 3.381733081
A22: Ст.19 | C22: 459.778158 | E22: 0 | F22: 9287.55449 | H22: 0 | J22: 0.2173923064 | K22: 12877 | L22: 3589.228117 | M22: 27.87317013 | N22: 9.80679653 | O22: 9 | P22: 5059.873769 | Q22: -11.42071641 | R22: ШД-011 | S22: 10 | T22: 3319.78318 | U22: 2.092451172
A23: Ст.20 | C23: 713.4037517 | E23: 0 | F23: 7949.571186 | H23: 0 | J23: 0.5233813894 | K23: 12877 | L23: 4926.905432 | M23: 38.26128316 | N23: 11.28567137 | O23: 9 | P23: 12181.86516 | Q23: -56.34044987 | R23: ШД-011 | S23: 11.5 | T23: 4569.750241 | U23: 2.773590053
A24: Ст.21 | C24: 237.73895 | E24: 0 | F24: 7922.079821 | H24: 0 | J24: 0.05812302092 | K24: 12877 | L24: 4954.862056 | M24: 38.47838826 | N24: 6.505722582 | O24: 7.5 | P24: 2805.231294 | Q24: 16.69356809 | R24: ШД-010 | S24: 7 | T24: 3696.762657 | U24: 9.770128127
A25: Ст.22 | C25: 557.3408403 | E25: 0 | F25: 12215.47087 | H25: 0 | J25: 0.3194399536 | K25: 12877 | L25: 661.2096895 | M25: 5.134811598 | N25: 0 | O25: 0 | P25: 0 | Q25: 5.134811598 | R25: нет | S25: 0 | T25: 0 | U25: 5.134811598
A26: Ст.23 | C26: 557.3408403 | E26: 0 | F26: 12177.6456 | H26: 0 | J26: 0.3194399536 | K26: 12877 | L26: 699.0349599 | M26: 5.428554476 | N26: 0 | O26: 0 | P26: 0 | Q26: 5.428554476 | R26: нет | S26: 0 | T26: 0 | U26: 5.428554476
A27: Ст.24 | C27: 704.2455688 | E27: 0 | F27: 7850.580632 | H27: 0 | J27: 0.5100300259 | K27: 12877 | L27: 5025.909338 | M27: 39.0301261 | N27: 11.15736552 | O27: 9 | P27: 11871.10801 | Q27: -53.15833402 | R27: ШД-011 | S27: 11.5 | T27: 4453.176748 | U27: 4.447717552
A28: Ст.26 | C28: 149.3344505 | E28: 0 | F28: 1613.029802 | H28: 0 | J28: 0.02293335081 | K28: 12877 | L28: 11263.94726 | M28: 87.47338095 | N28: 4.199142511 | O28: 4.6 | P28: 7821.710504 | Q28: 26.73166701 | R28: ШД-007 | S28: 5 | T28: 5603.41834 | U28: 43.9584447
A29: Ст.27 | C29: 191.5368522 | E29: =IF(D29="",0,(C29/980/IF(D29=15,2.5,IF(D29=20,3.4,0)))^2*10^5) -> 0 | F29: 3720.592378 | H29: =ROUND(G29*9.81*(985.6-971.8),0) -> 0 | J29: =(C29/980/IF(I29=15,3,IF(I29=20,5,IF(I29=25,7,IF(I29=32,12,IF(I29=40,20,IF(I29=50,120.3,IF(I29=65,189.74,IF(I29=80,205.55,318.2)))))))))^2*10^5 -> 0.03772699281 | K29: 3846 | L29: =K29-(E29+F29-H29*0.4+J29) -> 125.3698946 | M29: =L29/K29*100 -> 3.259747649 | N29: 0 | O29: 0 | P29: 0 | Q29: 3.259747649 | R29: нет | S29: 0 | T29: 0 | U29: 3.259747649
A30: уч.19 | C30: 40.31394698 | E30: 0 | F30: 3605.311753 | H30: 0 | J30: 0.001671314337 | K30: 3846 | L30: 240.6865761 | M30: 6.258101302 | N30: 0 | O30: 0 | P30: 0 | Q30: 6.258101302 | R30: нет | S30: 0 | T30: 0 | U30: 6.258101302
A31: Ст.28 | C31: 39.03703463 | E31: 0 | F31: 3366.02439 | H31: 0 | J31: 0.001567115975 | K31: 3846 | L31: 479.9740432 | M31: 12.47982432 | N31: 4.725385389 | O31: 5.8 | P31: 211.4728965 | Q31: 6.981309068 | R31: ШД-008 | S31: 5 | T31: 382.90115 | U31: 2.523996185
A32: Ст.29 | C32: 366.9116423 | E32: 0 | F32: 3846.302665 | H32: 0 | J32: 0.1384428346 | K32: 3846 | L32: -0.4411074806 | M32: -0.01146925327 | N32: 0 | O32: 0 | P32: 0 | Q32: -0.01146925327 | R32: нет | S32: 0 | T32: 0 | U32: -0.01146925327
A33: уч.10 | C33: 32.10522474 | E33: 0 | F33: 3430.956703 | H33: 0 | J33: 0.001059983065 | K33: 3846 | L33: 415.0422367 | M33: 10.79152982 | N33: 4.443938556 | O33: 4.6 | P33: 361.5206842 | Q33: 1.391616032 | R33: ШД-007 | S33: 5 | T33: 258.990873 | U33: 4.057497756
A34: Ст.30 | C34: 376.3607937 | E34: 0 | F34: 3316.954611 | H34: 0 | J34: 0.1456653476 | K34: 3846 | L34: 528.8997236 | M34: 13.75194289 | N34: 14.3206297 | O34: 9 | P34: 3390.406421 | Q34: -74.40215021 | R34: ШД-011 | S34: 14.5 | T34: 503.2106113 | U34: 0.6679436362
A35: уч.38' | C35: 76 | E35: 0 | F35: 2553.497384 | H35: 0 | J35: 0.005939839123 | K35: 3846 | L35: 1292.496676 | M35: 33.60625782 | N35: 5.146982593 | O35: 5.8 | P35: 801.5456442 | Q35: 12.76523743 | R35: ШД-008 | S35: 5.5 | T35: 991.2643209 | U35: 7.832354518
A36: Ст.31 | C36: 410.6732526 | E36: 0 | F36: 3635.666987 | H36: 0 | J36: 0.1734364334 | K36: 3846 | L36: 210.1595769 | M36: 5.464367573 | N36: 0 | O36: 0 | P36: 0 | Q36: 5.464367573 | R36: нет | S36: 0 | T36: 0 | U36: 5.464367573
A37: Ст.32 | C37: 256.3492746 | E37: 0 | F37: 3424.377558 | H37: 0 | J37: 0.06757898797 | K37: 3846 | L37: 421.554863 | M37: 10.96086487 | N37: 12.50851583 | O37: 9 | P37: 1572.922033 | Q37: -29.9367439 | R37: ШД-011 | S37: 13 | T37: 361.3298365 | U37: 1.565913324
A38: уч.47' | C38: 26 | E38: 0 | F38: 3178.002834 | H38: 0 | J38: 0.0006951750775 | K38: 3846 | L38: 667.9964712 | M38: 17.368603 | N38: 3.550556222 | O38: 4.6 | P38: 237.0982876 | Q38: 11.20380093 | R38: ШД-007 | S38: 5 | T38: 169.855544 | U38: 12.95218219
A39: Ст.33 | C39: 36.66562599 | E39: 0 | F39: 3530.508418 | H39: 0 | J39: 0.001382501802 | K39: 3846 | L39: 315.4901992 | M39: 8.203073302 | N39: 0 | O39: 0 | P39: 0 | Q39: 8.203073302 | R39: нет | S39: 0 | T39: 0 | U39: 8.203073302
A40: Ст.34 | C40: 123.8604977 | E40: 0 | F40: 3674.996349 | H40: 0 | J40: 0.01577659002 | K40: 3846 | L40: 170.9878749 | M40: 4.445862582 | N40: =IF(M40>10,IF(3.54*(C40^2/L40)^0.25<3,3,3.54*(C40^2/L40)^0.25),IF(M40<-10,"% big",IF(M40<10,0))) -> 0 | O40: =IF(N40=0,0,IF(N40<=3.5,3.5,IF(N40<=4.6,4.6,IF(N40<=5.8,5.8,IF(N40<=6.5,6.5,IF(N40<=7.5,7.5,9)))))) -> 0 | P40: =IF(O40=0,0,C40^2*3.54^4/(O40^4)) -> 0 | Q40: =(L40-P40)/K40*100 -> 4.445862582 | R40: =IF(O40=0,"нет",IF(O40=3.5,"ШД-006",IF(O40=4.6,"ШД-007",IF(O40=5.8,"ШД-008",IF(O40=6.5,"ШД-009",IF(O40=7.5,"ШД-010",IF(O40=9,"ШД-011","ошибка"))))))) -> нет | S40: 0 | T40: =IF(N40=0,0,C40^2*3.54^4/(S40^4)) -> 0 | U40: =(L40-T40)/K40*100 -> 4.445862582
A41: Ст.35 | C41: 108.9023817 | E41: 0 | F41: 2445.393119 | H41: 0 | J41: 0.01219613586 | K41: 3846 | L41: 1400.594685 | M41: 36.41691848 | N41: 6.038705254 | O41: 6.5 | P41: 1043.360466 | Q41: 9.288461211 | R41: ШД-009 | S41: 6.5 | T41: 1043.360466 | U41: 9.288461211
A42: уч.26' | C42: 34.65904944 | E42: 0 | F42: 2429.358289 | H42: 0 | J42: 0.001235323756 | K42: 3846 | L42: 1416.640476 | M42: 36.83412574 | N42: 3.397008818 | O42: 3.5 | P42: 1257.112561 | Q42: 4.14789171 | R42: ШД-006 | S42: 5 | T42: 301.8327259 | U42: 28.98616095
A43: уч.27' | C43: 71.50709147 | E43: 0 | F43: 2707.466229 | H43: 0 | J43: 0.005258304421 | K43: 3846 | L43: 1138.528512 | M43: 29.60292544 | N43: 5.153376124 | O43: 5.8 | P43: 709.576626 | Q43: 11.15319517 | R43: ШД-008 | S43: 5.5 | T43: 877.5270597 | U43: 6.786309225
A44: уч.29' | C44: 106.8958051 | E44: 0 | F44: 2874.609471 | H44: 0 | J44: 0.01175083757 | K44: 3846 | L44: 971.378778 | M44: 25.2568585 | N44: 6.555962195 | O44: 7.5 | P44: 567.1387475 | Q44: 10.51066122 | R44: ШД-010 | S44: 7 | T44: 747.3812759 | U44: 5.824168022
A45: Ст.37 | C45: 94.30909768 | E45: 0 | F45: 2721.4719 | H45: 0 | J45: 0.009146494496 | K45: 3846 | L45: 1124.518954 | M45: 29.23866234 | N45: 5.936607849 | O45: 6.5 | P45: 782.468388 | Q45: 8.893670457 | R45: ШД-009 | S45: 6 | T45: 1077.743038 | U45: 1.216222467
A46: Ст.38 | C46: 85.73554335 | E46: 0 | F46: 2892.519096 | H46: 0 | J46: 0.007559086361 | K46: 3846 | L46: 953.4733445 | M46: 24.79129861 | N46: 5.898703614 | O46: 6.5 | P46: 646.6680893 | Q46: 7.977255727 | R46: ШД-009 | S46: 6 | T46: 890.6967254 | U46: 1.632257388
A47: Ст.39 | C47: 92.48493719 | E47: 0 | F47: 2963.130047 | H47: 0 | J47: 0.008796086871 | K47: 3846 | L47: 882.8611571 | M47: 22.9553083 | N47: 6.245477708 | O47: 6.5 | P47: 752.4915603 | Q47: 3.389745106 | R47: ШД-009 | S47: 6.5 | T47: 752.4915603 | U47: 3.389745106
A48: Ст.40 | C48: 43.77985192 | E48: 0 | F48: 3366.02439 | H48: 0 | J48: 0.00197104289 | K48: 3846 | L48: 479.9736393 | M48: 12.47981381 | N48: 5.004216144 | O48: 5.8 | P48: 265.9804096 | Q48: 5.564046534 | R48: ШД-008 | S48: 5.5 | T48: 328.9355909 | U48: 3.927146345
A49: уч.20 | C49: 51.80615811 | E49: 0 | F49: 3307.863373 | H49: 0 | J49: 0.002760007558 | K49: 3846 | L49: 538.1338672 | M49: 13.99204023 | N49: 5.290191265 | O49: 5.8 | P49: 372.4464569 | Q49: 4.308044991 | R49: ШД-008 | S49: 5.5 | T49: 460.6011982 | U49: 2.015930031
A50: уч.21 | C50: 89.20144829 | E50: 0 | F50: 3175.108195 | H50: 0 | J50: 0.008182599772 | K50: 3846 | L50: 670.8836225 | M50: 17.44367193 | N50: 6.569425885 | O50: 7.5 | P50: 394.9224349 | Q50: 7.175277889 | R50: ШД-010 | S50: 7 | T50: 520.4328474 | U50: 3.911876627

Sheet Регистр 10-50
A2: Теплоотдача открыто проложенных труб | H2: 1 труба | I2: 2 трубы | J2: 3 трубы | K2: 4 трубы
A3: t1, оС | B3: t2, оС | C3: tв, оС | D3: Ду, мм | E3: qг, Вт/м | F3: qв, Вт/м | G3: Q, Вт | H3: lг1, м | I3: lг2, м | J3: lг3, м | K3: lг4, м
A4: 89.5 | B4: 70 | C4: 16 | D4: 10 | E4: =IF(((A4+B4)*0.5-C4)<=79,0.321580135*(((A4+B4)*0.5-C4)^1.240747779),123.38*LN(((A4+B4)*0.5-C4))-466.96) -> 55.74347003 | F4: =IF(((A4+B4)*0.5-C4)<=79,0.16399692*(((A4+B4)*0.5-C4)^1.329640854),93.91*LN(((A4+B4)*0.5-C4))-356.44) -> 41.12882206 | G4: 170 | H4: =$G$4/E4 -> 3.049684562 | I4: =$G$4/(E4*0.9)/2 -> 1.694269201 | J4: =$G$4/(E4*0.9*0.9)/3 -> 1.255014223 | K4: =$G$4/(E4*0.9*0.9*0.9)/4 -> 1.045845186
D5: 15 | E5: =IF(((A4+B4)*0.5-C4)<=79,((A4+B4)*0.5-C4)/(-0.0048*((A4+B4)*0.5-C4)+1.2424)+0.066,148.43*LN(((A4+B4)*0.5-C4))-559.64) -> 68.14588039 | F5: =IF(((A4+B4)*0.5-C4)<=79,0.238080045*(((A4+B4)*0.5-C4)^1.295542844),115.03*LN(((A4+B4)*0.5-C4))-433.57) -> 51.82083327 | H5: 2.494648231 | I5: 1.385915684 | J5: 1.02660421 | K5: 0.8555035087
D6: 20 | E6: =IF(((A4+B4)*0.5-C4)<=79,0.496214489*(((A4+B4)*0.5-C4)^1.232046431),186.67*LN(((A4+B4)*0.5-C4))-709.66) -> 82.96077833 | F6: =IF(((A4+B4)*0.5-C4)<=79,0.246128613*(((A4+B4)*0.5-C4)^1.343377217),151.33*LN(((A4+B4)*0.5-C4))-576.12) -> 65.35211976 | H6: 2.049161103 | I6: 1.138422835 | J6: 0.8432761739 | K6: 0.7027301449
D7: 25 | E7: =IF(((A4+B4)*0.5-C4)<=79,0.592042752*(((A4+B4)*0.5-C4)^1.237498981),227.29*LN(((A4+B4)*0.5-C4))-864.95) -> 101.2501007 | F7: =IF(((A4+B4)*0.5-C4)<=79,0.356583242*(((A4+B4)*0.5-C4)^1.306705202),183.68*LN(((A4+B4)*0.5-C4))-695.46) -> 81.2988831 | H7: 1.679010675 | I7: 0.9327837085 | J7: 0.6909508952 | K7: 0.5757924127
D8: 32 | E8: =IF(((A4+B4)*0.5-C4)<=79,0.801688483*(((A4+B4)*0.5-C4)^1.212688216),273.04*LN(((A4+B4)*0.5-C4))-1035.4) -> 123.6737433 | F8: =IF(((A4+B4)*0.5-C4)<=79,((A4+B4)*0.5-C4)/(-0.0038*((A4+B4)*0.5-C4)+0.8658)+0.129,223.67*LN(((A4+B4)*0.5-C4))-364.26) -> 102.3661903 | H8: 1.374584415 | I8: 0.7636580081 | J8: 0.5656725986 | K8: 0.4713938322
D9: 40 | E9: =IF(((A4+B4)*0.5-C4)<=79,0.748430133*(((A4+B4)*0.5-C4)^1.253041198),300.66*LN(((A4+B4)*0.5-C4))-1137.16) -> 136.5335186 | F9: =IF(((A4+B4)*0.5-C4)<=79,27.388*EXP(0.022*((A4+B4)*0.5-C4)),263.86*LN(((A4+B4)*0.5-C4))-1000.39) -> 111.3418236 | H9: 1.245115498 | I9: 0.6917308323 | J9: 0.5123932091 | K9: 0.4269943409
D10: 50 | E10: =IF(((A4+B4)*0.5-C4)<=79,0.877833837*(((A4+B4)*0.5-C4)^1.262711756),367.82*LN(((A4+B4)*0.5-C4))-1392.3) -> 166.7057829 | F10: =IF(((A4+B4)*0.5-C4)<=79,0.676321906*(((A4+B4)*0.5-C4)^1.292614386),330.4*LN(((A4+B4)*0.5-C4))-1253.12) -> 145.4288286 | H10: 1.019760665 | I10: 0.5665337027 | J10: 0.4196545946 | K10: 0.3497121622

Sheet Регистр 40-100
C4: общая мощность | D4: Вт | E4: 695
D5: ккал/ч | E5: =E4/1.163 -> 597.5924334
C7: температура подачи t1 | D7: °С | E7: 95
C8: температура обратки t2 | D8: °С | E8: 70
C9: температура внутреннего воздуха tвн | D9: °С | E9: 25
C11: диаметр регистра | D11: Ду | E11: 4
C12: число рядов | E12: 3
C13: ф | E13: =IF(E12=1,1.2,1.4) -> 1.4
C15: q | D15: ккал/(ч*экм) | E15: =1.9/E13*(POWER((E7+E8)/2-E9,1.32)) -> 285.3560734
C16: требуемая площадь нагр поверхности | D16: экм | E16: =E5/E15 -> 2.094199105
C18: площадь нагр поверхности 1 м
C19: открытой горизонтальной трубы | D19: экм/м | E19: =INDEX(E33:E37,E11,1) -> 0.465
C22: длина греющей трубы | D22: м | E22: =E16/E19 -> 4.503653989
C24: длина регистра | D24: м | E24: =E22/E12 -> 1.501217996
D26: Вт/м | E26: =E4/E22 -> 154.3191377
D32: Ду | E32: f э (экм/м)
C33: 1 | D33: 40 | E33: 0.27
C34: 2 | D34: 50 | E34: 0.334
C35: 3 | D35: 65 | E35: 0.405
C36: 4 | D36: 80 | E36: 0.465
D37: 100 | E37: 0.55

Sheet Окраска
C1: площадь покраски 1 м трубы, м2
B3: Трубы | C3: Ду, мм | D3: Дн, мм | E3: Стенка, мм | F3: Площадь покраски 1 м трубы, м2 | G3: Кол-во, м | H3: Площадь окраски, м2
B4: стальные | C4: 15 | D4: 18 | E4: 2 | F4: =3.14*D4/1000 -> 0.05652 | H4: =G4*F4 -> 0
B5: электро- | C5: 20 | D5: 25 | E5: 2 | F5: 0.0785 | H5: 0
B6: сварные | C6: 25 | D6: 32 | E6: 2.2 | F6: 0.10048 | H6: 0
B7: (ГОСТ | C7: 32 | D7: 40 | E7: 2.2 | F7: 0.1256 | H7: 0
B8: 10704-91) | C8: 40 | D8: 45 | E8: 2.2 | F8: 0.1413 | H8: 0
C9: 50 | D9: 57 | E9: 3 | F9: 0.17898 | H9: 0
C10: 65 | D10: 76 | E10: 3 | F10: 0.23864 | H10: 0
C11: 80 | D11: 89 | E11: 3.5 | F11: 0.27946 | H11: 0
C12: 100 | D12: 108 | E12: 4 | F12: 0.33912 | H12: 0
C13: 100 | D13: 114 | E13: 3 | F13: 0.35796 | H13: 0
C14: 125 | D14: 133 | E14: 3.5 | F14: 0.41762 | H14: 0
C15: 150 | D15: 159 | E15: 3.2 | F15: 0.49926 | H15: 0
C16: 150 | D16: 159 | E16: 4 | F16: 0.49926 | H16: 0
C17: 200 | D17: 219 | E17: 4 | F17: 0.68766 | H17: 0
C18: 250 | D18: 273 | E18: 4 | F18: 0.85722 | H18: 0
C19: 300 | D19: 325 | E19: 4 | F19: 1.0205 | H19: 0
C20: 350 | D20: 377 | E20: 5 | F20: 1.18378 | H20: 0
B21: стальные | C21: 15 | D21: 21.3 | E21: 2.5 | F21: 0.066882 | H21: 0
B22: водогазо- | C22: 20 | D22: 26.8 | E22: 2.5 | F22: 0.084152 | H22: 0
B23: проводные | C23: 25 | D23: 33.5 | E23: 2.8 | F23: 0.10519 | G23: 20 | H23: 2.1038
B24: (ГОСТ | C24: 32 | D24: 42.3 | E24: 2.8 | F24: 0.132822 | H24: 0
B25: 3262-75) | C25: 40 | D25: 48 | E25: 3 | F25: 0.15072 | H25: 0
C26: 50 | D26: 60 | E26: 3 | F26: 0.1884 | H26: 0
C27: 65 | D27: 75.5 | E27: 3.2 | F27: 0.23707 | H27: 0
C28: 80 | D28: 88.5 | E28: 2.5 | F28: 0.27789 | H28: 0
C29: 90 | D29: 101 | E29: 3.5 | F29: 0.31714 | H29: 0
C30: 100 | D30: 114 | E30: 4 | F30: 0.35796 | H30: 0
C31: 125 | D31: 140 | E31: 4 | F31: 0.4396 | H31: 0
C32: 150 | D32: 165 | E32: 4 | F32: 0.5181 | H32: 0
F33: Всего: | G33: =SUM(G4:G32) -> 20 | H33: =SUM(H4:H32) -> 2.1038
B35: Наименование | F35: Показатель
F36: кг/м2 | G36: кг
B37: 1. Обезжиривание (Уайт-спирит) | F37: 0.32 | G37: =ROUNDUP($H$33*F37,1) -> 0.7
B38: 2. Грунтование:
B39: 2.1 Грунт ГФ-0119 по ГОСТ 19151-73 | F39: 0.1 | G39: =ROUNDUP($H$33*F39,1) -> 0.3
B40: 2.2 Уайт-спирит | F40: 0.01 | G40: =ROUNDUP($H$33*F40,1) -> 0.1
B41: 3. Окраска на 2 раза по ГОСТ 10503-71
B42: 3.1 Краска алкидная (зеленая) МА-15 | F42: 0.246 | G42: =ROUNDUP($H$33*F42,1) -> 0.6
B43: 3.2 Олифа | F43: =2.7/100 -> 0.027 | G43: =ROUNDUP($H$33*F43,1) -> 0.1

Sheet ТИ
A1: Параметры теплоносителя t=105-70 oC; 95-70 oC
A3: Dн, мм | B3: Антикорроз. покр. | C3: Наименов. трубопр. | D3: Материал изоляции | E3: Толщина изол., мм | F3: Объём изол., м3/м | G3: Покровный слой | H3: Пов-ть труб, м2/м | J3: Длина труб, м | K3: Объём изол., м3 | L3: Пов-ть труб, м2
H4: без изол. | I4: с изол. | L4: без изол. | M4: с изол.
A5: 26 | B5: Трехслойное покрытие из грунта ГФ-020 и краски БТ-177 (код материала 231000) | C5: подающий | D5: Шнур теплоизоляцион-ный из минеральной ваты в чулке из метал-лической проволоки по ТУ36-1695-73 код 576295 | E5: 30 | F5: =(3.14*(A5/1000+E5*2/1000)^2/4-3.14*(A5/1000)^2/4)*1.15 -> 0.00606648 | G5: Стеклотекстолит покровный листовой СТПЛ-ТБ ТУ 36-1583-72 (код материала 229624) | H5: =A5*3.14/1000 -> 0.08164 | I5: =(A5+E5*2)/1000*3.14 -> 0.27004 | K5: =J5*F5 -> 0 | L5: =(J5+J6)*H5 -> 0 | M5: =J5*I5 -> 0
C6: обратный | E6: 30 | F6: =(3.14*(A5/1000+E6*2/1000)^2/4-3.14*(A5/1000)^2/4)*1.15 -> 0.00606648 | I6: =(A5+E6*2)/1000*3.14 -> 0.27004 | K6: 0 | M6: 0
A7: 31 | C7: подающий | E7: 30 | F7: =(3.14*(A7/1000+E7*2/1000)^2/4-3.14*(A7/1000)^2/4)*1.15 -> 0.00660813 | H7: =A7*3.14/1000 -> 0.09734 | I7: =(A7+E7*2)/1000*3.14 -> 0.28574 | K7: 0 | L7: =(J7+J8)*H7 -> 0 | M7: 0
C8: обратный | E8: 30 | F8: =(3.14*(A7/1000+E8*2/1000)^2/4-3.14*(A7/1000)^2/4)*1.15 -> 0.00660813 | I8: =(A7+E8*2)/1000*3.14 -> 0.28574 | K8: 0 | M8: 0
A9: 38 | C9: подающий | E9: 30 | F9: =(3.14*(A9/1000+E9*2/1000)^2/4-3.14*(A9/1000)^2/4)*1.15 -> 0.00736644 | H9: =A9*3.14/1000 -> 0.11932 | I9: =(A9+E9*2)/1000*3.14 -> 0.30772 | J9: 2 | K9: 0.01473288 | L9: =(J9+J10)*H9 -> 0.23864 | M9: 0.61544
C10: обратный | E10: 30 | F10: =(3.14*(A9/1000+E10*2/1000)^2/4-3.14*(A9/1000)^2/4)*1.15 -> 0.00736644 | I10: =(A9+E10*2)/1000*3.14 -> 0.30772 | K10: 0 | M10: 0
A11: 46 | C11: подающий | E11: 30 | F11: =(3.14*(A11/1000+E11*2/1000)^2/4-3.14*(A11/1000)^2/4)*1.15 -> 0.00823308 | H11: =A11*3.14/1000 -> 0.14444 | I11: =(A11+E11*2)/1000*3.14 -> 0.33284 | J11: 5 | K11: 0.0411654 | L11: =(J11+J12)*H11 -> 0.7222 | M11: 1.6642
C12: обратный | E12: 30 | F12: =(3.14*(A11/1000+E12*2/1000)^2/4-3.14*(A11/1000)^2/4)*1.15 -> 0.00823308 | I12: =(A11+E12*2)/1000*3.14 -> 0.33284 | K12: 0 | M12: 0
A13: 57 | C13: подающий | E13: 30 | F13: =(3.14*(A13/1000+E13*2/1000)^2/4-3.14*(A13/1000)^2/4)*1.15 -> 0.00942471 | H13: =A13*3.14/1000 -> 0.17898 | I13: =(A13+E13*2)/1000*3.14 -> 0.36738 | K13: 0 | L13: =(J13+J14)*H13 -> 9.8439 | M13: 0
C14: обратный | E14: 30 | F14: =(3.14*(A13/1000+E14*2/1000)^2/4-3.14*(A13/1000)^2/4)*1.15 -> 0.00942471 | I14: =(A13+E14*2)/1000*3.14 -> 0.36738 | J14: 55 | K14: 0.51835905 | M14: 20.2059
A15: 76 | C15: подающий | D15: Минераловатные плиты "ПМ" по ГОСТ 9573-96 код 576203 | E15: 40 | F15: =(3.14*(A15/1000+E15*2/1000)^2/4-3.14*(A15/1000)^2/4)*1.15 -> 0.01675504 | H15: =A15*3.14/1000 -> 0.23864 | I15: =(A15+E15*2)/1000*3.14 -> 0.48984 | J15: 5 | K15: 0.0837752 | L15: =(J15+J16)*H15 -> 1.1932 | M15: 2.4492
C16: обратный | E16: 30 | F16: =(3.14*(A15/1000+E16*2/1000)^2/4-3.14*(A15/1000)^2/4)*1.15 -> 0.01148298 | I16: =(A15+E16*2)/1000*3.14 -> 0.42704 | K16: 0 | M16: 0
A17: 89 | C17: подающий | E17: 40 | F17: =(3.14*(A17/1000+E17*2/1000)^2/4-3.14*(A17/1000)^2/4)*1.15 -> 0.01863276 | H17: =A17*3.14/1000 -> 0.27946 | I17: =(A17+E17*2)/1000*3.14 -> 0.53066 | J17: 8 | K17: 0.14906208 | L17: =(J17+J18)*H17 -> 4.47136 | M17: 4.24528
C18: обратный | E18: 30 | F18: =(3.14*(A17/1000+E18*2/1000)^2/4-3.14*(A17/1000)^2/4)*1.15 -> 0.01289127 | I18: =(A17+E18*2)/1000*3.14 -> 0.46786 | J18: 8 | K18: 0.10313016 | M18: 3.74288
A19: 108 | C19: подающий | E19: 40 | F19: =(3.14*(A19/1000+E19*2/1000)^2/4-3.14*(A19/1000)^2/4)*1.15 -> 0.02137712 | H19: =A19*3.14/1000 -> 0.33912 | I19: =(A19+E19*2)/1000*3.14 -> 0.59032 | J19: 20 | K19: 0.4275424 | L19: =(J19+J20)*H19 -> 13.5648 | M19: 11.8064
C20: обратный | E20: 30 | F20: =(3.14*(A19/1000+E20*2/1000)^2/4-3.14*(A19/1000)^2/4)*1.15 -> 0.01494954 | I20: =(A19+E20*2)/1000*3.14 -> 0.52752 | J20: 20 | K20: 0.2989908 | M20: 10.5504
A21: 133 | C21: подающий | E21: 40 | F21: =(3.14*(A21/1000+E21*2/1000)^2/4-3.14*(A21/1000)^2/4)*1.15 -> 0.02498812 | H21: =A21*3.14/1000 -> 0.41762 | I21: =(A21+E21*2)/1000*3.14 -> 0.66882 | J21: =45/2 -> 22.5 | K21: 0.5622327 | L21: =(J21+J22)*H21 -> 18.7929 | M21: 15.04845
C22: обратный | E22: 30 | F22: =(3.14*(A21/1000+E22*2/1000)^2/4-3.14*(A21/1000)^2/4)*1.15 -> 0.01765779 | I22: =(A21+E22*2)/1000*3.14 -> 0.60602 | J22: =J21 -> 22.5 | K22: 0.397300275 | M22: 13.63545
A23: 159 | C23: подающий | D23: Маты минераловатные прошивные (в обкладке из сетки) по ГОСТ 21880-94 | E23: 50 | F23: =(3.14*(A23/1000+E23*2/1000)^2/4-3.14*(A23/1000)^2/4)*1.15 -> 0.03773495 | H23: =A23*3.14/1000 -> 0.49926 | I23: =(A23+E23*2)/1000*3.14 -> 0.81326 | J23: 10 | K23: 0.3773495 | L23: =(J23+J24)*H23 -> 9.9852 | M23: 8.1326
C24: обратный | E24: 40 | F24: =(3.14*(A23/1000+E24*2/1000)^2/4-3.14*(A23/1000)^2/4)*1.15 -> 0.02874356 | I24: =(A23+E24*2)/1000*3.14 -> 0.75046 | J24: 10 | K24: 0.2874356 | M24: 7.5046
A25: 219 | C25: подающий | E25: 50 | F25: =(3.14*(A25/1000+E25*2/1000)^2/4-3.14*(A25/1000)^2/4)*1.15 -> 0.04856795 | H25: =A25*3.14/1000 -> 0.68766 | I25: =(A25+E25*2)/1000*3.14 -> 1.00166 | K25: 0 | L25: =(J25+J26)*H25 -> 0 | M25: 0
C26: обратный | E26: 40 | F26: =(3.14*(A25/1000+E26*2/1000)^2/4-3.14*(A25/1000)^2/4)*1.15 -> 0.03740996 | I26: =(A25+E26*2)/1000*3.14 -> 0.93886 | K26: 0 | M26: 0
A27: 273 | C27: подающий | E27: 50 | F27: =(3.14*(A27/1000+E27*2/1000)^2/4-3.14*(A27/1000)^2/4)*1.15 -> 0.05831765 | H27: =A27*3.14/1000 -> 0.85722 | I27: =(A27+E27*2)/1000*3.14 -> 1.17122 | K27: 0 | L27: =(J27+J28)*H27 -> 0 | M27: 0
C28: обратный | E28: 40 | F28: =(3.14*(A27/1000+E28*2/1000)^2/4-3.14*(A27/1000)^2/4)*1.15 -> 0.04520972 | I28: =(A27+E28*2)/1000*3.14 -> 1.10842 | K28: 0 | M28: 0
A29: 325 | C29: подающий | E29: 50 | F29: =(3.14*(A29/1000+E29*2/1000)^2/4-3.14*(A29/1000)^2/4)*1.15 -> 0.06770625 | H29: =A29*3.14/1000 -> 1.0205 | I29: =(A29+E29*2)/1000*3.14 -> 1.3345 | K29: 0 | L29: =(J29+J30)*H29 -> 0 | M29: 0
C30: обратный | E30: 40 | F30: =(3.14*(A29/1000+E30*2/1000)^2/4-3.14*(A29/1000)^2/4)*1.15 -> 0.0527206 | I30: =(A29+E30*2)/1000*3.14 -> 1.2717 | K30: 0 | M30: 0
A31: 377 | C31: подающий | E31: 50 | F31: =(3.14*(A31/1000+E31*2/1000)^2/4-3.14*(A31/1000)^2/4)*1.15 -> 0.07709485 | H31: =A31*3.14/1000 -> 1.18378 | I31: =(A31+E31*2)/1000*3.14 -> 1.49778 | K31: 0 | L31: =(J31+J32)*H31 -> 0 | M31: 0
C32: обратный | E32: 40 | F32: =(3.14*(A31/1000+E32*2/1000)^2/4-3.14*(A31/1000)^2/4)*1.15 -> 0.06023148 | I32: =(A31+E32*2)/1000*3.14 -> 1.43498 | K32: 0 | M32: 0
A33: 426 | C33: подающий | E33: 50 | F33: =(3.14*(A33/1000+E33*2/1000)^2/4-3.14*(A33/1000)^2/4)*1.15 -> 0.0859418 | H33: =A33*3.14/1000 -> 1.33764 | I33: =(A33+E33*2)/1000*3.14 -> 1.65164 | K33: 0 | L33: =(J33+J34)*H33 -> 0 | M33: 0
C34: обратный | E34: 40 | F34: =(3.14*(A33/1000+E34*2/1000)^2/4-3.14*(A33/1000)^2/4)*1.15 -> 0.06730904 | I34: =(A33+E34*2)/1000*3.14 -> 1.58884 | K34: 0 | M34: 0
J35: Шнур, м3 | K35: =SUM(K5:K14) -> 0.57425733
J36: Плиты, м3 | K36: =SUM(K15:K22) -> 2.022033615
J37: Маты, м3 | K37: =SUM(K23:K34) -> 0.6647851
J38: С/текст, м2 | M38: =SUM(M5:M34) -> 99.6008
J39: Пов-ть, м2 | L39: =SUM(L5:L34) -> 58.8122
